 Batch Number,Vendor Name,Invoice Number, Line,Line Amount,Account Description,Issue Date ,Total Amount Paid,Department,Proclass
800141228,APEX LIFT & ESCALATOR,100570,1,21.71,PLANNED LIFTS,02/12/2019,907.12,Technical and Service Support,Facilities & Management Services
800141228,APEX LIFT & ESCALATOR,100570,2,21.71,PLANNED LIFTS,02/12/2019,,Technical and Service Support,Facilities & Management Services
800141228,APEX LIFT & ESCALATOR,100570,3,21.71,PLANNED LIFTS,02/12/2019,,Technical and Service Support,Facilities & Management Services
800141228,APEX LIFT & ESCALATOR,100570,4,31.28,PLANNED LIFTS,02/12/2019,,Technical and Service Support,Facilities & Management Services
800141228,APEX LIFT & ESCALATOR,100570,5,21.71,PLANNED LIFTS,02/12/2019,,Technical and Service Support,Facilities & Management Services
800141228,APEX LIFT & ESCALATOR,100570,6,67.31,PLANNED LIFTS,02/12/2019,,Technical and Service Support,Facilities & Management Services
800141228,APEX LIFT & ESCALATOR,100570,7,21.71,PLANNED LIFTS,02/12/2019,,Technical and Service Support,Facilities & Management Services
800141228,APEX LIFT & ESCALATOR,100570,8,21.71,PLANNED LIFTS,02/12/2019,,Technical and Service Support,Facilities & Management Services
800141228,APEX LIFT & ESCALATOR,100570,9,21.71,PLANNED LIFTS,02/12/2019,,Technical and Service Support,Facilities & Management Services
800141228,APEX LIFT & ESCALATOR,100570,10,21.71,PLANNED LIFTS,02/12/2019,,Technical and Service Support,Facilities & Management Services
800141228,APEX LIFT & ESCALATOR,100570,11,43.42,PLANNED LIFTS,02/12/2019,,Technical and Service Support,Facilities & Management Services
800141228,APEX LIFT & ESCALATOR,100570,12,21.71,PLANNED LIFTS,02/12/2019,,Technical and Service Support,Facilities & Management Services
800141228,APEX LIFT & ESCALATOR,100570,13,67.31,PLANNED LIFTS,02/12/2019,,Technical and Service Support,Facilities & Management Services
800141228,APEX LIFT & ESCALATOR,100570,14,21.71,PLANNED LIFTS,02/12/2019,,Technical and Service Support,Facilities & Management Services
800141228,APEX LIFT & ESCALATOR,100570,15,21.71,PLANNED LIFTS,02/12/2019,,Technical and Service Support,Facilities & Management Services
800141228,APEX LIFT & ESCALATOR,100570,16,21.71,PLANNED LIFTS,02/12/2019,,Technical and Service Support,Facilities & Management Services
800141228,APEX LIFT & ESCALATOR,100570,17,21.71,PLANNED LIFTS,02/12/2019,,Technical and Service Support,Facilities & Management Services
800141228,APEX LIFT & ESCALATOR,100570,18,21.71,PLANNED LIFTS,02/12/2019,,Technical and Service Support,Facilities & Management Services
800141228,APEX LIFT & ESCALATOR,100570,19,235.36,PLANNED LIFTS,02/12/2019,,Technical and Service Support,Facilities & Management Services
800141228,APEX LIFT & ESCALATOR,100570,20,21.71,PLANNED LIFTS,02/12/2019,,Technical and Service Support,Facilities & Management Services
800141228,APEX LIFT & ESCALATOR,100570,21,93.36,PLANNED LIFTS,02/12/2019,,Technical and Service Support,Facilities & Management Services
800141228,APEX LIFT & ESCALATOR,100570,22,43.43,PLANNED LIFTS,02/12/2019,,Technical and Service Support,Facilities & Management Services
800141229,APEX LIFT & ESCALATOR,100571,1,50,PLANNED LIFTS,02/12/2019,"1,988.93",Technical and Service Support,Facilities & Management Services
800141229,APEX LIFT & ESCALATOR,100571,2,50,PLANNED LIFTS,02/12/2019,,Technical and Service Support,Facilities & Management Services
800141229,APEX LIFT & ESCALATOR,100571,3,49.99,PLANNED LIFTS,02/12/2019,,Technical and Service Support,Facilities & Management Services
800141229,APEX LIFT & ESCALATOR,100571,4,50,PLANNED LIFTS,02/12/2019,,Technical and Service Support,Facilities & Management Services
800141229,APEX LIFT & ESCALATOR,100571,5,541.99,PLANNED LIFTS,02/12/2019,,Technical and Service Support,Facilities & Management Services
800141229,APEX LIFT & ESCALATOR,100571,6,214.99,PLANNED LIFTS,02/12/2019,,Technical and Service Support,Facilities & Management Services
800141229,APEX LIFT & ESCALATOR,100571,7,100,PLANNED LIFTS,02/12/2019,,Technical and Service Support,Facilities & Management Services
800141229,APEX LIFT & ESCALATOR,100571,8,49.99,PLANNED LIFTS,02/12/2019,,Technical and Service Support,Facilities & Management Services
800141229,APEX LIFT & ESCALATOR,100571,9,72,PLANNED LIFTS,02/12/2019,,Technical and Service Support,Facilities & Management Services
800141229,APEX LIFT & ESCALATOR,100571,10,50,PLANNED LIFTS,02/12/2019,,Technical and Service Support,Facilities & Management Services
800141229,APEX LIFT & ESCALATOR,100571,11,155,PLANNED LIFTS,02/12/2019,,Technical and Service Support,Facilities & Management Services
800141229,APEX LIFT & ESCALATOR,100571,12,49.99,PLANNED LIFTS,02/12/2019,,Technical and Service Support,Facilities & Management Services
800141229,APEX LIFT & ESCALATOR,100571,13,50,PLANNED LIFTS,02/12/2019,,Technical and Service Support,Facilities & Management Services
800141229,APEX LIFT & ESCALATOR,100571,14,50,PLANNED LIFTS,02/12/2019,,Technical and Service Support,Facilities & Management Services
800141229,APEX LIFT & ESCALATOR,100571,15,50,PLANNED LIFTS,02/12/2019,,Technical and Service Support,Facilities & Management Services
800141229,APEX LIFT & ESCALATOR,100571,16,50,PLANNED LIFTS,02/12/2019,,Technical and Service Support,Facilities & Management Services
800141229,APEX LIFT & ESCALATOR,100571,17,50,PLANNED LIFTS,02/12/2019,,Technical and Service Support,Facilities & Management Services
800141229,APEX LIFT & ESCALATOR,100571,18,49.99,PLANNED LIFTS,02/12/2019,,Technical and Service Support,Facilities & Management Services
800141229,APEX LIFT & ESCALATOR,100571,19,99.99,PLANNED LIFTS,02/12/2019,,Technical and Service Support,Facilities & Management Services
800141229,APEX LIFT & ESCALATOR,100571,20,155,PLANNED LIFTS,02/12/2019,,Technical and Service Support,Facilities & Management Services
181119K,NORTHERN DIVER (INTERNATIONAL),205700,1,170,OPERATIONAL EQUIP-PURCHASE,02/12/2019,607.5,Technical and Service Support,Fire & Rescue
181119K,NORTHERN DIVER (INTERNATIONAL),205700,2,105,OPERATIONAL EQUIP-PURCHASE,02/12/2019,,Technical and Service Support,Fire & Rescue
181119K,NORTHERN DIVER (INTERNATIONAL),205700,3,25,OPERATIONAL EQUIP-PURCHASE,02/12/2019,,Technical and Service Support,Fire & Rescue
181119K,NORTHERN DIVER (INTERNATIONAL),205700,4,120,OPERATIONAL EQUIP-PURCHASE,02/12/2019,,Technical and Service Support,Fire & Rescue
181119K,NORTHERN DIVER (INTERNATIONAL),205700,5,60,OPERATIONAL EQUIP-PURCHASE,02/12/2019,,Technical and Service Support,Fire & Rescue
181119K,NORTHERN DIVER (INTERNATIONAL),205700,6,70,OPERATIONAL EQUIP-PURCHASE,02/12/2019,,Technical and Service Support,Fire & Rescue
181119K,NORTHERN DIVER (INTERNATIONAL),205700,7,50,OPERATIONAL EQUIP-PURCHASE,02/12/2019,,Technical and Service Support,Fire & Rescue
181119K,NORTHERN DIVER (INTERNATIONAL),205700,8,7.5,OPERATIONAL EQUIP-PURCHASE,02/12/2019,,Technical and Service Support,Fire & Rescue
181119K,NORTHERN DIVER (INTERNATIONAL),205703,1,140,OPERATIONAL EQUIP-PURCHASE,02/12/2019,537.5,Technical and Service Support,Fire & Rescue
181119K,NORTHERN DIVER (INTERNATIONAL),205703,2,65,OPERATIONAL EQUIP-PURCHASE,02/12/2019,,Technical and Service Support,Fire & Rescue
181119K,NORTHERN DIVER (INTERNATIONAL),205703,3,210,OPERATIONAL EQUIP-PURCHASE,02/12/2019,,Technical and Service Support,Fire & Rescue
181119K,NORTHERN DIVER (INTERNATIONAL),205703,4,115,OPERATIONAL EQUIP-PURCHASE,02/12/2019,,Technical and Service Support,Fire & Rescue
181119K,NORTHERN DIVER (INTERNATIONAL),205703,5,7.5,OPERATIONAL EQUIP-PURCHASE,02/12/2019,,Technical and Service Support,Fire & Rescue
271119G,IGNIS FIRE & RESILIENCE LTD,22,1,600,CONSULTANTS,02/12/2019,600,Operational Resilience,Consultancy
111119K,CORPORATE TRAVEL MGMT(NORTH),110268,1,"23,926.18",ACCOMMODATION BOOKINGS,02/12/2019,"23,926.18",Procurement,Human Resources
271119G,FIREANGEL SAFETY TECHNOLOGY LD,1135128,1,"1,200.00",FIRE DETECTORS,02/12/2019,"1,200.00",Fire Stations (North East),Health and Safety
271119G,FIREANGEL SAFETY TECHNOLOGY LD,1135550,1,900,FIRE DETECTORS,02/12/2019,900,Fire Stations (South West),Health and Safety
271119G,FIREANGEL SAFETY TECHNOLOGY LD,1135572,1,600,FIRE DETECTORS,02/12/2019,600,Fire Stations (South West),Health and Safety
271119G,FIREANGEL SAFETY TECHNOLOGY LD,1137789,1,"3,000.00",FIRE DETECTORS,02/12/2019,"3,000.00",Fire Stations (South East),Health and Safety
271119G,FIREANGEL SAFETY TECHNOLOGY LD,1138297,1,"2,520.00",FIRE DETECTORS,02/12/2019,"2,520.00",Fire Stations (North West),Health and Safety
271119V,INFOR (UNITED KINGDOM) LIMITED,11919544-GB04G,1,"3,062.50",SOFTWARE BESPOKE,02/12/2019,"5,062.50",Enterprise Application Group (ICT),ICT
271119V,INFOR (UNITED KINGDOM) LIMITED,11919544-GB04G,2,"2,000.00",SOFTWARE BESPOKE,02/12/2019,,Enterprise Application Group (ICT),ICT
271119G,WARWICK IC SYSTEMS LTD,13953,1,"3,750.00",SOFTWARE COTS,02/12/2019,"3,750.00",Enterprise Application Group (ICT),ICT
142897,ASSOCIATED BRITISH FOODS,159000/8286,1,"3,400.69",PREMIUMS,02/12/2019,"3,400.69",Central Finance,Financial Services
261119B,UNIVERSITY OF WOLVERHAMPTON,1722639-005,1,"1,880.00",CULTURAL CHANGE & TALENT,02/12/2019,"1,880.00",Training and Professional Development,Human Resources
271119G,JERWOOD SPACE,20100B,1,205,HIRE OF FACILITIES,02/12/2019,780,CPO Delivery,Facilities & Management Services
271119G,JERWOOD SPACE,20100B,2,210,HIRE OF FACILITIES,02/12/2019,,CPO Delivery,Facilities & Management Services
271119G,JERWOOD SPACE,20100B,3,365,HIRE OF FACILITIES,02/12/2019,,CPO People Programme,Facilities & Management Services
261119B,KINGSTON UNIVERSITY,20134227,1,"4,327.00",CULTURAL CHANGE & TALENT,02/12/2019,"4,327.00",Training and Professional Development,Human Resources
261119B,BSRIA LTD,224793,1,"1,070.00",BOOKS & JOURNALS,02/12/2019,"1,070.00",Technical and Service Support,Facilities & Management Services
271119G,ACE VEHICLE SERVICES LIMITED,271,1,320,OPERATIONAL EQUIP-PURCHASE,02/12/2019,320,Fire Stations (North West),Fire & Rescue
181119K,DRAEGER SAFETY UK LIMITED,2810186738,1,362.1,PROTECTIVE EQUIPT - PARTS,02/12/2019,362.1,Technical and Service Support,Emergency Services
191119K,DRAEGER SAFETY UK LIMITED,2910186737,1,660,PROTECTIVE EQUIPT - PARTS,02/12/2019,660,Technical and Service Support,Emergency Services
191119K,DRAEGER SAFETY UK LIMITED,2910186924,1,135,PROTECTIVE EQUIPT - PARTS,02/12/2019,664.7,Technical and Service Support,Emergency Services
191119K,DRAEGER SAFETY UK LIMITED,2910186924,2,29,PROTECTIVE EQUIPT - PARTS,02/12/2019,,Technical and Service Support,Emergency Services
191119K,DRAEGER SAFETY UK LIMITED,2910186924,3,450,PROTECTIVE EQUIPT - PARTS,02/12/2019,,Technical and Service Support,Emergency Services
191119K,DRAEGER SAFETY UK LIMITED,2910186924,4,39,PROTECTIVE EQUIPT - PARTS,02/12/2019,,Technical and Service Support,Emergency Services
191119K,DRAEGER SAFETY UK LIMITED,2910186924,5,11.7,PROTECTIVE EQUIPT - PARTS,02/12/2019,,Technical and Service Support,Emergency Services
271119G,WATERFRONT MANUFACTURING LTD,32655,1,674.45,UNIFORMS,02/12/2019,862.22,Watch Structure Review,Clothing
271119G,WATERFRONT MANUFACTURING LTD,32655,2,187.77,UNIFORMS,02/12/2019,,Watch Structure Review,Clothing
800141226,ARKAS LIMITED,37743,1,311,REACTIVE APPLIANCE BAY DOORS,02/12/2019,311,Technical and Service Support,Works - Construction
800141218,ARKAS LIMITED,38058,1,22,PLANNED APPLIANCE BAY DOORS,02/12/2019,"18,111.75",Technical and Service Support,Works - Construction
800141218,ARKAS LIMITED,38058,2,201,PLANNED APPLIANCE BAY DOORS,02/12/2019,,Technical and Service Support,Works - Construction
800141218,ARKAS LIMITED,38058,3,28,PLANNED APPLIANCE BAY DOORS,02/12/2019,,Technical and Service Support,Works - Construction
800141218,ARKAS LIMITED,38058,4,35,PLANNED APPLIANCE BAY DOORS,02/12/2019,,Technical and Service Support,Works - Construction
800141218,ARKAS LIMITED,38058,5,31,PLANNED APPLIANCE BAY DOORS,02/12/2019,,Technical and Service Support,Works - Construction
800141218,ARKAS LIMITED,38058,6,13,PLANNED APPLIANCE BAY DOORS,02/12/2019,,Technical and Service Support,Works - Construction
800141218,ARKAS LIMITED,38058,7,6,PLANNED APPLIANCE BAY DOORS,02/12/2019,,Technical and Service Support,Works - Construction
800141218,ARKAS LIMITED,38058,8,4,PLANNED APPLIANCE BAY DOORS,02/12/2019,,Technical and Service Support,Works - Construction
800141218,ARKAS LIMITED,38058,9,19,PLANNED APPLIANCE BAY DOORS,02/12/2019,,Technical and Service Support,Works - Construction
800141218,ARKAS LIMITED,38058,10,34,PLANNED APPLIANCE BAY DOORS,02/12/2019,,Technical and Service Support,Works - Construction
800141218,ARKAS LIMITED,38058,11,24,PLANNED APPLIANCE BAY DOORS,02/12/2019,,Technical and Service Support,Works - Construction
800141218,ARKAS LIMITED,38058,12,24,PLANNED APPLIANCE BAY DOORS,02/12/2019,,Technical and Service Support,Works - Construction
800141218,ARKAS LIMITED,38058,13,8,PLANNED APPLIANCE BAY DOORS,02/12/2019,,Technical and Service Support,Works - Construction
800141218,ARKAS LIMITED,38058,14,13,PLANNED APPLIANCE BAY DOORS,02/12/2019,,Technical and Service Support,Works - Construction
800141218,ARKAS LIMITED,38058,15,64,PLANNED APPLIANCE BAY DOORS,02/12/2019,,Technical and Service Support,Works - Construction
800141218,ARKAS LIMITED,38058,16,12,PLANNED APPLIANCE BAY DOORS,02/12/2019,,Technical and Service Support,Works - Construction
800141218,ARKAS LIMITED,38058,17,12,PLANNED APPLIANCE BAY DOORS,02/12/2019,,Technical and Service Support,Works - Construction
800141218,ARKAS LIMITED,38058,18,17,PLANNED APPLIANCE BAY DOORS,02/12/2019,,Technical and Service Support,Works - Construction
800141218,ARKAS LIMITED,38058,19,21,PLANNED APPLIANCE BAY DOORS,02/12/2019,,Technical and Service Support,Works - Construction
800141218,ARKAS LIMITED,38058,20,18,PLANNED APPLIANCE BAY DOORS,02/12/2019,,Technical and Service Support,Works - Construction
800141218,ARKAS LIMITED,38058,21,11,PLANNED APPLIANCE BAY DOORS,02/12/2019,,Technical and Service Support,Works - Construction
800141218,ARKAS LIMITED,38058,22,7,PLANNED APPLIANCE BAY DOORS,02/12/2019,,Technical and Service Support,Works - Construction
800141218,ARKAS LIMITED,38058,23,6,PLANNED APPLIANCE BAY DOORS,02/12/2019,,Technical and Service Support,Works - Construction
800141218,ARKAS LIMITED,38058,24,6,PLANNED APPLIANCE BAY DOORS,02/12/2019,,Technical and Service Support,Works - Construction
800141218,ARKAS LIMITED,38058,25,4,PLANNED APPLIANCE BAY DOORS,02/12/2019,,Technical and Service Support,Works - Construction
800141218,ARKAS LIMITED,38058,26,9,PLANNED APPLIANCE BAY DOORS,02/12/2019,,Technical and Service Support,Works - Construction
800141218,ARKAS LIMITED,38058,27,18,PLANNED APPLIANCE BAY DOORS,02/12/2019,,Technical and Service Support,Works - Construction
800141218,ARKAS LIMITED,38058,28,71,PLANNED APPLIANCE BAY DOORS,02/12/2019,,Technical and Service Support,Works - Construction
800141218,ARKAS LIMITED,38058,29,348,PLANNED APPLIANCE BAY DOORS,02/12/2019,,Technical and Service Support,Works - Construction
800141218,ARKAS LIMITED,38058,30,22,PLANNED APPLIANCE BAY DOORS,02/12/2019,,Technical and Service Support,Works - Construction
800141218,ARKAS LIMITED,38058,31,217,PLANNED APPLIANCE BAY DOORS,02/12/2019,,Technical and Service Support,Works - Construction
800141218,ARKAS LIMITED,38058,32,6,PLANNED APPLIANCE BAY DOORS,02/12/2019,,Technical and Service Support,Works - Construction
800141218,ARKAS LIMITED,38058,33,7,PLANNED APPLIANCE BAY DOORS,02/12/2019,,Technical and Service Support,Works - Construction
800141218,ARKAS LIMITED,38058,34,9,PLANNED APPLIANCE BAY DOORS,02/12/2019,,Technical and Service Support,Works - Construction
800141218,ARKAS LIMITED,38058,35,4,PLANNED APPLIANCE BAY DOORS,02/12/2019,,Technical and Service Support,Works - Construction
800141218,ARKAS LIMITED,38058,36,6,PLANNED APPLIANCE BAY DOORS,02/12/2019,,Technical and Service Support,Works - Construction
800141218,ARKAS LIMITED,38058,37,153,PLANNED APPLIANCE BAY DOORS,02/12/2019,,Technical and Service Support,Works - Construction
800141218,ARKAS LIMITED,38058,38,26,PLANNED APPLIANCE BAY DOORS,02/12/2019,,Technical and Service Support,Works - Construction
800141218,ARKAS LIMITED,38058,39,163,PLANNED APPLIANCE BAY DOORS,02/12/2019,,Technical and Service Support,Works - Construction
800141218,ARKAS LIMITED,38058,40,25,PLANNED APPLIANCE BAY DOORS,02/12/2019,,Technical and Service Support,Works - Construction
800141218,ARKAS LIMITED,38058,41,4,PLANNED APPLIANCE BAY DOORS,02/12/2019,,Technical and Service Support,Works - Construction
800141218,ARKAS LIMITED,38058,42,814,PLANNED APPLIANCE BAY DOORS,02/12/2019,,Technical and Service Support,Works - Construction
800141218,ARKAS LIMITED,38058,43,6,PLANNED APPLIANCE BAY DOORS,02/12/2019,,Technical and Service Support,Works - Construction
800141218,ARKAS LIMITED,38058,44,13,PLANNED APPLIANCE BAY DOORS,02/12/2019,,Technical and Service Support,Works - Construction
800141218,ARKAS LIMITED,38058,45,6,PLANNED APPLIANCE BAY DOORS,02/12/2019,,Technical and Service Support,Works - Construction
800141218,ARKAS LIMITED,38058,46,36,PLANNED APPLIANCE BAY DOORS,02/12/2019,,Technical and Service Support,Works - Construction
800141218,ARKAS LIMITED,38058,47,16,PLANNED APPLIANCE BAY DOORS,02/12/2019,,Technical and Service Support,Works - Construction
800141218,ARKAS LIMITED,38058,48,24,PLANNED APPLIANCE BAY DOORS,02/12/2019,,Technical and Service Support,Works - Construction
800141218,ARKAS LIMITED,38058,49,22,PLANNED APPLIANCE BAY DOORS,02/12/2019,,Technical and Service Support,Works - Construction
800141218,ARKAS LIMITED,38058,50,12,PLANNED APPLIANCE BAY DOORS,02/12/2019,,Technical and Service Support,Works - Construction
800141218,ARKAS LIMITED,38058,51,12,PLANNED APPLIANCE BAY DOORS,02/12/2019,,Technical and Service Support,Works - Construction
800141218,ARKAS LIMITED,38058,52,12,PLANNED APPLIANCE BAY DOORS,02/12/2019,,Technical and Service Support,Works - Construction
800141218,ARKAS LIMITED,38058,53,12,PLANNED APPLIANCE BAY DOORS,02/12/2019,,Technical and Service Support,Works - Construction
800141218,ARKAS LIMITED,38058,54,4,PLANNED APPLIANCE BAY DOORS,02/12/2019,,Technical and Service Support,Works - Construction
800141218,ARKAS LIMITED,38058,55,17,PLANNED APPLIANCE BAY DOORS,02/12/2019,,Technical and Service Support,Works - Construction
800141218,ARKAS LIMITED,38058,56,29,PLANNED APPLIANCE BAY DOORS,02/12/2019,,Technical and Service Support,Works - Construction
800141218,ARKAS LIMITED,38058,57,18,PLANNED APPLIANCE BAY DOORS,02/12/2019,,Technical and Service Support,Works - Construction
800141218,ARKAS LIMITED,38058,58,34,PLANNED APPLIANCE BAY DOORS,02/12/2019,,Technical and Service Support,Works - Construction
800141218,ARKAS LIMITED,38058,59,23,PLANNED APPLIANCE BAY DOORS,02/12/2019,,Technical and Service Support,Works - Construction
800141218,ARKAS LIMITED,38058,60,5,PLANNED APPLIANCE BAY DOORS,02/12/2019,,Technical and Service Support,Works - Construction
800141218,ARKAS LIMITED,38058,61,6,PLANNED APPLIANCE BAY DOORS,02/12/2019,,Technical and Service Support,Works - Construction
800141218,ARKAS LIMITED,38058,62,11,PLANNED APPLIANCE BAY DOORS,02/12/2019,,Technical and Service Support,Works - Construction
800141218,ARKAS LIMITED,38058,63,23,PLANNED APPLIANCE BAY DOORS,02/12/2019,,Technical and Service Support,Works - Construction
800141218,ARKAS LIMITED,38058,64,5,PLANNED APPLIANCE BAY DOORS,02/12/2019,,Technical and Service Support,Works - Construction
800141218,ARKAS LIMITED,38058,65,6,PLANNED APPLIANCE BAY DOORS,02/12/2019,,Technical and Service Support,Works - Construction
800141218,ARKAS LIMITED,38058,66,9,PLANNED APPLIANCE BAY DOORS,02/12/2019,,Technical and Service Support,Works - Construction
800141218,ARKAS LIMITED,38058,67,14,PLANNED APPLIANCE BAY DOORS,02/12/2019,,Technical and Service Support,Works - Construction
800141218,ARKAS LIMITED,38058,68,11,PLANNED APPLIANCE BAY DOORS,02/12/2019,,Technical and Service Support,Works - Construction
800141218,ARKAS LIMITED,38058,69,19,PLANNED APPLIANCE BAY DOORS,02/12/2019,,Technical and Service Support,Works - Construction
800141218,ARKAS LIMITED,38058,70,29,PLANNED APPLIANCE BAY DOORS,02/12/2019,,Technical and Service Support,Works - Construction
800141218,ARKAS LIMITED,38058,71,58,PLANNED APPLIANCE BAY DOORS,02/12/2019,,Technical and Service Support,Works - Construction
800141218,ARKAS LIMITED,38058,72,490,PLANNED APPLIANCE BAY DOORS,02/12/2019,,Technical and Service Support,Works - Construction
800141218,ARKAS LIMITED,38058,73,8,PLANNED APPLIANCE BAY DOORS,02/12/2019,,Technical and Service Support,Works - Construction
800141218,ARKAS LIMITED,38058,74,5,PLANNED APPLIANCE BAY DOORS,02/12/2019,,Technical and Service Support,Works - Construction
800141218,ARKAS LIMITED,38058,75,10,PLANNED APPLIANCE BAY DOORS,02/12/2019,,Technical and Service Support,Works - Construction
800141218,ARKAS LIMITED,38058,76,5,PLANNED APPLIANCE BAY DOORS,02/12/2019,,Technical and Service Support,Works - Construction
800141218,ARKAS LIMITED,38058,77,8,PLANNED APPLIANCE BAY DOORS,02/12/2019,,Technical and Service Support,Works - Construction
800141218,ARKAS LIMITED,38058,78,17,PLANNED APPLIANCE BAY DOORS,02/12/2019,,Technical and Service Support,Works - Construction
800141218,ARKAS LIMITED,38058,79,19,PLANNED APPLIANCE BAY DOORS,02/12/2019,,Technical and Service Support,Works - Construction
800141218,ARKAS LIMITED,38058,80,21,PLANNED APPLIANCE BAY DOORS,02/12/2019,,Technical and Service Support,Works - Construction
800141218,ARKAS LIMITED,38058,81,11,PLANNED APPLIANCE BAY DOORS,02/12/2019,,Technical and Service Support,Works - Construction
800141218,ARKAS LIMITED,38058,82,12,PLANNED APPLIANCE BAY DOORS,02/12/2019,,Technical and Service Support,Works - Construction
800141218,ARKAS LIMITED,38058,83,68,PLANNED APPLIANCE BAY DOORS,02/12/2019,,Technical and Service Support,Works - Construction
800141218,ARKAS LIMITED,38058,84,4,PLANNED APPLIANCE BAY DOORS,02/12/2019,,Technical and Service Support,Works - Construction
800141218,ARKAS LIMITED,38058,85,5,PLANNED APPLIANCE BAY DOORS,02/12/2019,,Technical and Service Support,Works - Construction
800141218,ARKAS LIMITED,38058,86,42.29,PLANNED APPLIANCE BAY DOORS,02/12/2019,,Technical and Service Support,Works - Construction
800141218,ARKAS LIMITED,38058,87,40,PLANNED APPLIANCE BAY DOORS,02/12/2019,,Technical and Service Support,Works - Construction
800141218,ARKAS LIMITED,38058,88,74,PLANNED APPLIANCE BAY DOORS,02/12/2019,,Technical and Service Support,Works - Construction
800141218,ARKAS LIMITED,38058,89,43,PLANNED APPLIANCE BAY DOORS,02/12/2019,,Technical and Service Support,Works - Construction
800141218,ARKAS LIMITED,38058,90,6,PLANNED APPLIANCE BAY DOORS,02/12/2019,,Technical and Service Support,Works - Construction
800141218,ARKAS LIMITED,38058,91,36,PLANNED APPLIANCE BAY DOORS,02/12/2019,,Technical and Service Support,Works - Construction
800141218,ARKAS LIMITED,38058,92,18,PLANNED APPLIANCE BAY DOORS,02/12/2019,,Technical and Service Support,Works - Construction
800141218,ARKAS LIMITED,38058,93,5,PLANNED APPLIANCE BAY DOORS,02/12/2019,,Technical and Service Support,Works - Construction
800141218,ARKAS LIMITED,38058,94,9,PLANNED APPLIANCE BAY DOORS,02/12/2019,,Technical and Service Support,Works - Construction
800141218,ARKAS LIMITED,38058,95,953,PLANNED APPLIANCE BAY DOORS,02/12/2019,,Technical and Service Support,Works - Construction
800141218,ARKAS LIMITED,38058,96,9,PLANNED APPLIANCE BAY DOORS,02/12/2019,,Technical and Service Support,Works - Construction
800141218,ARKAS LIMITED,38058,97,24,PLANNED APPLIANCE BAY DOORS,02/12/2019,,Technical and Service Support,Works - Construction
800141218,ARKAS LIMITED,38058,98,5,PLANNED APPLIANCE BAY DOORS,02/12/2019,,Technical and Service Support,Works - Construction
800141218,ARKAS LIMITED,38058,99,9,PLANNED APPLIANCE BAY DOORS,02/12/2019,,Technical and Service Support,Works - Construction
800141218,ARKAS LIMITED,38058,100,22,PLANNED APPLIANCE BAY DOORS,02/12/2019,,Technical and Service Support,Works - Construction
800141218,ARKAS LIMITED,38058,101,27,PLANNED APPLIANCE BAY DOORS,02/12/2019,,Technical and Service Support,Works - Construction
800141218,ARKAS LIMITED,38058,102,4,PLANNED APPLIANCE BAY DOORS,02/12/2019,,Technical and Service Support,Works - Construction
800141218,ARKAS LIMITED,38058,103,16,PLANNED APPLIANCE BAY DOORS,02/12/2019,,Technical and Service Support,Works - Construction
800141218,ARKAS LIMITED,38058,104,115,PLANNED APPLIANCE BAY DOORS,02/12/2019,,Technical and Service Support,Works - Construction
800141218,ARKAS LIMITED,38058,105,9,PLANNED APPLIANCE BAY DOORS,02/12/2019,,Technical and Service Support,Works - Construction
800141218,ARKAS LIMITED,38058,106,364,PLANNED APPLIANCE BAY DOORS,02/12/2019,,Technical and Service Support,Works - Construction
800141218,ARKAS LIMITED,38058,107,6,PLANNED APPLIANCE BAY DOORS,02/12/2019,,Technical and Service Support,Works - Construction
800141218,ARKAS LIMITED,38058,108,4,PLANNED APPLIANCE BAY DOORS,02/12/2019,,Technical and Service Support,Works - Construction
800141218,ARKAS LIMITED,38058,109,21,PLANNED APPLIANCE BAY DOORS,02/12/2019,,Technical and Service Support,Works - Construction
800141218,ARKAS LIMITED,38058,110,6,PLANNED APPLIANCE BAY DOORS,02/12/2019,,Technical and Service Support,Works - Construction
800141218,ARKAS LIMITED,38058,111,23,PLANNED APPLIANCE BAY DOORS,02/12/2019,,Technical and Service Support,Works - Construction
800141218,ARKAS LIMITED,38058,112,6,PLANNED APPLIANCE BAY DOORS,02/12/2019,,Technical and Service Support,Works - Construction
800141218,ARKAS LIMITED,38058,113,30,PLANNED APPLIANCE BAY DOORS,02/12/2019,,Technical and Service Support,Works - Construction
800141218,ARKAS LIMITED,38058,114,219,PLANNED APPLIANCE BAY DOORS,02/12/2019,,Technical and Service Support,Works - Construction
800141218,ARKAS LIMITED,38058,115,22,PLANNED APPLIANCE BAY DOORS,02/12/2019,,Technical and Service Support,Works - Construction
800141218,ARKAS LIMITED,38058,116,20,PLANNED APPLIANCE BAY DOORS,02/12/2019,,Technical and Service Support,Works - Construction
800141218,ARKAS LIMITED,38058,117,7,PLANNED APPLIANCE BAY DOORS,02/12/2019,,Technical and Service Support,Works - Construction
800141218,ARKAS LIMITED,38058,118,9,PLANNED APPLIANCE BAY DOORS,02/12/2019,,Technical and Service Support,Works - Construction
800141218,ARKAS LIMITED,38058,119,6,PLANNED APPLIANCE BAY DOORS,02/12/2019,,Technical and Service Support,Works - Construction
800141218,ARKAS LIMITED,38058,120,4,PLANNED APPLIANCE BAY DOORS,02/12/2019,,Technical and Service Support,Works - Construction
800141218,ARKAS LIMITED,38058,121,59,PLANNED APPLIANCE BAY DOORS,02/12/2019,,Technical and Service Support,Works - Construction
800141218,ARKAS LIMITED,38058,122,4,PLANNED APPLIANCE BAY DOORS,02/12/2019,,Technical and Service Support,Works - Construction
800141218,ARKAS LIMITED,38058,123,480,PLANNED APPLIANCE BAY DOORS,02/12/2019,,Technical and Service Support,Works - Construction
800141218,ARKAS LIMITED,38058,124,13,PLANNED APPLIANCE BAY DOORS,02/12/2019,,Technical and Service Support,Works - Construction
800141218,ARKAS LIMITED,38058,125,52,PLANNED APPLIANCE BAY DOORS,02/12/2019,,Technical and Service Support,Works - Construction
800141218,ARKAS LIMITED,38058,126,11,PLANNED APPLIANCE BAY DOORS,02/12/2019,,Technical and Service Support,Works - Construction
800141218,ARKAS LIMITED,38058,127,6,PLANNED APPLIANCE BAY DOORS,02/12/2019,,Technical and Service Support,Works - Construction
800141218,ARKAS LIMITED,38058,128,9,PLANNED APPLIANCE BAY DOORS,02/12/2019,,Technical and Service Support,Works - Construction
800141218,ARKAS LIMITED,38058,129,20,PLANNED APPLIANCE BAY DOORS,02/12/2019,,Technical and Service Support,Works - Construction
800141218,ARKAS LIMITED,38058,130,114,PLANNED APPLIANCE BAY DOORS,02/12/2019,,Technical and Service Support,Works - Construction
800141218,ARKAS LIMITED,38058,131,6,PLANNED APPLIANCE BAY DOORS,02/12/2019,,Technical and Service Support,Works - Construction
800141218,ARKAS LIMITED,38058,132,35,PLANNED APPLIANCE BAY DOORS,02/12/2019,,Technical and Service Support,Works - Construction
800141218,ARKAS LIMITED,38058,133,21,PLANNED APPLIANCE BAY DOORS,02/12/2019,,Technical and Service Support,Works - Construction
800141218,ARKAS LIMITED,38058,134,46,PLANNED APPLIANCE BAY DOORS,02/12/2019,,Technical and Service Support,Works - Construction
800141218,ARKAS LIMITED,38058,135,21,PLANNED APPLIANCE BAY DOORS,02/12/2019,,Technical and Service Support,Works - Construction
800141218,ARKAS LIMITED,38058,136,137,PLANNED APPLIANCE BAY DOORS,02/12/2019,,Technical and Service Support,Works - Construction
800141218,ARKAS LIMITED,38058,137,8,PLANNED APPLIANCE BAY DOORS,02/12/2019,,Technical and Service Support,Works - Construction
800141218,ARKAS LIMITED,38058,138,8,PLANNED APPLIANCE BAY DOORS,02/12/2019,,Technical and Service Support,Works - Construction
800141218,ARKAS LIMITED,38058,139,7,PLANNED APPLIANCE BAY DOORS,02/12/2019,,Technical and Service Support,Works - Construction
800141218,ARKAS LIMITED,38058,140,11,PLANNED APPLIANCE BAY DOORS,02/12/2019,,Technical and Service Support,Works - Construction
800141218,ARKAS LIMITED,38058,141,35,PLANNED APPLIANCE BAY DOORS,02/12/2019,,Technical and Service Support,Works - Construction
800141218,ARKAS LIMITED,38058,142,20,PLANNED APPLIANCE BAY DOORS,02/12/2019,,Technical and Service Support,Works - Construction
800141218,ARKAS LIMITED,38058,143,161,PLANNED APPLIANCE BAY DOORS,02/12/2019,,Technical and Service Support,Works - Construction
800141218,ARKAS LIMITED,38058,144,35,PLANNED APPLIANCE BAY DOORS,02/12/2019,,Technical and Service Support,Works - Construction
800141218,ARKAS LIMITED,38058,145,29,PLANNED APPLIANCE BAY DOORS,02/12/2019,,Technical and Service Support,Works - Construction
800141218,ARKAS LIMITED,38058,146,10,PLANNED APPLIANCE BAY DOORS,02/12/2019,,Technical and Service Support,Works - Construction
800141218,ARKAS LIMITED,38058,147,8,PLANNED APPLIANCE BAY DOORS,02/12/2019,,Technical and Service Support,Works - Construction
800141218,ARKAS LIMITED,38058,148,29,PLANNED APPLIANCE BAY DOORS,02/12/2019,,Technical and Service Support,Works - Construction
800141218,ARKAS LIMITED,38058,149,8,PLANNED APPLIANCE BAY DOORS,02/12/2019,,Technical and Service Support,Works - Construction
800141218,ARKAS LIMITED,38058,150,5,PLANNED APPLIANCE BAY DOORS,02/12/2019,,Technical and Service Support,Works - Construction
800141218,ARKAS LIMITED,38058,151,34,PLANNED APPLIANCE BAY DOORS,02/12/2019,,Technical and Service Support,Works - Construction
800141218,ARKAS LIMITED,38058,152,23,PLANNED APPLIANCE BAY DOORS,02/12/2019,,Technical and Service Support,Works - Construction
800141218,ARKAS LIMITED,38058,153,10,PLANNED APPLIANCE BAY DOORS,02/12/2019,,Technical and Service Support,Works - Construction
800141218,ARKAS LIMITED,38058,154,44,PLANNED APPLIANCE BAY DOORS,02/12/2019,,Technical and Service Support,Works - Construction
800141218,ARKAS LIMITED,38058,155,10,PLANNED APPLIANCE BAY DOORS,02/12/2019,,Technical and Service Support,Works - Construction
800141218,ARKAS LIMITED,38058,156,11,PLANNED APPLIANCE BAY DOORS,02/12/2019,,Technical and Service Support,Works - Construction
800141218,ARKAS LIMITED,38058,157,11,PLANNED APPLIANCE BAY DOORS,02/12/2019,,Technical and Service Support,Works - Construction
800141218,ARKAS LIMITED,38058,158,67.42,PLANNED APPLIANCE BAY DOORS,02/12/2019,,Technical and Service Support,Works - Construction
800141218,ARKAS LIMITED,38058,159,6,PLANNED APPLIANCE BAY DOORS,02/12/2019,,Technical and Service Support,Works - Construction
800141218,ARKAS LIMITED,38058,160,10,PLANNED APPLIANCE BAY DOORS,02/12/2019,,Technical and Service Support,Works - Construction
800141218,ARKAS LIMITED,38058,161,22,PLANNED APPLIANCE BAY DOORS,02/12/2019,,Technical and Service Support,Works - Construction
800141218,ARKAS LIMITED,38058,162,30,PLANNED APPLIANCE BAY DOORS,02/12/2019,,Technical and Service Support,Works - Construction
800141218,ARKAS LIMITED,38058,163,8,PLANNED APPLIANCE BAY DOORS,02/12/2019,,Technical and Service Support,Works - Construction
800141218,ARKAS LIMITED,38058,164,29,PLANNED APPLIANCE BAY DOORS,02/12/2019,,Technical and Service Support,Works - Construction
800141218,ARKAS LIMITED,38058,165,5,PLANNED APPLIANCE BAY DOORS,02/12/2019,,Technical and Service Support,Works - Construction
800141218,ARKAS LIMITED,38058,166,10,PLANNED APPLIANCE BAY DOORS,02/12/2019,,Technical and Service Support,Works - Construction
800141218,ARKAS LIMITED,38058,167,6,PLANNED APPLIANCE BAY DOORS,02/12/2019,,Technical and Service Support,Works - Construction
800141218,ARKAS LIMITED,38058,168,675,PLANNED APPLIANCE BAY DOORS,02/12/2019,,Technical and Service Support,Works - Construction
800141218,ARKAS LIMITED,38058,169,10,PLANNED APPLIANCE BAY DOORS,02/12/2019,,Technical and Service Support,Works - Construction
800141218,ARKAS LIMITED,38058,170,29,PLANNED APPLIANCE BAY DOORS,02/12/2019,,Technical and Service Support,Works - Construction
800141218,ARKAS LIMITED,38058,171,10,PLANNED APPLIANCE BAY DOORS,02/12/2019,,Technical and Service Support,Works - Construction
800141218,ARKAS LIMITED,38058,172,482,PLANNED APPLIANCE BAY DOORS,02/12/2019,,Technical and Service Support,Works - Construction
800141218,ARKAS LIMITED,38058,173,4,PLANNED APPLIANCE BAY DOORS,02/12/2019,,Technical and Service Support,Works - Construction
800141218,ARKAS LIMITED,38058,174,28,PLANNED APPLIANCE BAY DOORS,02/12/2019,,Technical and Service Support,Works - Construction
800141218,ARKAS LIMITED,38058,175,5,PLANNED APPLIANCE BAY DOORS,02/12/2019,,Technical and Service Support,Works - Construction
800141218,ARKAS LIMITED,38058,176,10,PLANNED APPLIANCE BAY DOORS,02/12/2019,,Technical and Service Support,Works - Construction
800141218,ARKAS LIMITED,38058,177,6,PLANNED APPLIANCE BAY DOORS,02/12/2019,,Technical and Service Support,Works - Construction
800141218,ARKAS LIMITED,38058,178,21,PLANNED APPLIANCE BAY DOORS,02/12/2019,,Technical and Service Support,Works - Construction
800141218,ARKAS LIMITED,38058,179,6,PLANNED APPLIANCE BAY DOORS,02/12/2019,,Technical and Service Support,Works - Construction
800141218,ARKAS LIMITED,38058,180,25,PLANNED APPLIANCE BAY DOORS,02/12/2019,,Technical and Service Support,Works - Construction
800141218,ARKAS LIMITED,38058,181,29,PLANNED APPLIANCE BAY DOORS,02/12/2019,,Technical and Service Support,Works - Construction
800141218,ARKAS LIMITED,38058,182,36,PLANNED APPLIANCE BAY DOORS,02/12/2019,,Technical and Service Support,Works - Construction
800141218,ARKAS LIMITED,38058,183,48,PLANNED APPLIANCE BAY DOORS,02/12/2019,,Technical and Service Support,Works - Construction
800141218,ARKAS LIMITED,38058,184,11,PLANNED APPLIANCE BAY DOORS,02/12/2019,,Technical and Service Support,Works - Construction
800141218,ARKAS LIMITED,38058,185,9,PLANNED APPLIANCE BAY DOORS,02/12/2019,,Technical and Service Support,Works - Construction
800141218,ARKAS LIMITED,38058,186,4,PLANNED APPLIANCE BAY DOORS,02/12/2019,,Technical and Service Support,Works - Construction
800141218,ARKAS LIMITED,38058,187,9,PLANNED APPLIANCE BAY DOORS,02/12/2019,,Technical and Service Support,Works - Construction
800141218,ARKAS LIMITED,38058,188,"1,652.54",PLANNED APPLIANCE BAY DOORS,02/12/2019,,Technical and Service Support,Works - Construction
800141218,ARKAS LIMITED,38058,189,78,PLANNED APPLIANCE BAY DOORS,02/12/2019,,Technical and Service Support,Works - Construction
800141218,ARKAS LIMITED,38058,190,14,PLANNED APPLIANCE BAY DOORS,02/12/2019,,Technical and Service Support,Works - Construction
800141218,ARKAS LIMITED,38058,191,14,PLANNED APPLIANCE BAY DOORS,02/12/2019,,Technical and Service Support,Works - Construction
800141218,ARKAS LIMITED,38058,192,8,PLANNED APPLIANCE BAY DOORS,02/12/2019,,Technical and Service Support,Works - Construction
800141218,ARKAS LIMITED,38058,193,5,PLANNED APPLIANCE BAY DOORS,02/12/2019,,Technical and Service Support,Works - Construction
800141218,ARKAS LIMITED,38058,194,10,PLANNED APPLIANCE BAY DOORS,02/12/2019,,Technical and Service Support,Works - Construction
800141218,ARKAS LIMITED,38058,195,33,PLANNED APPLIANCE BAY DOORS,02/12/2019,,Technical and Service Support,Works - Construction
800141218,ARKAS LIMITED,38058,196,228,PLANNED APPLIANCE BAY DOORS,02/12/2019,,Technical and Service Support,Works - Construction
800141218,ARKAS LIMITED,38058,197,25,PLANNED APPLIANCE BAY DOORS,02/12/2019,,Technical and Service Support,Works - Construction
800141218,ARKAS LIMITED,38058,198,7,PLANNED APPLIANCE BAY DOORS,02/12/2019,,Technical and Service Support,Works - Construction
800141218,ARKAS LIMITED,38058,199,11,PLANNED APPLIANCE BAY DOORS,02/12/2019,,Technical and Service Support,Works - Construction
800141218,ARKAS LIMITED,38058,200,16,PLANNED APPLIANCE BAY DOORS,02/12/2019,,Technical and Service Support,Works - Construction
800141218,ARKAS LIMITED,38058,201,16,PLANNED APPLIANCE BAY DOORS,02/12/2019,,Technical and Service Support,Works - Construction
800141218,ARKAS LIMITED,38058,202,"6,862.50",PLANNED APPLIANCE BAY DOORS,02/12/2019,,Technical and Service Support,Works - Construction
800141220,ARKAS LIMITED,38150,1,"1,598.93",REACTIVE APPLIANCE BAY DOORS,02/12/2019,"1,598.93",Technical and Service Support,Works - Construction
800141219,ARKAS LIMITED,38151,1,838.13,REACTIVE APPLIANCE BAY DOORS,02/12/2019,838.13,Technical and Service Support,Works - Construction
211119K,VIMPEX LIMITED,411976,1,"1,400.00",PROTECTIVE CLOTHING,02/12/2019,"1,400.00",Community Safety,Clothing
142897,MR JACK FERRO,457778B,1,"1,500.00",COUNSELS FEES,02/12/2019,"1,500.00",Compensation Budgets,Legal Services
271119V,SPEEDINGS LIMITED,53081,1,"7,050.00",OPERATIONAL EQUIP-PURCHASE,02/12/2019,"7,050.00",Operational Policy,Fire & Rescue
271119V,SPEEDINGS LIMITED,53134,1,"7,050.00",OPERATIONAL EQUIP-PURCHASE,02/12/2019,"7,050.00",Operational Policy,Fire & Rescue
201119K,EASTERN SHIRES PURCHASING ORG,5475714,1,318,CATERING EQUIPMENT,02/12/2019,318,Fire Stations (North West),Catering
131119K,EASTERN SHIRES PURCHASING ORG,5475922,1,495,CATERING EQUIPMENT,02/12/2019,495,Fire Stations (South East),Catering
142897,K & L GATES,60066436,1,"9,768.50",LEGAL PROFESSIONAL FEES-GENERL,02/12/2019,"9,768.50",Grenfell Investigation Legal Costs,Legal Services
142897,K & L GATES,60066444,1,"5,248.50",LEGAL PROFESSIONAL FEES-GENERL,02/12/2019,"5,248.50",Grenfell Investigation Legal Costs,Legal Services
261119B,ANGUS FIRE LIMITED,8047653,1,"3,992.34",PROTECTIVE EQUIPT - PARTS,02/12/2019,"5,282.54",Technical and Service Support,Emergency Services
261119B,ANGUS FIRE LIMITED,8047653,2,"1,290.20",PROTECTIVE EQUIPT - PARTS,02/12/2019,,Technical and Service Support,Emergency Services
261119B,MBL SEMINARS,859089,1,300,PROFESSIONAL DEVELOPMENT,02/12/2019,300,Training and Professional Development,Human Resources
261119V,ADVECO LTD T/A AO SMITH WATER,94526,1,"5,038.60",REACTIVE SMALL WORKS AND PROJ,02/12/2019,"5,038.60",Technical and Service Support,Works - Construction
261119B,ADVECO LTD T/A AO SMITH WATER,94555,1,"4,882.50",REACTIVE SMALL WORKS AND PROJ,02/12/2019,"4,882.50",Technical and Service Support,Works - Construction
261119B,ADVECO LTD T/A AO SMITH WATER,94573,1,"3,657.50",REACTIVE SMALL WORKS AND PROJ,02/12/2019,"3,657.50",Technical and Service Support,Works - Construction
261119B,ADVECO LTD T/A AO SMITH WATER,94574,1,"3,657.50",REACTIVE SMALL WORKS AND PROJ,02/12/2019,"3,657.50",Technical and Service Support,Works - Construction
261119B,ADVECO LTD T/A AO SMITH WATER,94598,1,"4,472.00",REACTIVE SMALL WORKS AND PROJ,02/12/2019,"4,472.00",Technical and Service Support,Works - Construction
261119B,ADVECO LTD T/A AO SMITH WATER,94605,1,"4,954.60",REACTIVE SMALL WORKS AND PROJ,02/12/2019,"4,954.60",Technical and Service Support,Works - Construction
261119B,ADVECO LTD T/A AO SMITH WATER,94606,1,"4,674.61",REACTIVE SMALL WORKS AND PROJ,02/12/2019,"4,674.61",Technical and Service Support,Works - Construction
261119V,ADVECO LTD T/A AO SMITH WATER,94607,1,"5,324.20",REACTIVE SMALL WORKS AND PROJ,02/12/2019,"5,324.20",Technical and Service Support,Works - Construction
261119B,ADVECO LTD T/A AO SMITH WATER,94608,1,"4,998.00",REACTIVE SMALL WORKS AND PROJ,02/12/2019,"4,998.00",Technical and Service Support,Works - Construction
261119B,ADVECO LTD T/A AO SMITH WATER,94609,1,"3,470.00",REACTIVE SMALL WORKS AND PROJ,02/12/2019,"3,470.00",Technical and Service Support,Works - Construction
261119B,ADVECO LTD T/A AO SMITH WATER,94610,1,"3,520.00",REACTIVE SMALL WORKS AND PROJ,02/12/2019,"3,520.00",Technical and Service Support,Works - Construction
261119B,ADVECO LTD T/A AO SMITH WATER,94611,1,"3,723.75",REACTIVE SMALL WORKS AND PROJ,02/12/2019,"3,723.75",Technical and Service Support,Works - Construction
261119V,ITC Concepts Ltd,AP0604-8,1,"437,916.00",DEVELOPMENT  EXPENSES-CONTRACT,02/12/2019,"437,916.00",Technical and Service Support,Consultancy
261119B,GMO GLOBALSIGN LTD,BM20190800699126,1,598,SOFTWARE COTS,02/12/2019,598,Infrastructure Team (ICT),ICT
800141230,ALLSTAR BUSINESS SOLUTIONS LTD,E2011911665,1,697.69,FUEL,02/12/2019,"23,192.62",Fire Stations (South West),Vehicle Management
800141230,ALLSTAR BUSINESS SOLUTIONS LTD,E2011911665,2,627.15,FUEL,02/12/2019,,Technical and Service Support,Vehicle Management
800141230,ALLSTAR BUSINESS SOLUTIONS LTD,E2011911665,3,496.53,FUEL,02/12/2019,,Fire Stations (South West),Vehicle Management
800141230,ALLSTAR BUSINESS SOLUTIONS LTD,E2011911665,4,479.79,FUEL,02/12/2019,,Fire Stations (North West),Vehicle Management
800141230,ALLSTAR BUSINESS SOLUTIONS LTD,E2011911665,5,459.09,FUEL,02/12/2019,,Fire Stations (North West),Vehicle Management
800141230,ALLSTAR BUSINESS SOLUTIONS LTD,E2011911665,6,399.91,FUEL,02/12/2019,,Fire Stations (South East),Vehicle Management
800141230,ALLSTAR BUSINESS SOLUTIONS LTD,E2011911665,7,399.36,FUEL,02/12/2019,,Fire Stations (South West),Vehicle Management
800141230,ALLSTAR BUSINESS SOLUTIONS LTD,E2011911665,8,392.47,FUEL,02/12/2019,,Fire Stations (North West),Vehicle Management
800141230,ALLSTAR BUSINESS SOLUTIONS LTD,E2011911665,9,378.51,FUEL,02/12/2019,,Fire Stations (North West),Vehicle Management
800141230,ALLSTAR BUSINESS SOLUTIONS LTD,E2011911665,10,362.34,FUEL,02/12/2019,,Fire Stations (North West),Vehicle Management
800141230,ALLSTAR BUSINESS SOLUTIONS LTD,E2011911665,11,361.59,FUEL,02/12/2019,,Fire Stations (South West),Vehicle Management
800141230,ALLSTAR BUSINESS SOLUTIONS LTD,E2011911665,12,360.94,FUEL,02/12/2019,,Fire Stations (South West),Vehicle Management
800141230,ALLSTAR BUSINESS SOLUTIONS LTD,E2011911665,13,351.09,FUEL,02/12/2019,,Fire Stations (North East),Vehicle Management
800141230,ALLSTAR BUSINESS SOLUTIONS LTD,E2011911665,14,344.06,FUEL,02/12/2019,,Fire Stations (North West),Vehicle Management
800141230,ALLSTAR BUSINESS SOLUTIONS LTD,E2011911665,15,343.4,FUEL,02/12/2019,,Fire Stations (South West),Vehicle Management
800141230,ALLSTAR BUSINESS SOLUTIONS LTD,E2011911665,16,333.83,FUEL,02/12/2019,,Fire Stations (North West),Vehicle Management
800141230,ALLSTAR BUSINESS SOLUTIONS LTD,E2011911665,17,332.18,FUEL,02/12/2019,,Fire Stations (South West),Vehicle Management
800141230,ALLSTAR BUSINESS SOLUTIONS LTD,E2011911665,18,290.68,FUEL,02/12/2019,,Fire Stations (South West),Vehicle Management
800141230,ALLSTAR BUSINESS SOLUTIONS LTD,E2011911665,19,289.84,FUEL,02/12/2019,,Fire Stations (South West),Vehicle Management
800141230,ALLSTAR BUSINESS SOLUTIONS LTD,E2011911665,20,281.51,FUEL,02/12/2019,,Fire Stations (South West),Vehicle Management
800141230,ALLSTAR BUSINESS SOLUTIONS LTD,E2011911665,21,279.36,FUEL,02/12/2019,,Fire Stations (South East),Vehicle Management
800141230,ALLSTAR BUSINESS SOLUTIONS LTD,E2011911665,22,279.23,FUEL,02/12/2019,,Fire Stations (South East),Vehicle Management
800141230,ALLSTAR BUSINESS SOLUTIONS LTD,E2011911665,23,277.71,FUEL,02/12/2019,,Fire Stations (North West),Vehicle Management
800141230,ALLSTAR BUSINESS SOLUTIONS LTD,E2011911665,24,270.13,FUEL,02/12/2019,,Fire Stations (North West),Vehicle Management
800141230,ALLSTAR BUSINESS SOLUTIONS LTD,E2011911665,25,268.4,FUEL,02/12/2019,,Fire Stations (North East),Vehicle Management
800141230,ALLSTAR BUSINESS SOLUTIONS LTD,E2011911665,26,267.21,FUEL,02/12/2019,,Fire Stations (North East),Vehicle Management
800141230,ALLSTAR BUSINESS SOLUTIONS LTD,E2011911665,27,259.95,FUEL,02/12/2019,,Fire Stations (North West),Vehicle Management
800141230,ALLSTAR BUSINESS SOLUTIONS LTD,E2011911665,28,257.58,FUEL,02/12/2019,,Fire Stations (North West),Vehicle Management
800141230,ALLSTAR BUSINESS SOLUTIONS LTD,E2011911665,29,257.07,FUEL,02/12/2019,,Fire Stations (North West),Vehicle Management
800141230,ALLSTAR BUSINESS SOLUTIONS LTD,E2011911665,30,251.13,FUEL,02/12/2019,,Fire Stations (South East),Vehicle Management
800141230,ALLSTAR BUSINESS SOLUTIONS LTD,E2011911665,31,249.76,FUEL,02/12/2019,,Fire Stations (North East),Vehicle Management
800141230,ALLSTAR BUSINESS SOLUTIONS LTD,E2011911665,32,248.31,FUEL,02/12/2019,,Fire Stations (South East),Vehicle Management
800141230,ALLSTAR BUSINESS SOLUTIONS LTD,E2011911665,33,247.81,FUEL,02/12/2019,,Fire Stations (North East),Vehicle Management
800141230,ALLSTAR BUSINESS SOLUTIONS LTD,E2011911665,34,247.32,FUEL,02/12/2019,,Fire Stations (North East),Vehicle Management
800141230,ALLSTAR BUSINESS SOLUTIONS LTD,E2011911665,35,239.16,FUEL,02/12/2019,,Fire Stations (North East),Vehicle Management
800141230,ALLSTAR BUSINESS SOLUTIONS LTD,E2011911665,36,236.26,FUEL,02/12/2019,,Fire Stations (South East),Vehicle Management
800141230,ALLSTAR BUSINESS SOLUTIONS LTD,E2011911665,37,234.8,FUEL,02/12/2019,,Fire Stations (North East),Vehicle Management
800141230,ALLSTAR BUSINESS SOLUTIONS LTD,E2011911665,38,230.7,FUEL,02/12/2019,,Fire Stations (South East),Vehicle Management
800141230,ALLSTAR BUSINESS SOLUTIONS LTD,E2011911665,39,229.97,FUEL,02/12/2019,,Fire Stations (South East),Vehicle Management
800141230,ALLSTAR BUSINESS SOLUTIONS LTD,E2011911665,40,227.79,FUEL,02/12/2019,,Fire Stations (North East),Vehicle Management
800141230,ALLSTAR BUSINESS SOLUTIONS LTD,E2011911665,41,224.13,FUEL,02/12/2019,,Fire Stations (South West),Vehicle Management
800141230,ALLSTAR BUSINESS SOLUTIONS LTD,E2011911665,42,222.5,FUEL,02/12/2019,,Fire Stations (South West),Vehicle Management
800141230,ALLSTAR BUSINESS SOLUTIONS LTD,E2011911665,43,222.19,FUEL,02/12/2019,,Fire Stations (South East),Vehicle Management
800141230,ALLSTAR BUSINESS SOLUTIONS LTD,E2011911665,44,221.96,FUEL,02/12/2019,,Fire Stations (South East),Vehicle Management
800141230,ALLSTAR BUSINESS SOLUTIONS LTD,E2011911665,45,217.48,FUEL,02/12/2019,,Fire Stations (North West),Vehicle Management
800141230,ALLSTAR BUSINESS SOLUTIONS LTD,E2011911665,46,217.29,FUEL,02/12/2019,,Central Operations,Vehicle Management
800141230,ALLSTAR BUSINESS SOLUTIONS LTD,E2011911665,47,209.78,FUEL,02/12/2019,,Fire Stations (North West),Vehicle Management
800141230,ALLSTAR BUSINESS SOLUTIONS LTD,E2011911665,48,201.73,FUEL,02/12/2019,,Fire Stations (North West),Vehicle Management
800141230,ALLSTAR BUSINESS SOLUTIONS LTD,E2011911665,49,201.39,FUEL,02/12/2019,,Operational Resilience,Vehicle Management
800141230,ALLSTAR BUSINESS SOLUTIONS LTD,E2011911665,50,199.65,FUEL,02/12/2019,,Fire Stations (South West),Vehicle Management
800141230,ALLSTAR BUSINESS SOLUTIONS LTD,E2011911665,51,195.29,FUEL,02/12/2019,,Fire Stations (South East),Vehicle Management
800141230,ALLSTAR BUSINESS SOLUTIONS LTD,E2011911665,52,193.45,FUEL,02/12/2019,,Enterprise Application Group (ICT),Vehicle Management
800141230,ALLSTAR BUSINESS SOLUTIONS LTD,E2011911665,53,190.85,FUEL,02/12/2019,,Fire Stations (South East),Vehicle Management
800141230,ALLSTAR BUSINESS SOLUTIONS LTD,E2011911665,54,188.85,FUEL,02/12/2019,,Procurement,Vehicle Management
800141230,ALLSTAR BUSINESS SOLUTIONS LTD,E2011911665,55,187.3,FUEL,02/12/2019,,Fire Stations (North East),Vehicle Management
800141230,ALLSTAR BUSINESS SOLUTIONS LTD,E2011911665,56,182.25,FUEL,02/12/2019,,Fire Stations (North West),Vehicle Management
800141230,ALLSTAR BUSINESS SOLUTIONS LTD,E2011911665,57,179.72,FUEL,02/12/2019,,Fire Stations (South East),Vehicle Management
800141230,ALLSTAR BUSINESS SOLUTIONS LTD,E2011911665,58,179.01,FUEL,02/12/2019,,Fire Stations (North East),Vehicle Management
800141230,ALLSTAR BUSINESS SOLUTIONS LTD,E2011911665,59,172.21,FUEL,02/12/2019,,Fire Stations (South East),Vehicle Management
800141230,ALLSTAR BUSINESS SOLUTIONS LTD,E2011911665,60,171.81,FUEL,02/12/2019,,Fire Stations (North East),Vehicle Management
800141230,ALLSTAR BUSINESS SOLUTIONS LTD,E2011911665,61,171.28,FUEL,02/12/2019,,Fire Stations (North West),Vehicle Management
800141230,ALLSTAR BUSINESS SOLUTIONS LTD,E2011911665,62,169.37,FUEL,02/12/2019,,Fire Stations (North East),Vehicle Management
800141230,ALLSTAR BUSINESS SOLUTIONS LTD,E2011911665,63,162.03,FUEL,02/12/2019,,Fire Stations (South East),Vehicle Management
800141230,ALLSTAR BUSINESS SOLUTIONS LTD,E2011911665,64,158.75,FUEL,02/12/2019,,Fire Stations (South East),Vehicle Management
800141230,ALLSTAR BUSINESS SOLUTIONS LTD,E2011911665,65,158.37,FUEL,02/12/2019,,Fire Stations (North East),Vehicle Management
800141230,ALLSTAR BUSINESS SOLUTIONS LTD,E2011911665,66,156.02,FUEL,02/12/2019,,Fire Stations (South West),Vehicle Management
800141230,ALLSTAR BUSINESS SOLUTIONS LTD,E2011911665,67,155.85,FUEL,02/12/2019,,Fire Stations (North East),Vehicle Management
800141230,ALLSTAR BUSINESS SOLUTIONS LTD,E2011911665,68,152.02,FUEL,02/12/2019,,Fire Stations (North East),Vehicle Management
800141230,ALLSTAR BUSINESS SOLUTIONS LTD,E2011911665,69,151.47,FUEL,02/12/2019,,Fire Stations (South East),Vehicle Management
800141230,ALLSTAR BUSINESS SOLUTIONS LTD,E2011911665,70,151.18,FUEL,02/12/2019,,Fire Stations (North West),Vehicle Management
800141230,ALLSTAR BUSINESS SOLUTIONS LTD,E2011911665,71,149.4,FUEL,02/12/2019,,Fire Stations (South East),Vehicle Management
800141230,ALLSTAR BUSINESS SOLUTIONS LTD,E2011911665,72,148.58,FUEL,02/12/2019,,Fire Stations (South West),Vehicle Management
800141230,ALLSTAR BUSINESS SOLUTIONS LTD,E2011911665,73,148.03,FUEL,02/12/2019,,Central Fire Safety,Vehicle Management
800141230,ALLSTAR BUSINESS SOLUTIONS LTD,E2011911665,74,146.12,FUEL,02/12/2019,,Fire Stations (South West),Vehicle Management
800141230,ALLSTAR BUSINESS SOLUTIONS LTD,E2011911665,75,144.38,FUEL,02/12/2019,,Fire Stations (North East),Vehicle Management
800141230,ALLSTAR BUSINESS SOLUTIONS LTD,E2011911665,76,142.51,FUEL,02/12/2019,,Fire Stations (North West),Vehicle Management
800141230,ALLSTAR BUSINESS SOLUTIONS LTD,E2011911665,77,139.46,FUEL,02/12/2019,,Fire Stations (South East),Vehicle Management
800141230,ALLSTAR BUSINESS SOLUTIONS LTD,E2011911665,78,132.09,FUEL,02/12/2019,,Fire Stations (South East),Vehicle Management
800141230,ALLSTAR BUSINESS SOLUTIONS LTD,E2011911665,79,127.53,FUEL,02/12/2019,,Fire Stations (North West),Vehicle Management
800141230,ALLSTAR BUSINESS SOLUTIONS LTD,E2011911665,80,126.79,FUEL,02/12/2019,,Fire Stations (South West),Vehicle Management
800141230,ALLSTAR BUSINESS SOLUTIONS LTD,E2011911665,81,125.3,FUEL,02/12/2019,,Fire Stations (South West),Vehicle Management
800141230,ALLSTAR BUSINESS SOLUTIONS LTD,E2011911665,82,124.81,FUEL,02/12/2019,,Fire Stations (North East),Vehicle Management
800141230,ALLSTAR BUSINESS SOLUTIONS LTD,E2011911665,83,123.87,FUEL,02/12/2019,,Fire Stations (North West),Vehicle Management
800141230,ALLSTAR BUSINESS SOLUTIONS LTD,E2011911665,84,121.78,FUEL,02/12/2019,,Fire Stations (North East),Vehicle Management
800141230,ALLSTAR BUSINESS SOLUTIONS LTD,E2011911665,85,117.49,FUEL,02/12/2019,,Fire Stations (North East),Vehicle Management
800141230,ALLSTAR BUSINESS SOLUTIONS LTD,E2011911665,86,115.8,FUEL,02/12/2019,,Fire Stations (North West),Vehicle Management
800141230,ALLSTAR BUSINESS SOLUTIONS LTD,E2011911665,87,113.47,FUEL,02/12/2019,,Fire Stations (North East),Vehicle Management
800141230,ALLSTAR BUSINESS SOLUTIONS LTD,E2011911665,88,113.18,FUEL,02/12/2019,,Fire Stations (North West),Vehicle Management
800141230,ALLSTAR BUSINESS SOLUTIONS LTD,E2011911665,89,111.32,FUEL,02/12/2019,,Fire Stations (South East),Vehicle Management
800141230,ALLSTAR BUSINESS SOLUTIONS LTD,E2011911665,90,107.27,FUEL,02/12/2019,,Fire Stations (South West),Vehicle Management
800141230,ALLSTAR BUSINESS SOLUTIONS LTD,E2011911665,91,106.81,FUEL,02/12/2019,,Technical and Service Support,Vehicle Management
800141230,ALLSTAR BUSINESS SOLUTIONS LTD,E2011911665,92,101.94,FUEL,02/12/2019,,Fire Stations (South East),Vehicle Management
800141230,ALLSTAR BUSINESS SOLUTIONS LTD,E2011911665,93,99.22,FUEL,02/12/2019,,Fire Stations (South East),Vehicle Management
800141230,ALLSTAR BUSINESS SOLUTIONS LTD,E2011911665,94,98.33,FUEL,02/12/2019,,Fire Stations (North East),Vehicle Management
800141230,ALLSTAR BUSINESS SOLUTIONS LTD,E2011911665,95,97.2,FUEL,02/12/2019,,Fire Stations (North East),Vehicle Management
800141230,ALLSTAR BUSINESS SOLUTIONS LTD,E2011911665,96,97.11,FUEL,02/12/2019,,Fire Stations (North East),Vehicle Management
800141230,ALLSTAR BUSINESS SOLUTIONS LTD,E2011911665,97,95.71,FUEL,02/12/2019,,Procurement,Vehicle Management
800141230,ALLSTAR BUSINESS SOLUTIONS LTD,E2011911665,98,93.96,FUEL,02/12/2019,,Fire Stations (North West),Vehicle Management
800141230,ALLSTAR BUSINESS SOLUTIONS LTD,E2011911665,99,93.2,FUEL,02/12/2019,,Fire Stations (North East),Vehicle Management
800141230,ALLSTAR BUSINESS SOLUTIONS LTD,E2011911665,100,92.32,FUEL,02/12/2019,,Fire Stations (North East),Vehicle Management
800141230,ALLSTAR BUSINESS SOLUTIONS LTD,E2011911665,101,82.67,FUEL,02/12/2019,,Fire Stations (South West),Vehicle Management
800141230,ALLSTAR BUSINESS SOLUTIONS LTD,E2011911665,102,78.8,FUEL,02/12/2019,,Fire Stations (North East),Vehicle Management
800141230,ALLSTAR BUSINESS SOLUTIONS LTD,E2011911665,103,78.03,FUEL,02/12/2019,,Fire Stations (South East),Vehicle Management
800141230,ALLSTAR BUSINESS SOLUTIONS LTD,E2011911665,104,75.35,FUEL,02/12/2019,,Fire Stations (North West),Vehicle Management
800141230,ALLSTAR BUSINESS SOLUTIONS LTD,E2011911665,105,74.19,FUEL,02/12/2019,,Community Safety,Vehicle Management
800141230,ALLSTAR BUSINESS SOLUTIONS LTD,E2011911665,106,73.67,FUEL,02/12/2019,,Fire Stations (North West),Vehicle Management
800141230,ALLSTAR BUSINESS SOLUTIONS LTD,E2011911665,107,72.21,FUEL,02/12/2019,,Fire Stations (North East),Vehicle Management
800141230,ALLSTAR BUSINESS SOLUTIONS LTD,E2011911665,108,64.93,FUEL,02/12/2019,,Fire Stations (South West),Vehicle Management
800141230,ALLSTAR BUSINESS SOLUTIONS LTD,E2011911665,109,61.18,FUEL,02/12/2019,,Fire Stations (South West),Vehicle Management
800141230,ALLSTAR BUSINESS SOLUTIONS LTD,E2011911665,110,56.64,FUEL,02/12/2019,,Operational Resilience,Vehicle Management
800141230,ALLSTAR BUSINESS SOLUTIONS LTD,E2011911665,111,55.83,FUEL,02/12/2019,,Fire Stations (South East),Vehicle Management
800141230,ALLSTAR BUSINESS SOLUTIONS LTD,E2011911665,112,55.38,FUEL,02/12/2019,,Fire Stations (South West),Vehicle Management
800141230,ALLSTAR BUSINESS SOLUTIONS LTD,E2011911665,113,51.94,FUEL,02/12/2019,,Community Safety,Vehicle Management
800141230,ALLSTAR BUSINESS SOLUTIONS LTD,E2011911665,114,48.82,FUEL,02/12/2019,,Fire Stations (North East),Vehicle Management
800141230,ALLSTAR BUSINESS SOLUTIONS LTD,E2011911665,115,43.64,FUEL,02/12/2019,,Fire Stations (South East),Vehicle Management
800141230,ALLSTAR BUSINESS SOLUTIONS LTD,E2011911665,116,34.48,FUEL,02/12/2019,,Fire Stations (North West),Vehicle Management
800141230,ALLSTAR BUSINESS SOLUTIONS LTD,E2011911665,117,23.09,FUEL,02/12/2019,,Fire Stations (North West),Vehicle Management
142897,LEX AUTOLEASE,EXI1362398,1,367.72,LEASE CAR CHARGES,02/12/2019,338.4,Procurement,Vehicle Management
142897,LEX AUTOLEASE,EXI1362398,2,-29.32,VAT CAR LEASING,02/12/2019,,Finance Services,Vehicle Management
271119G,BOXFIT UK LIMITED,I/R18005531,1,76.37,COMMUNITY RELATIONS,02/12/2019,"1,538.97",Community Safety,Facilities & Management Services
271119G,BOXFIT UK LIMITED,I/R18005531,2,63.62,COMMUNITY RELATIONS,02/12/2019,,Community Safety,Facilities & Management Services
271119G,BOXFIT UK LIMITED,I/R18005531,3,30.55,COMMUNITY RELATIONS,02/12/2019,,Community Safety,Facilities & Management Services
271119G,BOXFIT UK LIMITED,I/R18005531,4,17.99,COMMUNITY RELATIONS,02/12/2019,,Community Safety,Facilities & Management Services
271119G,BOXFIT UK LIMITED,I/R18005531,5,79.84,COMMUNITY RELATIONS,02/12/2019,,Community Safety,Facilities & Management Services
271119G,BOXFIT UK LIMITED,I/R18005531,6,59.48,COMMUNITY RELATIONS,02/12/2019,,Community Safety,Facilities & Management Services
271119G,BOXFIT UK LIMITED,I/R18005531,7,76.48,COMMUNITY RELATIONS,02/12/2019,,Community Safety,Facilities & Management Services
271119G,BOXFIT UK LIMITED,I/R18005531,8,29.74,COMMUNITY RELATIONS,02/12/2019,,Community Safety,Facilities & Management Services
271119G,BOXFIT UK LIMITED,I/R18005531,9,29.74,COMMUNITY RELATIONS,02/12/2019,,Community Safety,Facilities & Management Services
271119G,BOXFIT UK LIMITED,I/R18005531,10,59.48,COMMUNITY RELATIONS,02/12/2019,,Community Safety,Facilities & Management Services
271119G,BOXFIT UK LIMITED,I/R18005531,11,26.99,COMMUNITY RELATIONS,02/12/2019,,Community Safety,Facilities & Management Services
271119G,BOXFIT UK LIMITED,I/R18005531,12,26.99,COMMUNITY RELATIONS,02/12/2019,,Community Safety,Facilities & Management Services
271119G,BOXFIT UK LIMITED,I/R18005531,13,53.98,COMMUNITY RELATIONS,02/12/2019,,Community Safety,Facilities & Management Services
271119G,BOXFIT UK LIMITED,I/R18005531,14,39.98,COMMUNITY RELATIONS,02/12/2019,,Community Safety,Facilities & Management Services
271119G,BOXFIT UK LIMITED,I/R18005531,15,19.99,COMMUNITY RELATIONS,02/12/2019,,Community Safety,Facilities & Management Services
271119G,BOXFIT UK LIMITED,I/R18005531,16,39.98,COMMUNITY RELATIONS,02/12/2019,,Community Safety,Facilities & Management Services
271119G,BOXFIT UK LIMITED,I/R18005531,17,19.99,COMMUNITY RELATIONS,02/12/2019,,Community Safety,Facilities & Management Services
271119G,BOXFIT UK LIMITED,I/R18005531,18,84.99,COMMUNITY RELATIONS,02/12/2019,,Community Safety,Facilities & Management Services
271119G,BOXFIT UK LIMITED,I/R18005531,19,84.99,COMMUNITY RELATIONS,02/12/2019,,Community Safety,Facilities & Management Services
271119G,BOXFIT UK LIMITED,I/R18005531,20,84.99,COMMUNITY RELATIONS,02/12/2019,,Community Safety,Facilities & Management Services
271119G,BOXFIT UK LIMITED,I/R18005531,21,84.99,COMMUNITY RELATIONS,02/12/2019,,Community Safety,Facilities & Management Services
271119G,BOXFIT UK LIMITED,I/R18005531,22,47.97,COMMUNITY RELATIONS,02/12/2019,,Community Safety,Facilities & Management Services
271119G,BOXFIT UK LIMITED,I/R18005531,23,47.97,COMMUNITY RELATIONS,02/12/2019,,Community Safety,Facilities & Management Services
271119G,BOXFIT UK LIMITED,I/R18005531,24,84.99,COMMUNITY RELATIONS,02/12/2019,,Community Safety,Facilities & Management Services
271119G,BOXFIT UK LIMITED,I/R18005531,25,84.99,COMMUNITY RELATIONS,02/12/2019,,Community Safety,Facilities & Management Services
271119G,BOXFIT UK LIMITED,I/R18005531,26,84.99,COMMUNITY RELATIONS,02/12/2019,,Community Safety,Facilities & Management Services
271119G,BOXFIT UK LIMITED,I/R18005531,27,84.99,COMMUNITY RELATIONS,02/12/2019,,Community Safety,Facilities & Management Services
271119G,BOXFIT UK LIMITED,I/R18005531,28,11.92,COMMUNITY RELATIONS,02/12/2019,,Community Safety,Facilities & Management Services
261119B,LC ENERGY LTD,INV-3801,1,948.32,GAS,02/12/2019,948.32,Technical and Service Support,Utilities
142897,MR STEPHEN WALSH,INVSW131,1,"22,618.75",LEGAL PROFESSIONAL FEES-GENERL,02/12/2019,"22,618.75",Grenfell Investigation Legal Costs,Legal Services
261119B,DAVID BURROWS-SUTCLIFFE,LFB/027,1,"1,750.00",CONSULTANTS,02/12/2019,"1,750.00",Operational Resilience,Consultancy
800140934,INTERSERVE ( FACILITIES MGMT),MANF026445,1,"1,601.99",PLANNED CLEANING,02/12/2019,"115,043.63",Technical and Service Support,Cleaning & Janitorial
800140934,INTERSERVE ( FACILITIES MGMT),MANF026445,2,766.68,PLANNED CLEANING,02/12/2019,,Technical and Service Support,Cleaning & Janitorial
800140934,INTERSERVE ( FACILITIES MGMT),MANF026445,3,759.3,PLANNED CLEANING,02/12/2019,,Technical and Service Support,Cleaning & Janitorial
800140934,INTERSERVE ( FACILITIES MGMT),MANF026445,4,754.67,PLANNED CLEANING,02/12/2019,,Technical and Service Support,Cleaning & Janitorial
800140934,INTERSERVE ( FACILITIES MGMT),MANF026445,5,"1,315.67",PLANNED CLEANING,02/12/2019,,Technical and Service Support,Cleaning & Janitorial
800140934,INTERSERVE ( FACILITIES MGMT),MANF026445,6,882.41,PLANNED CLEANING,02/12/2019,,Technical and Service Support,Cleaning & Janitorial
800140934,INTERSERVE ( FACILITIES MGMT),MANF026445,7,619.64,PLANNED CLEANING,02/12/2019,,Technical and Service Support,Cleaning & Janitorial
800140934,INTERSERVE ( FACILITIES MGMT),MANF026445,8,760.72,PLANNED CLEANING,02/12/2019,,Technical and Service Support,Cleaning & Janitorial
800140934,INTERSERVE ( FACILITIES MGMT),MANF026445,9,"1,097.67",PLANNED CLEANING,02/12/2019,,Technical and Service Support,Cleaning & Janitorial
800140934,INTERSERVE ( FACILITIES MGMT),MANF026445,10,577.65,PLANNED CLEANING,02/12/2019,,Technical and Service Support,Cleaning & Janitorial
800140934,INTERSERVE ( FACILITIES MGMT),MANF026445,11,"1,400.89",PLANNED CLEANING,02/12/2019,,Technical and Service Support,Cleaning & Janitorial
800140934,INTERSERVE ( FACILITIES MGMT),MANF026445,12,523.83,PLANNED CLEANING,02/12/2019,,Technical and Service Support,Cleaning & Janitorial
800140934,INTERSERVE ( FACILITIES MGMT),MANF026445,13,587.84,PLANNED CLEANING,02/12/2019,,Technical and Service Support,Cleaning & Janitorial
800140934,INTERSERVE ( FACILITIES MGMT),MANF026445,14,505.9,PLANNED CLEANING,02/12/2019,,Technical and Service Support,Cleaning & Janitorial
800140934,INTERSERVE ( FACILITIES MGMT),MANF026445,15,607.4,PLANNED CLEANING,02/12/2019,,Technical and Service Support,Cleaning & Janitorial
800140934,INTERSERVE ( FACILITIES MGMT),MANF026445,16,"2,058.99",PLANNED CLEANING,02/12/2019,,Technical and Service Support,Cleaning & Janitorial
800140934,INTERSERVE ( FACILITIES MGMT),MANF026445,17,783.15,PLANNED CLEANING,02/12/2019,,Technical and Service Support,Cleaning & Janitorial
800140934,INTERSERVE ( FACILITIES MGMT),MANF026445,18,"1,538.07",PLANNED CLEANING,02/12/2019,,Technical and Service Support,Cleaning & Janitorial
800140934,INTERSERVE ( FACILITIES MGMT),MANF026445,19,823.47,PLANNED CLEANING,02/12/2019,,Technical and Service Support,Cleaning & Janitorial
800140934,INTERSERVE ( FACILITIES MGMT),MANF026445,20,"1,848.82",PLANNED CLEANING,02/12/2019,,Technical and Service Support,Cleaning & Janitorial
800140934,INTERSERVE ( FACILITIES MGMT),MANF026445,21,808.87,PLANNED CLEANING,02/12/2019,,Technical and Service Support,Cleaning & Janitorial
800140934,INTERSERVE ( FACILITIES MGMT),MANF026445,22,787.14,PLANNED CLEANING,02/12/2019,,Technical and Service Support,Cleaning & Janitorial
800140934,INTERSERVE ( FACILITIES MGMT),MANF026445,23,577.23,PLANNED CLEANING,02/12/2019,,Technical and Service Support,Cleaning & Janitorial
800140934,INTERSERVE ( FACILITIES MGMT),MANF026445,24,"1,675.21",PLANNED CLEANING,02/12/2019,,Technical and Service Support,Cleaning & Janitorial
800140934,INTERSERVE ( FACILITIES MGMT),MANF026445,25,"2,738.18",PLANNED CLEANING,02/12/2019,,Technical and Service Support,Cleaning & Janitorial
800140934,INTERSERVE ( FACILITIES MGMT),MANF026445,26,52.3,PLANNED CLEANING,02/12/2019,,Technical and Service Support,Cleaning & Janitorial
800140934,INTERSERVE ( FACILITIES MGMT),MANF026445,27,157.55,PLANNED CLEANING,02/12/2019,,Technical and Service Support,Cleaning & Janitorial
800140934,INTERSERVE ( FACILITIES MGMT),MANF026445,28,757.02,PLANNED CLEANING,02/12/2019,,Technical and Service Support,Cleaning & Janitorial
800140934,INTERSERVE ( FACILITIES MGMT),MANF026445,29,949.53,PLANNED CLEANING,02/12/2019,,Technical and Service Support,Cleaning & Janitorial
800140934,INTERSERVE ( FACILITIES MGMT),MANF026445,30,407.07,PLANNED CLEANING,02/12/2019,,Technical and Service Support,Cleaning & Janitorial
800140934,INTERSERVE ( FACILITIES MGMT),MANF026445,31,779.04,PLANNED CLEANING,02/12/2019,,Technical and Service Support,Cleaning & Janitorial
800140934,INTERSERVE ( FACILITIES MGMT),MANF026445,32,755.91,PLANNED CLEANING,02/12/2019,,Technical and Service Support,Cleaning & Janitorial
800140934,INTERSERVE ( FACILITIES MGMT),MANF026445,33,752.83,PLANNED CLEANING,02/12/2019,,Technical and Service Support,Cleaning & Janitorial
800140934,INTERSERVE ( FACILITIES MGMT),MANF026445,34,"1,843.05",PLANNED CLEANING,02/12/2019,,Technical and Service Support,Cleaning & Janitorial
800140934,INTERSERVE ( FACILITIES MGMT),MANF026445,35,951.08,PLANNED CLEANING,02/12/2019,,Technical and Service Support,Cleaning & Janitorial
800140934,INTERSERVE ( FACILITIES MGMT),MANF026445,36,"1,530.03",PLANNED CLEANING,02/12/2019,,Technical and Service Support,Cleaning & Janitorial
800140934,INTERSERVE ( FACILITIES MGMT),MANF026445,37,746.88,PLANNED CLEANING,02/12/2019,,Technical and Service Support,Cleaning & Janitorial
800140934,INTERSERVE ( FACILITIES MGMT),MANF026445,38,799.82,PLANNED CLEANING,02/12/2019,,Technical and Service Support,Cleaning & Janitorial
800140934,INTERSERVE ( FACILITIES MGMT),MANF026445,39,988.45,PLANNED CLEANING,02/12/2019,,Technical and Service Support,Cleaning & Janitorial
800140934,INTERSERVE ( FACILITIES MGMT),MANF026445,40,"1,626.83",PLANNED CLEANING,02/12/2019,,Technical and Service Support,Cleaning & Janitorial
800140934,INTERSERVE ( FACILITIES MGMT),MANF026445,41,"1,900.39",PLANNED CLEANING,02/12/2019,,Technical and Service Support,Cleaning & Janitorial
800140934,INTERSERVE ( FACILITIES MGMT),MANF026445,42,764.14,PLANNED CLEANING,02/12/2019,,Technical and Service Support,Cleaning & Janitorial
800140934,INTERSERVE ( FACILITIES MGMT),MANF026445,43,596.04,PLANNED CLEANING,02/12/2019,,Technical and Service Support,Cleaning & Janitorial
800140934,INTERSERVE ( FACILITIES MGMT),MANF026445,44,826.36,PLANNED CLEANING,02/12/2019,,Technical and Service Support,Cleaning & Janitorial
800140934,INTERSERVE ( FACILITIES MGMT),MANF026445,45,"1,641.15",PLANNED CLEANING,02/12/2019,,Technical and Service Support,Cleaning & Janitorial
800140934,INTERSERVE ( FACILITIES MGMT),MANF026445,46,585.26,PLANNED CLEANING,02/12/2019,,Technical and Service Support,Cleaning & Janitorial
800140934,INTERSERVE ( FACILITIES MGMT),MANF026445,47,"1,211.26",PLANNED CLEANING,02/12/2019,,Technical and Service Support,Cleaning & Janitorial
800140934,INTERSERVE ( FACILITIES MGMT),MANF026445,48,411.1,PLANNED CLEANING,02/12/2019,,Technical and Service Support,Cleaning & Janitorial
800140934,INTERSERVE ( FACILITIES MGMT),MANF026445,49,"1,240.67",PLANNED CLEANING,02/12/2019,,Technical and Service Support,Cleaning & Janitorial
800140934,INTERSERVE ( FACILITIES MGMT),MANF026445,50,"1,389.54",PLANNED CLEANING,02/12/2019,,Technical and Service Support,Cleaning & Janitorial
800140934,INTERSERVE ( FACILITIES MGMT),MANF026445,51,650.28,PLANNED CLEANING,02/12/2019,,Technical and Service Support,Cleaning & Janitorial
800140934,INTERSERVE ( FACILITIES MGMT),MANF026445,52,941.25,PLANNED CLEANING,02/12/2019,,Technical and Service Support,Cleaning & Janitorial
800140934,INTERSERVE ( FACILITIES MGMT),MANF026445,53,"1,122.31",PLANNED CLEANING,02/12/2019,,Technical and Service Support,Cleaning & Janitorial
800140934,INTERSERVE ( FACILITIES MGMT),MANF026445,54,747.65,PLANNED CLEANING,02/12/2019,,Technical and Service Support,Cleaning & Janitorial
800140934,INTERSERVE ( FACILITIES MGMT),MANF026445,55,"2,639.85",PLANNED CLEANING,02/12/2019,,Technical and Service Support,Cleaning & Janitorial
800140934,INTERSERVE ( FACILITIES MGMT),MANF026445,56,829.7,PLANNED CLEANING,02/12/2019,,Technical and Service Support,Cleaning & Janitorial
800140934,INTERSERVE ( FACILITIES MGMT),MANF026445,57,"1,696.83",PLANNED CLEANING,02/12/2019,,Technical and Service Support,Cleaning & Janitorial
800140934,INTERSERVE ( FACILITIES MGMT),MANF026445,58,749.7,PLANNED CLEANING,02/12/2019,,Technical and Service Support,Cleaning & Janitorial
800140934,INTERSERVE ( FACILITIES MGMT),MANF026445,59,"1,631.19",PLANNED CLEANING,02/12/2019,,Technical and Service Support,Cleaning & Janitorial
800140934,INTERSERVE ( FACILITIES MGMT),MANF026445,60,"1,631.19",PLANNED CLEANING,02/12/2019,,Technical and Service Support,Cleaning & Janitorial
800140934,INTERSERVE ( FACILITIES MGMT),MANF026445,61,"1,139.11",PLANNED CLEANING,02/12/2019,,Technical and Service Support,Cleaning & Janitorial
800140934,INTERSERVE ( FACILITIES MGMT),MANF026445,62,759.73,PLANNED CLEANING,02/12/2019,,Technical and Service Support,Cleaning & Janitorial
800140934,INTERSERVE ( FACILITIES MGMT),MANF026445,63,801.85,PLANNED CLEANING,02/12/2019,,Technical and Service Support,Cleaning & Janitorial
800140934,INTERSERVE ( FACILITIES MGMT),MANF026445,64,853.51,PLANNED CLEANING,02/12/2019,,Technical and Service Support,Cleaning & Janitorial
800140934,INTERSERVE ( FACILITIES MGMT),MANF026445,65,895.78,PLANNED CLEANING,02/12/2019,,Technical and Service Support,Cleaning & Janitorial
800140934,INTERSERVE ( FACILITIES MGMT),MANF026445,66,400.93,PLANNED CLEANING,02/12/2019,,Technical and Service Support,Cleaning & Janitorial
800140934,INTERSERVE ( FACILITIES MGMT),MANF026445,67,"1,123.20",PLANNED CLEANING,02/12/2019,,Technical and Service Support,Cleaning & Janitorial
800140934,INTERSERVE ( FACILITIES MGMT),MANF026445,68,988.68,PLANNED CLEANING,02/12/2019,,Technical and Service Support,Cleaning & Janitorial
800140934,INTERSERVE ( FACILITIES MGMT),MANF026445,69,"1,129.03",PLANNED CLEANING,02/12/2019,,Technical and Service Support,Cleaning & Janitorial
800140934,INTERSERVE ( FACILITIES MGMT),MANF026445,70,582.07,PLANNED CLEANING,02/12/2019,,Technical and Service Support,Cleaning & Janitorial
800140934,INTERSERVE ( FACILITIES MGMT),MANF026445,71,759.78,PLANNED CLEANING,02/12/2019,,Technical and Service Support,Cleaning & Janitorial
800140934,INTERSERVE ( FACILITIES MGMT),MANF026445,72,"1,219.81",PLANNED CLEANING,02/12/2019,,Technical and Service Support,Cleaning & Janitorial
800140934,INTERSERVE ( FACILITIES MGMT),MANF026445,73,463.66,PLANNED CLEANING,02/12/2019,,Technical and Service Support,Cleaning & Janitorial
800140934,INTERSERVE ( FACILITIES MGMT),MANF026445,74,"2,710.61",PLANNED CLEANING,02/12/2019,,Technical and Service Support,Cleaning & Janitorial
800140934,INTERSERVE ( FACILITIES MGMT),MANF026445,75,"1,225.08",PLANNED CLEANING,02/12/2019,,Technical and Service Support,Cleaning & Janitorial
800140934,INTERSERVE ( FACILITIES MGMT),MANF026445,76,768.39,PLANNED CLEANING,02/12/2019,,Technical and Service Support,Cleaning & Janitorial
800140934,INTERSERVE ( FACILITIES MGMT),MANF026445,77,"4,914.92",PLANNED CLEANING,02/12/2019,,Technical and Service Support,Cleaning & Janitorial
800140934,INTERSERVE ( FACILITIES MGMT),MANF026445,78,"2,405.18",PLANNED CLEANING,02/12/2019,,Technical and Service Support,Cleaning & Janitorial
800140934,INTERSERVE ( FACILITIES MGMT),MANF026445,79,576.58,PLANNED CLEANING,02/12/2019,,Technical and Service Support,Cleaning & Janitorial
800140934,INTERSERVE ( FACILITIES MGMT),MANF026445,80,592.11,PLANNED CLEANING,02/12/2019,,Technical and Service Support,Cleaning & Janitorial
800140934,INTERSERVE ( FACILITIES MGMT),MANF026445,81,"1,204.47",PLANNED CLEANING,02/12/2019,,Technical and Service Support,Cleaning & Janitorial
800140934,INTERSERVE ( FACILITIES MGMT),MANF026445,82,794.49,PLANNED CLEANING,02/12/2019,,Technical and Service Support,Cleaning & Janitorial
800140934,INTERSERVE ( FACILITIES MGMT),MANF026445,83,619.01,PLANNED CLEANING,02/12/2019,,Technical and Service Support,Cleaning & Janitorial
800140934,INTERSERVE ( FACILITIES MGMT),MANF026445,84,"1,104.74",PLANNED CLEANING,02/12/2019,,Technical and Service Support,Cleaning & Janitorial
800140934,INTERSERVE ( FACILITIES MGMT),MANF026445,85,737.07,PLANNED CLEANING,02/12/2019,,Technical and Service Support,Cleaning & Janitorial
800140934,INTERSERVE ( FACILITIES MGMT),MANF026445,86,974.18,PLANNED CLEANING,02/12/2019,,Technical and Service Support,Cleaning & Janitorial
800140934,INTERSERVE ( FACILITIES MGMT),MANF026445,87,18.64,PLANNED CLEANING,02/12/2019,,Technical and Service Support,Cleaning & Janitorial
800140934,INTERSERVE ( FACILITIES MGMT),MANF026445,88,776.88,PLANNED CLEANING,02/12/2019,,Technical and Service Support,Cleaning & Janitorial
800140934,INTERSERVE ( FACILITIES MGMT),MANF026445,89,"1,622.34",PLANNED CLEANING,02/12/2019,,Technical and Service Support,Cleaning & Janitorial
800140934,INTERSERVE ( FACILITIES MGMT),MANF026445,90,"1,083.31",PLANNED CLEANING,02/12/2019,,Technical and Service Support,Cleaning & Janitorial
800140934,INTERSERVE ( FACILITIES MGMT),MANF026445,91,9.54,PLANNED CLEANING,02/12/2019,,Technical and Service Support,Cleaning & Janitorial
800140934,INTERSERVE ( FACILITIES MGMT),MANF026445,92,496.86,PLANNED CLEANING,02/12/2019,,Technical and Service Support,Cleaning & Janitorial
800140934,INTERSERVE ( FACILITIES MGMT),MANF026445,93,"2,099.84",PLANNED CLEANING,02/12/2019,,Technical and Service Support,Cleaning & Janitorial
800140934,INTERSERVE ( FACILITIES MGMT),MANF026445,94,992.51,PLANNED CLEANING,02/12/2019,,Technical and Service Support,Cleaning & Janitorial
800140934,INTERSERVE ( FACILITIES MGMT),MANF026445,95,"1,570.91",PLANNED CLEANING,02/12/2019,,Technical and Service Support,Cleaning & Janitorial
800140934,INTERSERVE ( FACILITIES MGMT),MANF026445,96,124.91,PLANNED CLEANING,02/12/2019,,Technical and Service Support,Cleaning & Janitorial
800140934,INTERSERVE ( FACILITIES MGMT),MANF026445,97,788.45,PLANNED CLEANING,02/12/2019,,Technical and Service Support,Cleaning & Janitorial
800140934,INTERSERVE ( FACILITIES MGMT),MANF026445,98,"9,459.19",PLANNED CLEANING,02/12/2019,,Technical and Service Support,Cleaning & Janitorial
800140934,INTERSERVE ( FACILITIES MGMT),MANF026445,99,14.79,PLANNED CLEANING,02/12/2019,,Technical and Service Support,Cleaning & Janitorial
800140934,INTERSERVE ( FACILITIES MGMT),MANF026445,100,62.85,PLANNED CLEANING,02/12/2019,,Technical and Service Support,Cleaning & Janitorial
800140934,INTERSERVE ( FACILITIES MGMT),MANF026445,101,55.46,PLANNED CLEANING,02/12/2019,,Technical and Service Support,Cleaning & Janitorial
800140934,INTERSERVE ( FACILITIES MGMT),MANF026445,102,70.98,PLANNED CLEANING,02/12/2019,,Technical and Service Support,Cleaning & Janitorial
800140934,INTERSERVE ( FACILITIES MGMT),MANF026445,103,18.49,PLANNED CLEANING,02/12/2019,,Technical and Service Support,Cleaning & Janitorial
800140934,INTERSERVE ( FACILITIES MGMT),MANF026445,104,673.63,PLANNED CLEANING,02/12/2019,,Technical and Service Support,Cleaning & Janitorial
800140934,INTERSERVE ( FACILITIES MGMT),MANF026445,105,"1,104.11",PLANNED CLEANING,02/12/2019,,Technical and Service Support,Cleaning & Janitorial
800140934,INTERSERVE ( FACILITIES MGMT),MANF026445,106,"1,147.30",PLANNED CLEANING,02/12/2019,,Technical and Service Support,Cleaning & Janitorial
800140934,INTERSERVE ( FACILITIES MGMT),MANF026445,107,404.03,PLANNED CLEANING,02/12/2019,,Technical and Service Support,Cleaning & Janitorial
800140940,INTERSERVE ( FACILITIES MGMT),MANF026446,1,326.8,PLANNED CLEANING,02/12/2019,"22,882.39",Technical and Service Support,Cleaning & Janitorial
800140940,INTERSERVE ( FACILITIES MGMT),MANF026446,2,153.65,PLANNED CLEANING,02/12/2019,,Technical and Service Support,Cleaning & Janitorial
800140940,INTERSERVE ( FACILITIES MGMT),MANF026446,3,13.56,PLANNED CLEANING,02/12/2019,,Technical and Service Support,Cleaning & Janitorial
800140940,INTERSERVE ( FACILITIES MGMT),MANF026446,4,334.31,PLANNED CLEANING,02/12/2019,,Technical and Service Support,Cleaning & Janitorial
800140940,INTERSERVE ( FACILITIES MGMT),MANF026446,5,233.46,PLANNED CLEANING,02/12/2019,,Technical and Service Support,Cleaning & Janitorial
800140940,INTERSERVE ( FACILITIES MGMT),MANF026446,6,155.71,PLANNED CLEANING,02/12/2019,,Technical and Service Support,Cleaning & Janitorial
800140940,INTERSERVE ( FACILITIES MGMT),MANF026446,7,164.33,PLANNED CLEANING,02/12/2019,,Technical and Service Support,Cleaning & Janitorial
800140940,INTERSERVE ( FACILITIES MGMT),MANF026446,8,174.93,PLANNED CLEANING,02/12/2019,,Technical and Service Support,Cleaning & Janitorial
800140940,INTERSERVE ( FACILITIES MGMT),MANF026446,9,183.59,PLANNED CLEANING,02/12/2019,,Technical and Service Support,Cleaning & Janitorial
800140940,INTERSERVE ( FACILITIES MGMT),MANF026446,10,118.39,PLANNED CLEANING,02/12/2019,,Technical and Service Support,Cleaning & Janitorial
800140940,INTERSERVE ( FACILITIES MGMT),MANF026446,11,287.11,PLANNED CLEANING,02/12/2019,,Technical and Service Support,Cleaning & Janitorial
800140940,INTERSERVE ( FACILITIES MGMT),MANF026446,12,202.63,PLANNED CLEANING,02/12/2019,,Technical and Service Support,Cleaning & Janitorial
800140940,INTERSERVE ( FACILITIES MGMT),MANF026446,13,231.39,PLANNED CLEANING,02/12/2019,,Technical and Service Support,Cleaning & Janitorial
800140940,INTERSERVE ( FACILITIES MGMT),MANF026446,14,119.3,PLANNED CLEANING,02/12/2019,,Technical and Service Support,Cleaning & Janitorial
800140940,INTERSERVE ( FACILITIES MGMT),MANF026446,15,155.72,PLANNED CLEANING,02/12/2019,,Technical and Service Support,Cleaning & Janitorial
800140940,INTERSERVE ( FACILITIES MGMT),MANF026446,16,332.8,PLANNED CLEANING,02/12/2019,,Technical and Service Support,Cleaning & Janitorial
800140940,INTERSERVE ( FACILITIES MGMT),MANF026446,17,78.76,PLANNED CLEANING,02/12/2019,,Technical and Service Support,Cleaning & Janitorial
800140940,INTERSERVE ( FACILITIES MGMT),MANF026446,18,251.08,PLANNED CLEANING,02/12/2019,,Technical and Service Support,Cleaning & Janitorial
800140940,INTERSERVE ( FACILITIES MGMT),MANF026446,19,555.53,PLANNED CLEANING,02/12/2019,,Technical and Service Support,Cleaning & Janitorial
800140940,INTERSERVE ( FACILITIES MGMT),MANF026446,20,235.13,PLANNED CLEANING,02/12/2019,,Technical and Service Support,Cleaning & Janitorial
800140940,INTERSERVE ( FACILITIES MGMT),MANF026446,21,492.94,PLANNED CLEANING,02/12/2019,,Technical and Service Support,Cleaning & Janitorial
800140940,INTERSERVE ( FACILITIES MGMT),MANF026446,22,118.17,PLANNED CLEANING,02/12/2019,,Technical and Service Support,Cleaning & Janitorial
800140940,INTERSERVE ( FACILITIES MGMT),MANF026446,23,121.36,PLANNED CLEANING,02/12/2019,,Technical and Service Support,Cleaning & Janitorial
800140940,INTERSERVE ( FACILITIES MGMT),MANF026446,24,246.86,PLANNED CLEANING,02/12/2019,,Technical and Service Support,Cleaning & Janitorial
800140940,INTERSERVE ( FACILITIES MGMT),MANF026446,25,162.83,PLANNED CLEANING,02/12/2019,,Technical and Service Support,Cleaning & Janitorial
800140940,INTERSERVE ( FACILITIES MGMT),MANF026446,26,82.17,PLANNED CLEANING,02/12/2019,,Technical and Service Support,Cleaning & Janitorial
800140940,INTERSERVE ( FACILITIES MGMT),MANF026446,27,230.2,PLANNED CLEANING,02/12/2019,,Technical and Service Support,Cleaning & Janitorial
800140940,INTERSERVE ( FACILITIES MGMT),MANF026446,28,378.91,PLANNED CLEANING,02/12/2019,,Technical and Service Support,Cleaning & Janitorial
800140940,INTERSERVE ( FACILITIES MGMT),MANF026446,29,165.78,PLANNED CLEANING,02/12/2019,,Technical and Service Support,Cleaning & Janitorial
800140940,INTERSERVE ( FACILITIES MGMT),MANF026446,30,161.33,PLANNED CLEANING,02/12/2019,,Technical and Service Support,Cleaning & Janitorial
800140940,INTERSERVE ( FACILITIES MGMT),MANF026446,31,118.3,PLANNED CLEANING,02/12/2019,,Technical and Service Support,Cleaning & Janitorial
800140940,INTERSERVE ( FACILITIES MGMT),MANF026446,32,343.33,PLANNED CLEANING,02/12/2019,,Technical and Service Support,Cleaning & Janitorial
800140940,INTERSERVE ( FACILITIES MGMT),MANF026446,33,561.18,PLANNED CLEANING,02/12/2019,,Technical and Service Support,Cleaning & Janitorial
800140940,INTERSERVE ( FACILITIES MGMT),MANF026446,34,10.72,PLANNED CLEANING,02/12/2019,,Technical and Service Support,Cleaning & Janitorial
800140940,INTERSERVE ( FACILITIES MGMT),MANF026446,35,32.29,PLANNED CLEANING,02/12/2019,,Technical and Service Support,Cleaning & Janitorial
800140940,INTERSERVE ( FACILITIES MGMT),MANF026446,36,157.48,PLANNED CLEANING,02/12/2019,,Technical and Service Support,Cleaning & Janitorial
800140940,INTERSERVE ( FACILITIES MGMT),MANF026446,37,318.87,PLANNED CLEANING,02/12/2019,,Technical and Service Support,Cleaning & Janitorial
800140940,INTERSERVE ( FACILITIES MGMT),MANF026446,38,84.25,PLANNED CLEANING,02/12/2019,,Technical and Service Support,Cleaning & Janitorial
800140940,INTERSERVE ( FACILITIES MGMT),MANF026446,39,254.27,PLANNED CLEANING,02/12/2019,,Technical and Service Support,Cleaning & Janitorial
800140940,INTERSERVE ( FACILITIES MGMT),MANF026446,40,284.78,PLANNED CLEANING,02/12/2019,,Technical and Service Support,Cleaning & Janitorial
800140940,INTERSERVE ( FACILITIES MGMT),MANF026446,41,133.27,PLANNED CLEANING,02/12/2019,,Technical and Service Support,Cleaning & Janitorial
800140940,INTERSERVE ( FACILITIES MGMT),MANF026446,42,192.9,PLANNED CLEANING,02/12/2019,,Technical and Service Support,Cleaning & Janitorial
800140940,INTERSERVE ( FACILITIES MGMT),MANF026446,43,230.02,PLANNED CLEANING,02/12/2019,,Technical and Service Support,Cleaning & Janitorial
800140940,INTERSERVE ( FACILITIES MGMT),MANF026446,44,153.23,PLANNED CLEANING,02/12/2019,,Technical and Service Support,Cleaning & Janitorial
800140940,INTERSERVE ( FACILITIES MGMT),MANF026446,45,541.03,PLANNED CLEANING,02/12/2019,,Technical and Service Support,Cleaning & Janitorial
800140940,INTERSERVE ( FACILITIES MGMT),MANF026446,46,199.65,PLANNED CLEANING,02/12/2019,,Technical and Service Support,Cleaning & Janitorial
800140940,INTERSERVE ( FACILITIES MGMT),MANF026446,47,126.87,PLANNED CLEANING,02/12/2019,,Technical and Service Support,Cleaning & Janitorial
800140940,INTERSERVE ( FACILITIES MGMT),MANF026446,48,226.41,PLANNED CLEANING,02/12/2019,,Technical and Service Support,Cleaning & Janitorial
800140940,INTERSERVE ( FACILITIES MGMT),MANF026446,49,151.06,PLANNED CLEANING,02/12/2019,,Technical and Service Support,Cleaning & Janitorial
800140940,INTERSERVE ( FACILITIES MGMT),MANF026446,50,321.96,PLANNED CLEANING,02/12/2019,,Technical and Service Support,Cleaning & Janitorial
800140940,INTERSERVE ( FACILITIES MGMT),MANF026446,51,25.6,PLANNED CLEANING,02/12/2019,,Technical and Service Support,Cleaning & Janitorial
800140940,INTERSERVE ( FACILITIES MGMT),MANF026446,52,157.13,PLANNED CLEANING,02/12/2019,,Technical and Service Support,Cleaning & Janitorial
800140940,INTERSERVE ( FACILITIES MGMT),MANF026446,53,150.5,PLANNED CLEANING,02/12/2019,,Technical and Service Support,Cleaning & Janitorial
800140940,INTERSERVE ( FACILITIES MGMT),MANF026446,54,154.67,PLANNED CLEANING,02/12/2019,,Technical and Service Support,Cleaning & Janitorial
800140940,INTERSERVE ( FACILITIES MGMT),MANF026446,55,269.64,PLANNED CLEANING,02/12/2019,,Technical and Service Support,Cleaning & Janitorial
800140940,INTERSERVE ( FACILITIES MGMT),MANF026446,56,155.91,PLANNED CLEANING,02/12/2019,,Technical and Service Support,Cleaning & Janitorial
800140940,INTERSERVE ( FACILITIES MGMT),MANF026446,57,224.96,PLANNED CLEANING,02/12/2019,,Technical and Service Support,Cleaning & Janitorial
800140940,INTERSERVE ( FACILITIES MGMT),MANF026446,58,168.77,PLANNED CLEANING,02/12/2019,,Technical and Service Support,Cleaning & Janitorial
800140940,INTERSERVE ( FACILITIES MGMT),MANF026446,59,161.59,PLANNED CLEANING,02/12/2019,,Technical and Service Support,Cleaning & Janitorial
800140940,INTERSERVE ( FACILITIES MGMT),MANF026446,60,"2,196.79",PLANNED CLEANING,02/12/2019,,Technical and Service Support,Cleaning & Janitorial
800140940,INTERSERVE ( FACILITIES MGMT),MANF026446,61,12.88,PLANNED CLEANING,02/12/2019,,Technical and Service Support,Cleaning & Janitorial
800140940,INTERSERVE ( FACILITIES MGMT),MANF026446,62,11.36,PLANNED CLEANING,02/12/2019,,Technical and Service Support,Cleaning & Janitorial
800140940,INTERSERVE ( FACILITIES MGMT),MANF026446,63,14.55,PLANNED CLEANING,02/12/2019,,Technical and Service Support,Cleaning & Janitorial
800140940,INTERSERVE ( FACILITIES MGMT),MANF026446,64,3.03,PLANNED CLEANING,02/12/2019,,Technical and Service Support,Cleaning & Janitorial
800140940,INTERSERVE ( FACILITIES MGMT),MANF026446,65,3.78,PLANNED CLEANING,02/12/2019,,Technical and Service Support,Cleaning & Janitorial
800140940,INTERSERVE ( FACILITIES MGMT),MANF026446,66,138.06,PLANNED CLEANING,02/12/2019,,Technical and Service Support,Cleaning & Janitorial
800140940,INTERSERVE ( FACILITIES MGMT),MANF026446,67,226.28,PLANNED CLEANING,02/12/2019,,Technical and Service Support,Cleaning & Janitorial
800140940,INTERSERVE ( FACILITIES MGMT),MANF026446,68,119.94,PLANNED CLEANING,02/12/2019,,Technical and Service Support,Cleaning & Janitorial
800140940,INTERSERVE ( FACILITIES MGMT),MANF026446,69,248.24,PLANNED CLEANING,02/12/2019,,Technical and Service Support,Cleaning & Janitorial
800140940,INTERSERVE ( FACILITIES MGMT),MANF026446,70,159.22,PLANNED CLEANING,02/12/2019,,Technical and Service Support,Cleaning & Janitorial
800140940,INTERSERVE ( FACILITIES MGMT),MANF026446,71,332.49,PLANNED CLEANING,02/12/2019,,Technical and Service Support,Cleaning & Janitorial
800140940,INTERSERVE ( FACILITIES MGMT),MANF026446,72,222.02,PLANNED CLEANING,02/12/2019,,Technical and Service Support,Cleaning & Janitorial
800140940,INTERSERVE ( FACILITIES MGMT),MANF026446,73,3.82,PLANNED CLEANING,02/12/2019,,Technical and Service Support,Cleaning & Janitorial
800140940,INTERSERVE ( FACILITIES MGMT),MANF026446,74,1.96,PLANNED CLEANING,02/12/2019,,Technical and Service Support,Cleaning & Janitorial
800140940,INTERSERVE ( FACILITIES MGMT),MANF026446,75,101.83,PLANNED CLEANING,02/12/2019,,Technical and Service Support,Cleaning & Janitorial
800140940,INTERSERVE ( FACILITIES MGMT),MANF026446,76,431.47,PLANNED CLEANING,02/12/2019,,Technical and Service Support,Cleaning & Janitorial
800140940,INTERSERVE ( FACILITIES MGMT),MANF026446,77,203.42,PLANNED CLEANING,02/12/2019,,Technical and Service Support,Cleaning & Janitorial
800140940,INTERSERVE ( FACILITIES MGMT),MANF026446,78,313.57,PLANNED CLEANING,02/12/2019,,Technical and Service Support,Cleaning & Janitorial
800140940,INTERSERVE ( FACILITIES MGMT),MANF026446,79,153.07,PLANNED CLEANING,02/12/2019,,Technical and Service Support,Cleaning & Janitorial
800140940,INTERSERVE ( FACILITIES MGMT),MANF026446,80,107.36,PLANNED CLEANING,02/12/2019,,Technical and Service Support,Cleaning & Janitorial
800140940,INTERSERVE ( FACILITIES MGMT),MANF026446,81,103.69,PLANNED CLEANING,02/12/2019,,Technical and Service Support,Cleaning & Janitorial
800140940,INTERSERVE ( FACILITIES MGMT),MANF026446,82,124.48,PLANNED CLEANING,02/12/2019,,Technical and Service Support,Cleaning & Janitorial
800140940,INTERSERVE ( FACILITIES MGMT),MANF026446,83,421.99,PLANNED CLEANING,02/12/2019,,Technical and Service Support,Cleaning & Janitorial
800140940,INTERSERVE ( FACILITIES MGMT),MANF026446,84,120.48,PLANNED CLEANING,02/12/2019,,Technical and Service Support,Cleaning & Janitorial
800140940,INTERSERVE ( FACILITIES MGMT),MANF026446,85,160.51,PLANNED CLEANING,02/12/2019,,Technical and Service Support,Cleaning & Janitorial
800140940,INTERSERVE ( FACILITIES MGMT),MANF026446,86,315.23,PLANNED CLEANING,02/12/2019,,Technical and Service Support,Cleaning & Janitorial
800140940,INTERSERVE ( FACILITIES MGMT),MANF026446,87,155.15,PLANNED CLEANING,02/12/2019,,Technical and Service Support,Cleaning & Janitorial
800140940,INTERSERVE ( FACILITIES MGMT),MANF026446,88,194.61,PLANNED CLEANING,02/12/2019,,Technical and Service Support,Cleaning & Janitorial
800140940,INTERSERVE ( FACILITIES MGMT),MANF026446,89,163.92,PLANNED CLEANING,02/12/2019,,Technical and Service Support,Cleaning & Janitorial
800140940,INTERSERVE ( FACILITIES MGMT),MANF026446,90,202.58,PLANNED CLEANING,02/12/2019,,Technical and Service Support,Cleaning & Janitorial
800140940,INTERSERVE ( FACILITIES MGMT),MANF026446,91,333.42,PLANNED CLEANING,02/12/2019,,Technical and Service Support,Cleaning & Janitorial
800140940,INTERSERVE ( FACILITIES MGMT),MANF026446,92,389.48,PLANNED CLEANING,02/12/2019,,Technical and Service Support,Cleaning & Janitorial
800140940,INTERSERVE ( FACILITIES MGMT),MANF026446,93,156.6,PLANNED CLEANING,02/12/2019,,Technical and Service Support,Cleaning & Janitorial
800140940,INTERSERVE ( FACILITIES MGMT),MANF026446,94,122.15,PLANNED CLEANING,02/12/2019,,Technical and Service Support,Cleaning & Janitorial
800140940,INTERSERVE ( FACILITIES MGMT),MANF026446,95,169.36,PLANNED CLEANING,02/12/2019,,Technical and Service Support,Cleaning & Janitorial
800140940,INTERSERVE ( FACILITIES MGMT),MANF026446,96,336.35,PLANNED CLEANING,02/12/2019,,Technical and Service Support,Cleaning & Janitorial
800140940,INTERSERVE ( FACILITIES MGMT),MANF026446,97,170.04,PLANNED CLEANING,02/12/2019,,Technical and Service Support,Cleaning & Janitorial
800140940,INTERSERVE ( FACILITIES MGMT),MANF026446,98,347.76,PLANNED CLEANING,02/12/2019,,Technical and Service Support,Cleaning & Janitorial
800140940,INTERSERVE ( FACILITIES MGMT),MANF026446,99,214.89,PLANNED CLEANING,02/12/2019,,Technical and Service Support,Cleaning & Janitorial
800140940,INTERSERVE ( FACILITIES MGMT),MANF026446,100,170.25,PLANNED CLEANING,02/12/2019,,Technical and Service Support,Cleaning & Janitorial
800140940,INTERSERVE ( FACILITIES MGMT),MANF026446,101,83.42,PLANNED CLEANING,02/12/2019,,Technical and Service Support,Cleaning & Janitorial
800140940,INTERSERVE ( FACILITIES MGMT),MANF026446,102,159.66,PLANNED CLEANING,02/12/2019,,Technical and Service Support,Cleaning & Janitorial
800140940,INTERSERVE ( FACILITIES MGMT),MANF026446,103,154.92,PLANNED CLEANING,02/12/2019,,Technical and Service Support,Cleaning & Janitorial
800140940,INTERSERVE ( FACILITIES MGMT),MANF026446,104,154.29,PLANNED CLEANING,02/12/2019,,Technical and Service Support,Cleaning & Janitorial
800140940,INTERSERVE ( FACILITIES MGMT),MANF026446,105,377.73,PLANNED CLEANING,02/12/2019,,Technical and Service Support,Cleaning & Janitorial
800140940,INTERSERVE ( FACILITIES MGMT),MANF026446,106,194.92,PLANNED CLEANING,02/12/2019,,Technical and Service Support,Cleaning & Janitorial
142897,LEX AUTOLEASE,MRI9437526,1,"5,703.42",LEASE CAR CHARGES,02/12/2019,"5,230.92",Procurement,Vehicle Management
142897,LEX AUTOLEASE,MRI9437526,2,-472.5,VAT CAR LEASING,02/12/2019,,Finance Services,Vehicle Management
142897,LEX AUTOLEASE,MRI9437763,1,"5,131.75",LEASE CAR CHARGES,02/12/2019,"4,708.80",Procurement,Vehicle Management
142897,LEX AUTOLEASE,MRI9437763,2,-422.95,VAT CAR LEASING,02/12/2019,,Finance Services,Vehicle Management
142897,LEX AUTOLEASE,MRI9437799,1,"5,841.95",LEASE CAR CHARGES,02/12/2019,"5,374.44",Procurement,Vehicle Management
142897,LEX AUTOLEASE,MRI9437799,2,-467.51,VAT CAR LEASING,02/12/2019,,Finance Services,Vehicle Management
142897,LEX AUTOLEASE,MRI9438015,1,"6,036.49",LEASE CAR CHARGES,02/12/2019,"5,539.92",Procurement,Vehicle Management
142897,LEX AUTOLEASE,MRI9438015,2,-496.57,VAT CAR LEASING,02/12/2019,,Finance Services,Vehicle Management
142897,LEX AUTOLEASE,MRI9438084,1,"4,343.23",LEASE CAR CHARGES,02/12/2019,"3,995.76",Procurement,Vehicle Management
142897,LEX AUTOLEASE,MRI9438084,2,-347.47,VAT CAR LEASING,02/12/2019,,Finance Services,Vehicle Management
142897,LEX AUTOLEASE,MRI9438321,1,"4,324.67",LEASE CAR CHARGES,02/12/2019,"3,997.32",Procurement,Vehicle Management
142897,LEX AUTOLEASE,MRI9438321,2,-327.35,VAT CAR LEASING,02/12/2019,,Finance Services,Vehicle Management
221119K,VODAFONE LIMITED,NN97763,1,"1,200.00",MOBILE PLAN CHARGES,02/12/2019,"1,200.00",Enterprise Application Group (ICT),ICT
800141227,APEX LIFT & ESCALATOR,NV89400,1,370.64,REACTIVE LIFTS,02/12/2019,370.64,Technical and Service Support,Facilities & Management Services
261119B,SAFETYNET SOLUTIONS LIMITED,PSI-0041991,1,821.14,OFFICE EQUIPMENT,02/12/2019,821.14,Technical and Service Support,Stationery
271119V,Earth Environmental,R0257-11-19,1,"9,870.75",DEVELOPMENT  EXPENSES-CONTRACT,02/12/2019,"9,870.75",Technical and Service Support,Consultancy
261119B,BATES OFFICE SERVICES LTD,SI187260,1,145,MULTIMEDIA EQUIPMENT,02/12/2019,290,People Services,ICT
261119B,BATES OFFICE SERVICES LTD,SI187260,2,145,MULTIMEDIA EQUIPMENT,02/12/2019,,People Services,ICT
800141202,THOMAS KNEALE & CO LTD,TK128219,1,1.48,COMMUNITY RELATIONS,02/12/2019,336.51,Fire Stations (North East),Facilities & Management Services
800141202,THOMAS KNEALE & CO LTD,TK128219,2,10.89,BEDS & SOFT FURNISHINGS,02/12/2019,,Fire Stations (South West),Furniture & Soft Furnishings
800141202,THOMAS KNEALE & CO LTD,TK128219,3,10.89,BEDS & SOFT FURNISHINGS,02/12/2019,,Fire Stations (South West),Furniture & Soft Furnishings
800141202,THOMAS KNEALE & CO LTD,TK128219,4,3.47,BEDS & SOFT FURNISHINGS,02/12/2019,,Fire Stations (North West),Furniture & Soft Furnishings
800141202,THOMAS KNEALE & CO LTD,TK128219,5,1.48,BEDS & SOFT FURNISHINGS,02/12/2019,,Fire Stations (North West),Furniture & Soft Furnishings
800141202,THOMAS KNEALE & CO LTD,TK128219,6,10.89,BEDS & SOFT FURNISHINGS,02/12/2019,,Fire Stations (North West),Furniture & Soft Furnishings
800141202,THOMAS KNEALE & CO LTD,TK128219,7,0.99,BEDS & SOFT FURNISHINGS,02/12/2019,,Fire Stations (North West),Furniture & Soft Furnishings
800141202,THOMAS KNEALE & CO LTD,TK128219,8,10.89,BEDS & SOFT FURNISHINGS,02/12/2019,,Central Fire Safety,Furniture & Soft Furnishings
800141202,THOMAS KNEALE & CO LTD,TK128219,9,0.99,BEDS & SOFT FURNISHINGS,02/12/2019,,Fire Stations (North East),Furniture & Soft Furnishings
800141202,THOMAS KNEALE & CO LTD,TK128219,10,10.89,BEDS & SOFT FURNISHINGS,02/12/2019,,Fire Stations (North East),Furniture & Soft Furnishings
800141202,THOMAS KNEALE & CO LTD,TK128219,11,1.48,BEDS & SOFT FURNISHINGS,02/12/2019,,Fire Stations (North East),Furniture & Soft Furnishings
800141202,THOMAS KNEALE & CO LTD,TK128219,12,3.47,BEDS & SOFT FURNISHINGS,02/12/2019,,Fire Stations (North East),Furniture & Soft Furnishings
800141202,THOMAS KNEALE & CO LTD,TK128219,13,1.48,BEDS & SOFT FURNISHINGS,02/12/2019,,Fire Stations (North East),Furniture & Soft Furnishings
800141202,THOMAS KNEALE & CO LTD,TK128219,14,10.89,BEDS & SOFT FURNISHINGS,02/12/2019,,Fire Stations (North East),Furniture & Soft Furnishings
800141202,THOMAS KNEALE & CO LTD,TK128219,15,0.99,BEDS & SOFT FURNISHINGS,02/12/2019,,Fire Stations (North East),Furniture & Soft Furnishings
800141202,THOMAS KNEALE & CO LTD,TK128219,16,10.89,BEDS & SOFT FURNISHINGS,02/12/2019,,Fire Stations (South East),Furniture & Soft Furnishings
800141202,THOMAS KNEALE & CO LTD,TK128219,17,3.47,BEDS & SOFT FURNISHINGS,02/12/2019,,Fire Stations (South East),Furniture & Soft Furnishings
800141202,THOMAS KNEALE & CO LTD,TK128219,18,10.89,BEDS & SOFT FURNISHINGS,02/12/2019,,Fire Stations (South West),Furniture & Soft Furnishings
800141202,THOMAS KNEALE & CO LTD,TK128219,19,0.99,BEDS & SOFT FURNISHINGS,02/12/2019,,Fire Stations (South West),Furniture & Soft Furnishings
800141202,THOMAS KNEALE & CO LTD,TK128219,20,10.89,BEDS & SOFT FURNISHINGS,02/12/2019,,Fire Stations (South East),Furniture & Soft Furnishings
800141202,THOMAS KNEALE & CO LTD,TK128219,21,3.47,BEDS & SOFT FURNISHINGS,02/12/2019,,Fire Stations (South East),Furniture & Soft Furnishings
800141202,THOMAS KNEALE & CO LTD,TK128219,22,1.48,BEDS & SOFT FURNISHINGS,02/12/2019,,Fire Stations (South East),Furniture & Soft Furnishings
800141202,THOMAS KNEALE & CO LTD,TK128219,23,1.48,BEDS & SOFT FURNISHINGS,02/12/2019,,Fire Stations (North West),Furniture & Soft Furnishings
800141202,THOMAS KNEALE & CO LTD,TK128219,24,3.47,BEDS & SOFT FURNISHINGS,02/12/2019,,Fire Stations (North West),Furniture & Soft Furnishings
800141202,THOMAS KNEALE & CO LTD,TK128219,25,10.89,BEDS & SOFT FURNISHINGS,02/12/2019,,Fire Stations (North West),Furniture & Soft Furnishings
800141202,THOMAS KNEALE & CO LTD,TK128219,26,0.99,BEDS & SOFT FURNISHINGS,02/12/2019,,Fire Stations (North West),Furniture & Soft Furnishings
800141202,THOMAS KNEALE & CO LTD,TK128219,27,3.47,BEDS & SOFT FURNISHINGS,02/12/2019,,Fire Stations (North West),Furniture & Soft Furnishings
800141202,THOMAS KNEALE & CO LTD,TK128219,28,1.48,BEDS & SOFT FURNISHINGS,02/12/2019,,Fire Stations (North West),Furniture & Soft Furnishings
800141202,THOMAS KNEALE & CO LTD,TK128219,29,10.89,BEDS & SOFT FURNISHINGS,02/12/2019,,Fire Stations (North East),Furniture & Soft Furnishings
800141202,THOMAS KNEALE & CO LTD,TK128219,30,10.89,BEDS & SOFT FURNISHINGS,02/12/2019,,Fire Stations (North East),Furniture & Soft Furnishings
800141202,THOMAS KNEALE & CO LTD,TK128219,31,0.99,BEDS & SOFT FURNISHINGS,02/12/2019,,Fire Stations (North East),Furniture & Soft Furnishings
800141202,THOMAS KNEALE & CO LTD,TK128219,32,3.47,BEDS & SOFT FURNISHINGS,02/12/2019,,Fire Stations (North East),Furniture & Soft Furnishings
800141202,THOMAS KNEALE & CO LTD,TK128219,33,1.48,BEDS & SOFT FURNISHINGS,02/12/2019,,Fire Stations (North East),Furniture & Soft Furnishings
800141202,THOMAS KNEALE & CO LTD,TK128219,34,10.89,BEDS & SOFT FURNISHINGS,02/12/2019,,Fire Stations (North East),Furniture & Soft Furnishings
800141202,THOMAS KNEALE & CO LTD,TK128219,35,10.89,BEDS & SOFT FURNISHINGS,02/12/2019,,Fire Stations (North East),Furniture & Soft Furnishings
800141202,THOMAS KNEALE & CO LTD,TK128219,36,3.47,BEDS & SOFT FURNISHINGS,02/12/2019,,Fire Stations (North East),Furniture & Soft Furnishings
800141202,THOMAS KNEALE & CO LTD,TK128219,37,1.48,BEDS & SOFT FURNISHINGS,02/12/2019,,Fire Stations (North East),Furniture & Soft Furnishings
800141202,THOMAS KNEALE & CO LTD,TK128219,38,3.47,BEDS & SOFT FURNISHINGS,02/12/2019,,Fire Stations (South East),Furniture & Soft Furnishings
800141202,THOMAS KNEALE & CO LTD,TK128219,39,24.9,BEDS & SOFT FURNISHINGS,02/12/2019,,Fire Stations (South East),Furniture & Soft Furnishings
800141202,THOMAS KNEALE & CO LTD,TK128219,40,3.47,BEDS & SOFT FURNISHINGS,02/12/2019,,Fire Stations (North East),Furniture & Soft Furnishings
800141202,THOMAS KNEALE & CO LTD,TK128219,41,10.89,BEDS & SOFT FURNISHINGS,02/12/2019,,Fire Stations (North West),Furniture & Soft Furnishings
800141202,THOMAS KNEALE & CO LTD,TK128219,42,10.89,BEDS & SOFT FURNISHINGS,02/12/2019,,Fire Stations (North West),Furniture & Soft Furnishings
800141202,THOMAS KNEALE & CO LTD,TK128219,43,0.99,BEDS & SOFT FURNISHINGS,02/12/2019,,Fire Stations (North West),Furniture & Soft Furnishings
800141202,THOMAS KNEALE & CO LTD,TK128219,44,3.47,BEDS & SOFT FURNISHINGS,02/12/2019,,Fire Stations (North West),Furniture & Soft Furnishings
800141202,THOMAS KNEALE & CO LTD,TK128219,45,1.48,BEDS & SOFT FURNISHINGS,02/12/2019,,Fire Stations (North West),Furniture & Soft Furnishings
800141202,THOMAS KNEALE & CO LTD,TK128219,46,2.84,BEDS & SOFT FURNISHINGS,02/12/2019,,Fire Stations (North West),Furniture & Soft Furnishings
800141202,THOMAS KNEALE & CO LTD,TK128219,47,10.41,BEDS & SOFT FURNISHINGS,02/12/2019,,Fire Stations (South East),Furniture & Soft Furnishings
800141202,THOMAS KNEALE & CO LTD,TK128219,48,0.99,BEDS & SOFT FURNISHINGS,02/12/2019,,Fire Stations (South East),Furniture & Soft Furnishings
800141202,THOMAS KNEALE & CO LTD,TK128219,49,10.89,BEDS & SOFT FURNISHINGS,02/12/2019,,Fire Stations (South East),Furniture & Soft Furnishings
800141202,THOMAS KNEALE & CO LTD,TK128219,50,0.99,BEDS & SOFT FURNISHINGS,02/12/2019,,Fire Stations (South East),Furniture & Soft Furnishings
800141202,THOMAS KNEALE & CO LTD,TK128219,51,6.94,BEDS & SOFT FURNISHINGS,02/12/2019,,Fire Stations (South East),Furniture & Soft Furnishings
800141202,THOMAS KNEALE & CO LTD,TK128219,52,1.48,BEDS & SOFT FURNISHINGS,02/12/2019,,Fire Stations (South East),Furniture & Soft Furnishings
800141202,THOMAS KNEALE & CO LTD,TK128219,53,1.48,BEDS & SOFT FURNISHINGS,02/12/2019,,Fire Stations (South East),Furniture & Soft Furnishings
800141202,THOMAS KNEALE & CO LTD,TK128219,54,10.89,BEDS & SOFT FURNISHINGS,02/12/2019,,Fire Stations (North West),Furniture & Soft Furnishings
800141202,THOMAS KNEALE & CO LTD,TK128219,55,0.99,BEDS & SOFT FURNISHINGS,02/12/2019,,Fire Stations (North West),Furniture & Soft Furnishings
800141202,THOMAS KNEALE & CO LTD,TK128219,56,3.47,BEDS & SOFT FURNISHINGS,02/12/2019,,Fire Stations (North West),Furniture & Soft Furnishings
800141202,THOMAS KNEALE & CO LTD,TK128219,57,1.48,BEDS & SOFT FURNISHINGS,02/12/2019,,Fire Stations (North West),Furniture & Soft Furnishings
800141202,THOMAS KNEALE & CO LTD,TK128219,58,3.47,BEDS & SOFT FURNISHINGS,02/12/2019,,Fire Stations (South West),Furniture & Soft Furnishings
800141202,THOMAS KNEALE & CO LTD,TK128219,59,1.48,BEDS & SOFT FURNISHINGS,02/12/2019,,Fire Stations (South West),Furniture & Soft Furnishings
800141202,THOMAS KNEALE & CO LTD,TK128219,60,2.84,BEDS & SOFT FURNISHINGS,02/12/2019,,Fire Stations (North West),Furniture & Soft Furnishings
800141202,THOMAS KNEALE & CO LTD,TK128219,61,10.89,BEDS & SOFT FURNISHINGS,02/12/2019,,Fire Stations (South East),Furniture & Soft Furnishings
800141202,THOMAS KNEALE & CO LTD,TK128219,62,0.99,BEDS & SOFT FURNISHINGS,02/12/2019,,Fire Stations (South East),Furniture & Soft Furnishings
800141202,THOMAS KNEALE & CO LTD,TK128219,63,3.47,BEDS & SOFT FURNISHINGS,02/12/2019,,Fire Stations (South East),Furniture & Soft Furnishings
800141202,THOMAS KNEALE & CO LTD,TK128219,64,1.48,BEDS & SOFT FURNISHINGS,02/12/2019,,Fire Stations (South East),Furniture & Soft Furnishings
142897,FIELD FISHER LLP,UK01-INV-000093910,1,"31,238.10",LEGAL PROFESSIONAL FEES-GENERL,02/12/2019,"31,238.10",Grenfell Investigation Legal Costs,Legal Services
271119G,VODAFONE LIMITED,UK10/102019/213,1,"1,757.00",MOBILE PLAN CHARGES,02/12/2019,"1,757.00",ESN Project (ICT),ICT
271119G,Vodafone Limited,UK10/112019/1638,1,"1,757.00",MOBILE PLAN CHARGES,02/12/2019,"1,757.00",ESN Project (ICT),ICT
261119B,ETC VENUES LTD,VC-228420,1,810,HIRE OF FACILITIES,02/12/2019,810,CPO Quality Assurance,Facilities & Management Services
142897,LEX AUTOLEASE,XRIN319357,1,389.82,LEASE CAR CHARGES,02/12/2019,358.96,Procurement,Vehicle Management
142897,LEX AUTOLEASE,XRIN319357,2,-30.86,VAT CAR LEASING,02/12/2019,,Finance Services,Vehicle Management
142904,REBECCA THOMAS,INVRT213,1,"2,250.00",COUNSELS FEES,04/12/2019,"2,250.00",Compensation Budgets,Legal Services
291119V,MOOLANDS LTD,#000102,1,"9,995.00",REACTIVE SMALL WORKS AND PROJ,05/12/2019,"9,995.00",Technical and Service Support,Works - Construction
291119V,MOOLANDS LTD,#000303,1,"5,450.00",DEVELOPMENT  EXPENSES-CONTRACT,05/12/2019,"5,450.00",Technical and Service Support,Consultancy
291119K,MOOLANDS LTD,#001013,1,425,REACTIVE SMALL WORKS AND PROJ,05/12/2019,425,Technical and Service Support,Works - Construction
021219V,MOOLANDS LTD,#001030,1,"5,980.00",REACTIVE SMALL WORKS AND PROJ,05/12/2019,"5,980.00",Technical and Service Support,Works - Construction
291119K,PROMETHEUS MEDICAL LIMITED,23721,1,"1,272.00",GENERAL CONSUMABLES,05/12/2019,"2,616.00",Technical and Service Support,Emergency Services
291119K,PROMETHEUS MEDICAL LIMITED,23721,2,"1,344.00",GENERAL CONSUMABLES,05/12/2019,,Technical and Service Support,Emergency Services
201119K,REDTRONIC LTD,41060,1,12.5,OPERATIONAL EQUIP-PURCHASE,05/12/2019,"2,442.48",Procurement,Fire & Rescue
201119K,REDTRONIC LTD,41060,2,"2,429.98",OPERATIONAL EQUIP-PURCHASE,05/12/2019,,Procurement,Fire & Rescue
291119V,MOOLANDS LTD,16101,1,"8,798.00",REACTIVE SMALL WORKS AND PROJ,05/12/2019,"8,798.00",Technical and Service Support,Works - Construction
291119V,"GLOBAL REAL ESTATE (""GRE"") LTD",706,1,"10,450.00",PROFESSIONAL SERVICES,05/12/2019,"10,450.00",Technical and Service Support,Consultancy
800141439,COMPASS GROUP LTD,1004099288-1,1,"1,482.76",CATERING EQUIP SL,05/12/2019,"1,482.76",Technical and Service Support,Catering
021219K,FIREANGEL SAFETY TECHNOLOGY LD,1138527,1,"2,700.00",FIRE DETECTORS,05/12/2019,"2,700.00",Fire Stations (South East),Health and Safety
021219K,MCLCREATE LTD,116996,1,835.2,GENERAL PUBLICITY,05/12/2019,835.2,Operational Resilience,Facilities & Management Services
800140930,HAYS SPECIALIST RECRUITMENT,1179272,1,"1,848.60",FRS STAFF AGENCY,05/12/2019,"1,848.60",CPO Delivery,Human Resources
800140886,HAYS SPECIALIST RECRUITMENT,1179273,1,744.97,FRS STAFF AGENCY,05/12/2019,744.97,General Counsel,Human Resources
800140883,HAYS SPECIALIST RECRUITMENT,1179274,1,456.54,FRS STAFF AGENCY,05/12/2019,456.54,London Resilience Group,Human Resources
800140903,HAYS SPECIALIST RECRUITMENT,1179275,1,879.2,FRS STAFF AGENCY,05/12/2019,879.2,Enterprise Application Group (ICT),Human Resources
800140906,HAYS SPECIALIST RECRUITMENT,1179277,1,912.1,FRS STAFF AGENCY,05/12/2019,912.1,London Resilience Group,Human Resources
800140920,HAYS SPECIALIST RECRUITMENT,1179278,1,660.1,FRS STAFF AGENCY,05/12/2019,660.1,Information Management (ICT),Human Resources
800140848,HAYS SPECIALIST RECRUITMENT,1179279,1,"1,643.55",FRS STAFF AGENCY,05/12/2019,"1,643.55",Infrastructure Team (ICT),Human Resources
800140900,HAYS SPECIALIST RECRUITMENT,1179280,1,618.1,FRS STAFF AGENCY,05/12/2019,618.1,General Counsel,Human Resources
800140858,HAYS SPECIALIST RECRUITMENT,1179281,1,"1,141.70",FRS STAFF AGENCY,05/12/2019,"1,141.70",Technical and Service Support,Human Resources
800140867,HAYS SPECIALIST RECRUITMENT,1179282,1,874.65,FRS STAFF AGENCY,05/12/2019,874.65,Information Management (ICT),Human Resources
800140878,HAYS SPECIALIST RECRUITMENT,1179283,1,663.6,FRS STAFF AGENCY,05/12/2019,663.6,General Counsel,Human Resources
800140874,HAYS SPECIALIST RECRUITMENT,1179284,1,"1,436.40",FRS STAFF AGENCY,05/12/2019,"1,436.40",Technical and Service Support,Human Resources
800140862,HAYS SPECIALIST RECRUITMENT,1179285,1,757.75,FRS STAFF AGENCY,05/12/2019,757.75,Building Support Programme,Human Resources
800140896,HAYS SPECIALIST RECRUITMENT,1179286,1,386.33,FRS STAFF AGENCY,05/12/2019,386.33,Community Safety,Human Resources
800140857,HAYS SPECIALIST RECRUITMENT,1179287,1,"1,045.84",FRS STAFF AGENCY,05/12/2019,"1,045.84",Operational Resilience,Human Resources
800140918,HAYS SPECIALIST RECRUITMENT,1179289,1,454.65,FRS STAFF AGENCY,05/12/2019,454.65,Procurement,Human Resources
800140864,HAYS SPECIALIST RECRUITMENT,1179290,1,715.86,FRS STAFF AGENCY,05/12/2019,715.86,Operational Policy,Human Resources
800140861,HAYS SPECIALIST RECRUITMENT,1179291,1,"1,426.10",FRS STAFF AGENCY,05/12/2019,"1,426.10",Procurement,Human Resources
800140914,HAYS SPECIALIST RECRUITMENT,1179292,1,900.2,FRS STAFF AGENCY,05/12/2019,900.2,Information Management (ICT),Human Resources
800140868,HAYS SPECIALIST RECRUITMENT,1179293,1,569.84,FRS STAFF AGENCY,05/12/2019,569.84,Management Support,Human Resources
800140929,HAYS SPECIALIST RECRUITMENT,1179294,1,"1,461.25",FRS STAFF AGENCY,05/12/2019,"1,461.25",Operational Policy,Human Resources
800140875,HAYS SPECIALIST RECRUITMENT,1179295,1,905.1,FRS STAFF AGENCY,05/12/2019,905.1,Grenfell Investigation Legal Costs,Human Resources
800140843,HAYS SPECIALIST RECRUITMENT,1179296,1,724.08,FRS STAFF AGENCY,05/12/2019,724.08,Finance Services,Human Resources
800140877,HAYS SPECIALIST RECRUITMENT,1179297,1,636.3,FRS STAFF AGENCY,05/12/2019,636.3,Management Support,Human Resources
800140873,HAYS SPECIALIST RECRUITMENT,1179298,1,905.1,FRS STAFF AGENCY,05/12/2019,905.1,Grenfell Investigation Legal Costs,Human Resources
800140922,HAYS SPECIALIST RECRUITMENT,1179299,1,879.23,FRS STAFF AGENCY,05/12/2019,879.23,General Counsel,Human Resources
800140837,HAYS SPECIALIST RECRUITMENT,1179300,1,950.6,FRS STAFF AGENCY,05/12/2019,950.6,NFCC Governance,Human Resources
800140880,HAYS SPECIALIST RECRUITMENT,1179301,1,912.1,FRS STAFF AGENCY,05/12/2019,912.1,London Resilience Group,Human Resources
800140890,HAYS SPECIALIST RECRUITMENT,1179303,1,636.3,FRS STAFF AGENCY,05/12/2019,636.3,People Services,Human Resources
800140923,HAYS SPECIALIST RECRUITMENT,1179304,1,494.48,FRS STAFF AGENCY,05/12/2019,494.48,Technical and Service Support,Human Resources
800140928,HAYS SPECIALIST RECRUITMENT,1179305,1,618.1,FRS STAFF AGENCY,05/12/2019,618.1,Fire Stations (North West),Human Resources
800140926,HAYS SPECIALIST RECRUITMENT,1179306,1,"1,099.00",FRS STAFF AGENCY,05/12/2019,"1,099.00",Grenfell Investigation Team,Human Resources
800140897,HAYS SPECIALIST RECRUITMENT,1179307,1,854.91,FRS STAFF AGENCY,05/12/2019,854.91,Technical and Service Support,Human Resources
800140909,HAYS SPECIALIST RECRUITMENT,1179308,1,636.3,FRS STAFF AGENCY,05/12/2019,636.3,Management Support,Human Resources
800140915,HAYS SPECIALIST RECRUITMENT,1179309,1,"1,045.84",FRS STAFF AGENCY,05/12/2019,"1,045.84",Operational Resilience,Human Resources
800140910,HAYS SPECIALIST RECRUITMENT,1179310,1,636.3,FRS STAFF AGENCY,05/12/2019,636.3,Fire Stations (South West),Human Resources
800140888,HAYS SPECIALIST RECRUITMENT,1179311,1,"1,320.55",FRS STAFF AGENCY,05/12/2019,"1,320.55",CPO Community Risk Programme,Human Resources
800140850,HAYS SPECIALIST RECRUITMENT,1179312,1,905.1,FRS STAFF AGENCY,05/12/2019,905.1,Finance Services,Human Resources
800140869,HAYS SPECIALIST RECRUITMENT,1179313,1,"1,108.45",FRS STAFF AGENCY,05/12/2019,"1,108.45",General Counsel,Human Resources
800140912,HAYS SPECIALIST RECRUITMENT,1179314,1,618.1,FRS STAFF AGENCY,05/12/2019,618.1,Management Support,Human Resources
800140866,HAYS SPECIALIST RECRUITMENT,1179315,1,"1,045.84",FRS STAFF AGENCY,05/12/2019,"1,045.84",Operational Resilience,Human Resources
800140901,HAYS SPECIALIST RECRUITMENT,1179317,1,"1,099.00",FRS STAFF AGENCY,05/12/2019,"1,099.00",Grenfell Investigation Team,Human Resources
800140846,HAYS SPECIALIST RECRUITMENT,1179318,1,757.75,FRS STAFF AGENCY,05/12/2019,757.75,Information Management (ICT),Human Resources
800140855,HAYS SPECIALIST RECRUITMENT,1179319,1,896,FRS STAFF AGENCY,05/12/2019,896,Enterprise Application Group (ICT),Human Resources
800140916,HAYS SPECIALIST RECRUITMENT,1179320,1,"2,020.15",FRS STAFF AGENCY,05/12/2019,"2,020.15",CPO Delivery,Human Resources
800140885,HAYS SPECIALIST RECRUITMENT,1179321,1,"1,045.84",FRS STAFF AGENCY,05/12/2019,"1,045.84",Operational Resilience,Human Resources
800140924,HAYS SPECIALIST RECRUITMENT,1179322,1,"1,141.70",FRS STAFF AGENCY,05/12/2019,"1,141.70",CPO Delivery,Human Resources
800140899,HAYS SPECIALIST RECRUITMENT,1179323,1,602.84,FRS STAFF AGENCY,05/12/2019,602.84,Enterprise Application Group (ICT),Human Resources
800140905,HAYS SPECIALIST RECRUITMENT,1179324,1,900.55,FRS STAFF AGENCY,05/12/2019,900.55,Infrastructure Team (ICT),Human Resources
800140840,HAYS SPECIALIST RECRUITMENT,1179325,1,994.35,FRS STAFF AGENCY,05/12/2019,994.35,People Services,Human Resources
800140891,HAYS SPECIALIST RECRUITMENT,1179326,1,"1,099.00",FRS STAFF AGENCY,05/12/2019,"1,099.00",Grenfell Investigation Team,Human Resources
800140871,HAYS SPECIALIST RECRUITMENT,1179327,1,636.3,FRS STAFF AGENCY,05/12/2019,636.3,People Services,Human Resources
800140907,HAYS SPECIALIST RECRUITMENT,1179328,1,720.44,FRS STAFF AGENCY,05/12/2019,720.44,Grenfell Investigation Legal Costs,Human Resources
800140921,HAYS SPECIALIST RECRUITMENT,1179329,1,978.25,FRS STAFF AGENCY,05/12/2019,978.25,Change to LFC Governance,Human Resources
800140919,HAYS SPECIALIST RECRUITMENT,1179330,1,"1,183.15",FRS STAFF AGENCY,05/12/2019,"1,183.15",Procurement,Human Resources
800140895,HAYS SPECIALIST RECRUITMENT,1179331,1,618.1,FRS STAFF AGENCY,05/12/2019,618.1,People Services,Human Resources
800140908,HAYS SPECIALIST RECRUITMENT,1179332,1,606.2,FRS STAFF AGENCY,05/12/2019,606.2,Training and Professional Development,Human Resources
800140845,HAYS SPECIALIST RECRUITMENT,1179333,1,636.3,FRS STAFF AGENCY,05/12/2019,636.3,Management Support,Human Resources
800140876,HAYS SPECIALIST RECRUITMENT,1179334,1,703.36,FRS STAFF AGENCY,05/12/2019,703.36,Grenfell Investigation Legal Costs,Human Resources
800140844,HAYS SPECIALIST RECRUITMENT,1179335,1,"1,479.80",FRS STAFF AGENCY,05/12/2019,"1,479.80",NFCC Governance,Human Resources
800140917,HAYS SPECIALIST RECRUITMENT,1179336,1,640.84,FRS STAFF AGENCY,05/12/2019,640.84,People Services,Human Resources
800140881,HAYS SPECIALIST RECRUITMENT,1179337,1,"1,099.00",FRS STAFF AGENCY,05/12/2019,"1,099.00",Grenfell Investigation Team,Human Resources
800140879,HAYS SPECIALIST RECRUITMENT,1179338,1,"1,694.40",FRS STAFF AGENCY,05/12/2019,"1,694.40",Infrastructure Team (ICT),Human Resources
800140927,HAYS SPECIALIST RECRUITMENT,1179339,1,"1,824.80",FRS STAFF AGENCY,05/12/2019,"1,824.80",Enterprise Application Group (ICT),Human Resources
800140865,HAYS SPECIALIST RECRUITMENT,1179340,1,898.25,FRS STAFF AGENCY,05/12/2019,898.25,Infrastructure Team (ICT),Human Resources
800140847,HAYS SPECIALIST RECRUITMENT,1179341,1,636.3,FRS STAFF AGENCY,05/12/2019,636.3,Management Support,Human Resources
800140841,HAYS SPECIALIST RECRUITMENT,1179343,1,516.6,FRS STAFF AGENCY,05/12/2019,516.6,CPO Delivery,Human Resources
800140889,HAYS SPECIALIST RECRUITMENT,1179344,1,"1,326.95",FRS STAFF AGENCY,05/12/2019,"1,326.95",Procurement,Human Resources
800140856,HAYS SPECIALIST RECRUITMENT,1179345,1,"1,519.30",FRS STAFF AGENCY,05/12/2019,"1,519.30",Procurement,Human Resources
800140852,HAYS SPECIALIST RECRUITMENT,1179346,1,646.45,FRS STAFF AGENCY,05/12/2019,646.45,Technical and Service Support,Human Resources
800140925,HAYS SPECIALIST RECRUITMENT,1179347,1,636.3,FRS STAFF AGENCY,05/12/2019,636.3,Technical and Service Support,Human Resources
800140836,HAYS SPECIALIST RECRUITMENT,1179348,1,"1,848.60",FRS STAFF AGENCY,05/12/2019,"1,848.60",CPO Delivery,Human Resources
800140898,HAYS SPECIALIST RECRUITMENT,1179349,1,359.1,FRS STAFF AGENCY,05/12/2019,359.1,Operational Policy,Human Resources
800140839,HAYS SPECIALIST RECRUITMENT,1179350,1,599.94,FRS STAFF AGENCY,05/12/2019,599.94,Grenfell Investigation Team,Human Resources
800140884,HAYS SPECIALIST RECRUITMENT,1179351,1,646.45,FRS STAFF AGENCY,05/12/2019,646.45,Technical and Service Support,Human Resources
800140842,HAYS SPECIALIST RECRUITMENT,1179352,1,508.83,FRS STAFF AGENCY,05/12/2019,508.83,Training and Professional Development,Human Resources
800140863,HAYS SPECIALIST RECRUITMENT,1179353,1,636.3,FRS STAFF AGENCY,05/12/2019,636.3,Fire Stations (South West),Human Resources
800140838,HAYS SPECIALIST RECRUITMENT,1179354,1,646.45,FRS STAFF AGENCY,05/12/2019,646.45,Technical and Service Support,Human Resources
800140860,HAYS SPECIALIST RECRUITMENT,1179355,1,735.7,FRS STAFF AGENCY,05/12/2019,735.7,Service Improvement,Human Resources
800140870,HAYS SPECIALIST RECRUITMENT,1179356,1,636.3,FRS STAFF AGENCY,05/12/2019,636.3,Technical and Service Support,Human Resources
800140872,HAYS SPECIALIST RECRUITMENT,1179357,1,"1,236.20",FRS STAFF AGENCY,05/12/2019,"1,236.20",Grenfell Investigation Legal Costs,Human Resources
800140902,HAYS SPECIALIST RECRUITMENT,1179358,1,"1,824.80",FRS STAFF AGENCY,05/12/2019,"1,824.80",Infrastructure Team (ICT),Human Resources
800140913,HAYS SPECIALIST RECRUITMENT,1179359,1,"2,121.95",FRS STAFF AGENCY,05/12/2019,"2,121.95",Watch Structure Review,Human Resources
800140911,HAYS SPECIALIST RECRUITMENT,1179360,1,950.6,FRS STAFF AGENCY,05/12/2019,950.6,Health and Safety,Human Resources
800140892,HAYS SPECIALIST RECRUITMENT,1179361,1,646.45,FRS STAFF AGENCY,05/12/2019,646.45,Fire Stations (South East),Human Resources
800140859,HAYS SPECIALIST RECRUITMENT,1179362,1,"2,028.80",FRS STAFF AGENCY,05/12/2019,"2,028.80",Procurement,Human Resources
800140854,HAYS SPECIALIST RECRUITMENT,1179363,1,"1,584.50",FRS STAFF AGENCY,05/12/2019,"1,584.50",Procurement,Human Resources
800140851,HAYS SPECIALIST RECRUITMENT,1179364,1,636.3,FRS STAFF AGENCY,05/12/2019,636.3,People Services,Human Resources
800140887,HAYS SPECIALIST RECRUITMENT,1179365,1,"2,112.60",FRS STAFF AGENCY,05/12/2019,"2,112.60",Enterprise Application Group (ICT),Human Resources
800140853,HAYS SPECIALIST RECRUITMENT,1179366,1,912.1,FRS STAFF AGENCY,05/12/2019,912.1,London Resilience Group,Human Resources
800140893,HAYS SPECIALIST RECRUITMENT,1179367,1,381.78,FRS STAFF AGENCY,05/12/2019,381.78,Fire Stations (North West),Human Resources
800140831,HAYS SPECIALIST RECRUITMENT,1179369,1,663.6,FRS STAFF AGENCY,05/12/2019,663.6,General Counsel,Human Resources
800140826,HAYS SPECIALIST RECRUITMENT,1179370,1,"1,675.80",FRS STAFF AGENCY,05/12/2019,"1,675.80",Technical and Service Support,Human Resources
800140832,HAYS SPECIALIST RECRUITMENT,1179371,1,325.92,FRS STAFF AGENCY,05/12/2019,325.92,General Counsel,Human Resources
800140828,HAYS SPECIALIST RECRUITMENT,1179372,1,"1,584.55",FRS STAFF AGENCY,05/12/2019,"1,584.55",Procurement,Human Resources
800140829,HAYS SPECIALIST RECRUITMENT,1179373,1,729.68,FRS STAFF AGENCY,05/12/2019,729.68,London Resilience Group,Human Resources
800140830,HAYS SPECIALIST RECRUITMENT,1179374,1,404.03,FRS STAFF AGENCY,05/12/2019,404.03,CPO Delivery,Human Resources
800140834,HAYS SPECIALIST RECRUITMENT,1179375,1,530.78,FRS STAFF AGENCY,05/12/2019,530.78,Procurement,Human Resources
800140833,HAYS SPECIALIST RECRUITMENT,1179376,1,"1,519.30",FRS STAFF AGENCY,05/12/2019,"1,519.30",Procurement,Human Resources
800140827,HAYS SPECIALIST RECRUITMENT,1179377,1,735.71,FRS STAFF AGENCY,05/12/2019,735.71,Service Improvement,Human Resources
800140835,HAYS SPECIALIST RECRUITMENT,1179379,1,808.07,FRS STAFF AGENCY,05/12/2019,808.07,CPO Delivery,Human Resources
021219K,PAVILION PUBLISHING LTD,1191039,1,"1,030.00",ACCOMMODATION BOOKINGS,05/12/2019,"1,030.00",Community Safety,Human Resources
281119F,Ann Skidmore Associates Ltd,1456,1,650,GENERAL,05/12/2019,650,People Services,Consultancy
021219K,H FINE & SON LTD,160022,1,"1,515.00",UNIFORMS - POMS,05/12/2019,"1,971.00",Technical and Service Support,Clothing
021219K,H FINE & SON LTD,160022,2,456,UNIFORMS - POMS,05/12/2019,,Technical and Service Support,Clothing
021219V,BUREAU VERITAS,19013322,1,"104,924.47",SCIENTIFIC SERVICES,05/12/2019,"104,924.47",Procurement,Environmental Services
021219K,PA ASSOCIATES UK LTD,19081,1,852.57,CONSULTANTS,05/12/2019,852.57,Technical and Service Support,Consultancy
021219K,PA ASSOCIATES UK LTD,19082,1,254.27,CONSULTANTS,05/12/2019,254.27,Technical and Service Support,Consultancy
281119V,The Management Recruitment Grp,19143,1,"12,000.00",ASSESSMENTS,05/12/2019,"12,000.00",Technical and Service Support,Human Resources
142900,MR BENJAMIN AMUNWA,197372A,1,350,COUNSELS FEES,05/12/2019,350,Compensation Budgets,Legal Services
221119K,NISBETS,20207684,1,22.86,CATERING EQUIPMENT,05/12/2019,573.96,Fire Stations (North West),Catering
221119K,NISBETS,20207684,2,14.16,CATERING EQUIPMENT,05/12/2019,,Fire Stations (North West),Catering
221119K,NISBETS,20207684,3,8.82,CATERING EQUIPMENT,05/12/2019,,Fire Stations (North West),Catering
221119K,NISBETS,20207684,4,15.24,CATERING EQUIPMENT,05/12/2019,,Fire Stations (North West),Catering
221119K,NISBETS,20207684,5,512.88,CATERING EQUIPMENT,05/12/2019,,Fire Stations (North West),Catering
281119V,THE HOME OFFICE,2536290,1,"132,145.94",RADIO SERVICES,05/12/2019,"141,305.94",Enterprise Application Group (ICT),ICT
281119V,THE HOME OFFICE,2536290,2,"9,160.00",RADIO SERVICES,05/12/2019,,Enterprise Application Group (ICT),ICT
291119K,CRISPIN HUGHES,2545,1,345.2,FILM & VIDEO,05/12/2019,345.2,Central Operations,Facilities & Management Services
281119F,VODAFONE DATA SOLUTIONS,257279,1,"1,015.00",MOBILE PLAN CHARGES,05/12/2019,"1,306.26",Enterprise Application Group (ICT),ICT
281119F,VODAFONE DATA SOLUTIONS,257279,2,291.26,MOBILE PLAN CHARGES,05/12/2019,,Enterprise Application Group (ICT),ICT
191119K,GFG EUROPE LTD,26200,1,60,REPAIR & MAINTENANCE,05/12/2019,393.75,Technical and Service Support,Fire & Rescue
191119K,GFG EUROPE LTD,26200,2,318.75,REPAIR & MAINTENANCE,05/12/2019,,Technical and Service Support,Fire & Rescue
191119K,GFG EUROPE LTD,26200,3,15,REPAIR & MAINTENANCE,05/12/2019,,Technical and Service Support,Fire & Rescue
021219K,ENVIROGRAF,266122,1,879.64,OPERATIONAL EQUIP-PURCHASE,05/12/2019,879.64,Community Safety,Fire & Rescue
291119K,ACE VEHICLE SERVICES LIMITED,270,1,320,OPERATIONAL EQUIP-PURCHASE,05/12/2019,320,Fire Stations (South East),Fire & Rescue
191119K,DRAEGER SAFETY UK LIMITED,2910187326,1,558.98,PROTECTIVE EQUIPT - PARTS,05/12/2019,558.98,Technical and Service Support,Emergency Services
291119K,ACE VEHICLE SERVICES LIMITED,293,1,320,OPERATIONAL EQUIP-PURCHASE,05/12/2019,320,Fire Stations (North West),Fire & Rescue
291119K,ACE VEHICLE SERVICES LIMITED,294,1,350,OPERATIONAL EQUIP-PURCHASE,05/12/2019,350,Fire Stations (South West),Fire & Rescue
021219K,WATERFRONT MANUFACTURING LTD,32657,1,674.45,UNIFORMS,05/12/2019,674.45,Fire Stations (South West),Clothing
021219K,WATERFRONT MANUFACTURING LTD,32668,1,209.59,UNIFORMS,05/12/2019,394.2,Fire Stations (South East),Clothing
021219K,WATERFRONT MANUFACTURING LTD,32668,2,184.61,UNIFORMS,05/12/2019,,Fire Stations (South East),Clothing
291119K,WATERFRONT MANUFACTURING LTD,32669,1,209.59,UNIFORMS,05/12/2019,394.2,Fire Stations (North West),Clothing
291119K,WATERFRONT MANUFACTURING LTD,32669,2,184.61,UNIFORMS,05/12/2019,,Fire Stations (North West),Clothing
021219K,WATERFRONT MANUFACTURING LTD,32670,1,209.59,UNIFORMS,05/12/2019,394.2,Fire Stations (South West),Clothing
021219K,WATERFRONT MANUFACTURING LTD,32670,2,184.61,UNIFORMS,05/12/2019,,Fire Stations (South West),Clothing
021219K,WATERFRONT MANUFACTURING LTD,32671,1,209.59,UNIFORMS,05/12/2019,394.2,Fire Stations (North East),Clothing
021219K,WATERFRONT MANUFACTURING LTD,32671,2,184.61,UNIFORMS,05/12/2019,,Fire Stations (North East),Clothing
291119K,WATERFRONT MANUFACTURING LTD,32675,1,209.59,UNIFORMS,05/12/2019,394.2,Fire Stations (South East),Clothing
291119K,WATERFRONT MANUFACTURING LTD,32675,2,184.61,UNIFORMS,05/12/2019,,Fire Stations (South East),Clothing
281119F,COMPUTACENTRE,3780097453,1,"1,350.00",MAINTENANCE & SUPPORT,05/12/2019,"1,350.00",Enterprise Application Group (ICT),ICT
281119F,COMPUTACENTRE,3882210529,1,"2,255.56",ACQUISITIONS,05/12/2019,"2,255.56",Fire Stations (North East),ICT
291119K,H V SIER LTD,4/I11169,1,294.24,STATIONERY CONSUMABLES,05/12/2019,294.24,Communications,Stationery
021219K,REED CHILL CHEATER LTD,40454,1,75,OPERATIONAL EQUIP-PURCHASE,05/12/2019,512.5,Technical and Service Support,Fire & Rescue
021219K,REED CHILL CHEATER LTD,40454,2,300,OPERATIONAL EQUIP-PURCHASE,05/12/2019,,Technical and Service Support,Fire & Rescue
021219K,REED CHILL CHEATER LTD,40454,3,37.5,OPERATIONAL EQUIP-PURCHASE,05/12/2019,,Technical and Service Support,Fire & Rescue
021219K,REED CHILL CHEATER LTD,40454,4,37.5,OPERATIONAL EQUIP-PURCHASE,05/12/2019,,Technical and Service Support,Fire & Rescue
021219K,REED CHILL CHEATER LTD,40454,5,37.5,OPERATIONAL EQUIP-PURCHASE,05/12/2019,,Technical and Service Support,Fire & Rescue
021219K,REED CHILL CHEATER LTD,40454,6,25,OPERATIONAL EQUIP-PURCHASE,05/12/2019,,Technical and Service Support,Fire & Rescue
281119V,MITIE SECURITY (LONDON) LTD,44/699935,1,"11,371.50",PREMISES SECURITY,05/12/2019,"11,371.50",Technical and Service Support,Facilities & Management Services
021219K,ABARIS INTERNATIONAL LIMITED,50252,1,175.25,CLOTHING,05/12/2019,621.7,Training and Professional Development,Clothing
021219K,ABARIS INTERNATIONAL LIMITED,50252,2,48.22,CLOTHING,05/12/2019,,Training and Professional Development,Clothing
021219K,ABARIS INTERNATIONAL LIMITED,50252,3,49.5,CLOTHING,05/12/2019,,Training and Professional Development,Clothing
021219K,ABARIS INTERNATIONAL LIMITED,50252,4,86.99,CLOTHING,05/12/2019,,Training and Professional Development,Clothing
021219K,ABARIS INTERNATIONAL LIMITED,50252,5,10.5,CLOTHING,05/12/2019,,Training and Professional Development,Clothing
021219K,ABARIS INTERNATIONAL LIMITED,50252,6,48.74,PROTECTIVE CLOTHING,05/12/2019,,Training and Professional Development,Clothing
021219K,ABARIS INTERNATIONAL LIMITED,50252,7,86.25,CLOTHING,05/12/2019,,Training and Professional Development,Clothing
021219K,ABARIS INTERNATIONAL LIMITED,50252,8,116.25,CLOTHING,05/12/2019,,Training and Professional Development,Clothing
800141166,GREENHAM TRADING LTD,5026988,1,8.64,HYGIENE,05/12/2019,355.84,Fire Stations (South East),Cleaning & Janitorial
800141166,GREENHAM TRADING LTD,5026988,2,5.02,HYGIENE,05/12/2019,,Fire Stations (South East),Cleaning & Janitorial
800141166,GREENHAM TRADING LTD,5026988,3,10.04,HYGIENE,05/12/2019,,Fire Stations (South East),Cleaning & Janitorial
800141166,GREENHAM TRADING LTD,5026988,4,99.88,HYGIENE,05/12/2019,,Fire Stations (South East),Cleaning & Janitorial
800141166,GREENHAM TRADING LTD,5026988,5,30.4,HYGIENE,05/12/2019,,Fire Stations (South East),Cleaning & Janitorial
800141166,GREENHAM TRADING LTD,5026988,6,6.9,HYGIENE,05/12/2019,,Fire Stations (South East),Cleaning & Janitorial
800141166,GREENHAM TRADING LTD,5026988,7,25.17,HYGIENE,05/12/2019,,Fire Stations (South East),Cleaning & Janitorial
800141166,GREENHAM TRADING LTD,5026988,8,74.91,HYGIENE,05/12/2019,,Fire Stations (South East),Cleaning & Janitorial
800141166,GREENHAM TRADING LTD,5026988,9,14.4,HYGIENE,05/12/2019,,Fire Stations (South East),Cleaning & Janitorial
800141166,GREENHAM TRADING LTD,5026988,10,5.02,HYGIENE,05/12/2019,,Fire Stations (South East),Cleaning & Janitorial
800141166,GREENHAM TRADING LTD,5026988,11,3.02,HYGIENE,05/12/2019,,Fire Stations (South East),Cleaning & Janitorial
800141166,GREENHAM TRADING LTD,5026988,12,2.51,HYGIENE,05/12/2019,,Fire Stations (South East),Cleaning & Janitorial
800141166,GREENHAM TRADING LTD,5026988,13,1.48,HYGIENE,05/12/2019,,Fire Stations (South East),Cleaning & Janitorial
800141166,GREENHAM TRADING LTD,5026988,14,6.08,HYGIENE,05/12/2019,,Fire Stations (South East),Cleaning & Janitorial
800141166,GREENHAM TRADING LTD,5026988,15,8.39,HYGIENE,05/12/2019,,Fire Stations (South East),Cleaning & Janitorial
800141166,GREENHAM TRADING LTD,5026988,16,1.48,HYGIENE,05/12/2019,,Fire Stations (South East),Cleaning & Janitorial
800141166,GREENHAM TRADING LTD,5026988,17,9.12,HYGIENE,05/12/2019,,Fire Stations (South East),Cleaning & Janitorial
800141166,GREENHAM TRADING LTD,5026988,18,9.66,HYGIENE,05/12/2019,,Fire Stations (South East),Cleaning & Janitorial
800141166,GREENHAM TRADING LTD,5026988,19,2.28,HYGIENE,05/12/2019,,Fire Stations (South East),Cleaning & Janitorial
800141166,GREENHAM TRADING LTD,5026988,20,22.24,MEDICAL SUPPLIES,05/12/2019,,Fire Stations (South East),Healthcare
800141166,GREENHAM TRADING LTD,5026988,21,9.2,STATIONERY CONSUMABLES,05/12/2019,,Fire Stations (South East),Stationery
281119F,BT GLOBAL SERVICES,519800,1,"1,836.19",TELECOMMUNICATIONS,05/12/2019,"1,836.19",Enterprise Application Group (ICT),ICT
021219K,WEX PHOTOGRAPHIC LTD,52143588,1,"2,104.99",MULTIMEDIA EQUIPMENT,05/12/2019,"2,104.99",Fire Stations (Management),ICT
800140937,ANGEL SPRINGS LIMITED,5251907,1,40,PLANNED MEP,05/12/2019,"1,120.00",Technical and Service Support,Works - Construction
800140937,ANGEL SPRINGS LIMITED,5251907,2,16,PLANNED MEP,05/12/2019,,Technical and Service Support,Works - Construction
800140937,ANGEL SPRINGS LIMITED,5251907,3,16,PLANNED MEP,05/12/2019,,Technical and Service Support,Works - Construction
800140937,ANGEL SPRINGS LIMITED,5251907,4,8,PLANNED MEP,05/12/2019,,Technical and Service Support,Works - Construction
800140937,ANGEL SPRINGS LIMITED,5251907,5,8,PLANNED MEP,05/12/2019,,Technical and Service Support,Works - Construction
800140937,ANGEL SPRINGS LIMITED,5251907,6,8,PLANNED MEP,05/12/2019,,Technical and Service Support,Works - Construction
800140937,ANGEL SPRINGS LIMITED,5251907,7,8,PLANNED MEP,05/12/2019,,Technical and Service Support,Works - Construction
800140937,ANGEL SPRINGS LIMITED,5251907,8,8,PLANNED MEP,05/12/2019,,Technical and Service Support,Works - Construction
800140937,ANGEL SPRINGS LIMITED,5251907,9,8,PLANNED MEP,05/12/2019,,Technical and Service Support,Works - Construction
800140937,ANGEL SPRINGS LIMITED,5251907,10,16,PLANNED MEP,05/12/2019,,Technical and Service Support,Works - Construction
800140937,ANGEL SPRINGS LIMITED,5251907,11,16,PLANNED MEP,05/12/2019,,Technical and Service Support,Works - Construction
800140937,ANGEL SPRINGS LIMITED,5251907,12,8,PLANNED MEP,05/12/2019,,Technical and Service Support,Works - Construction
800140937,ANGEL SPRINGS LIMITED,5251907,13,24,PLANNED MEP,05/12/2019,,Technical and Service Support,Works - Construction
800140937,ANGEL SPRINGS LIMITED,5251907,14,16,PLANNED MEP,05/12/2019,,Technical and Service Support,Works - Construction
800140937,ANGEL SPRINGS LIMITED,5251907,15,8,PLANNED MEP,05/12/2019,,Technical and Service Support,Works - Construction
800140937,ANGEL SPRINGS LIMITED,5251907,16,8,PLANNED MEP,05/12/2019,,Technical and Service Support,Works - Construction
800140937,ANGEL SPRINGS LIMITED,5251907,17,16,PLANNED MEP,05/12/2019,,Technical and Service Support,Works - Construction
800140937,ANGEL SPRINGS LIMITED,5251907,18,8,PLANNED MEP,05/12/2019,,Technical and Service Support,Works - Construction
800140937,ANGEL SPRINGS LIMITED,5251907,19,8,PLANNED MEP,05/12/2019,,Technical and Service Support,Works - Construction
800140937,ANGEL SPRINGS LIMITED,5251907,20,8,PLANNED MEP,05/12/2019,,Technical and Service Support,Works - Construction
800140937,ANGEL SPRINGS LIMITED,5251907,21,24,PLANNED MEP,05/12/2019,,Technical and Service Support,Works - Construction
800140937,ANGEL SPRINGS LIMITED,5251907,22,16,PLANNED MEP,05/12/2019,,Technical and Service Support,Works - Construction
800140937,ANGEL SPRINGS LIMITED,5251907,23,16,PLANNED MEP,05/12/2019,,Technical and Service Support,Works - Construction
800140937,ANGEL SPRINGS LIMITED,5251907,24,8,PLANNED MEP,05/12/2019,,Technical and Service Support,Works - Construction
800140937,ANGEL SPRINGS LIMITED,5251907,25,8,PLANNED MEP,05/12/2019,,Technical and Service Support,Works - Construction
800140937,ANGEL SPRINGS LIMITED,5251907,26,8,PLANNED MEP,05/12/2019,,Technical and Service Support,Works - Construction
800140937,ANGEL SPRINGS LIMITED,5251907,27,8,PLANNED MEP,05/12/2019,,Technical and Service Support,Works - Construction
800140937,ANGEL SPRINGS LIMITED,5251907,28,16,PLANNED MEP,05/12/2019,,Technical and Service Support,Works - Construction
800140937,ANGEL SPRINGS LIMITED,5251907,29,16,PLANNED MEP,05/12/2019,,Technical and Service Support,Works - Construction
800140937,ANGEL SPRINGS LIMITED,5251907,30,8,PLANNED MEP,05/12/2019,,Technical and Service Support,Works - Construction
800140937,ANGEL SPRINGS LIMITED,5251907,31,8,PLANNED MEP,05/12/2019,,Technical and Service Support,Works - Construction
800140937,ANGEL SPRINGS LIMITED,5251907,32,16,PLANNED MEP,05/12/2019,,Technical and Service Support,Works - Construction
800140937,ANGEL SPRINGS LIMITED,5251907,33,16,PLANNED MEP,05/12/2019,,Technical and Service Support,Works - Construction
800140937,ANGEL SPRINGS LIMITED,5251907,34,24,PLANNED MEP,05/12/2019,,Technical and Service Support,Works - Construction
800140937,ANGEL SPRINGS LIMITED,5251907,35,8,PLANNED MEP,05/12/2019,,Technical and Service Support,Works - Construction
800140937,ANGEL SPRINGS LIMITED,5251907,36,8,PLANNED MEP,05/12/2019,,Technical and Service Support,Works - Construction
800140937,ANGEL SPRINGS LIMITED,5251907,37,8,PLANNED MEP,05/12/2019,,Technical and Service Support,Works - Construction
800140937,ANGEL SPRINGS LIMITED,5251907,38,8,PLANNED MEP,05/12/2019,,Technical and Service Support,Works - Construction
800140937,ANGEL SPRINGS LIMITED,5251907,39,8,PLANNED MEP,05/12/2019,,Technical and Service Support,Works - Construction
800140937,ANGEL SPRINGS LIMITED,5251907,40,24,PLANNED MEP,05/12/2019,,Technical and Service Support,Works - Construction
800140937,ANGEL SPRINGS LIMITED,5251907,41,8,PLANNED MEP,05/12/2019,,Technical and Service Support,Works - Construction
800140937,ANGEL SPRINGS LIMITED,5251907,42,16,PLANNED MEP,05/12/2019,,Technical and Service Support,Works - Construction
800140937,ANGEL SPRINGS LIMITED,5251907,43,8,PLANNED MEP,05/12/2019,,Technical and Service Support,Works - Construction
800140937,ANGEL SPRINGS LIMITED,5251907,44,8,PLANNED MEP,05/12/2019,,Technical and Service Support,Works - Construction
800140937,ANGEL SPRINGS LIMITED,5251907,45,16,PLANNED MEP,05/12/2019,,Technical and Service Support,Works - Construction
800140937,ANGEL SPRINGS LIMITED,5251907,46,8,PLANNED MEP,05/12/2019,,Technical and Service Support,Works - Construction
800140937,ANGEL SPRINGS LIMITED,5251907,47,16,PLANNED MEP,05/12/2019,,Technical and Service Support,Works - Construction
800140937,ANGEL SPRINGS LIMITED,5251907,48,8,PLANNED MEP,05/12/2019,,Technical and Service Support,Works - Construction
800140937,ANGEL SPRINGS LIMITED,5251907,49,8,PLANNED MEP,05/12/2019,,Technical and Service Support,Works - Construction
800140937,ANGEL SPRINGS LIMITED,5251907,50,8,PLANNED MEP,05/12/2019,,Technical and Service Support,Works - Construction
800140937,ANGEL SPRINGS LIMITED,5251907,51,8,PLANNED MEP,05/12/2019,,Technical and Service Support,Works - Construction
800140937,ANGEL SPRINGS LIMITED,5251907,52,8,PLANNED MEP,05/12/2019,,Technical and Service Support,Works - Construction
800140937,ANGEL SPRINGS LIMITED,5251907,53,8,PLANNED MEP,05/12/2019,,Technical and Service Support,Works - Construction
800140937,ANGEL SPRINGS LIMITED,5251907,54,8,PLANNED MEP,05/12/2019,,Technical and Service Support,Works - Construction
800140937,ANGEL SPRINGS LIMITED,5251907,55,8,PLANNED MEP,05/12/2019,,Technical and Service Support,Works - Construction
800140937,ANGEL SPRINGS LIMITED,5251907,56,16,PLANNED MEP,05/12/2019,,Technical and Service Support,Works - Construction
800140937,ANGEL SPRINGS LIMITED,5251907,57,8,PLANNED MEP,05/12/2019,,Technical and Service Support,Works - Construction
800140937,ANGEL SPRINGS LIMITED,5251907,58,8,PLANNED MEP,05/12/2019,,Technical and Service Support,Works - Construction
800140937,ANGEL SPRINGS LIMITED,5251907,59,8,PLANNED MEP,05/12/2019,,Technical and Service Support,Works - Construction
800140937,ANGEL SPRINGS LIMITED,5251907,60,8,PLANNED MEP,05/12/2019,,Technical and Service Support,Works - Construction
800140937,ANGEL SPRINGS LIMITED,5251907,61,8,PLANNED MEP,05/12/2019,,Technical and Service Support,Works - Construction
800140937,ANGEL SPRINGS LIMITED,5251907,62,8,PLANNED MEP,05/12/2019,,Technical and Service Support,Works - Construction
800140937,ANGEL SPRINGS LIMITED,5251907,63,16,PLANNED MEP,05/12/2019,,Technical and Service Support,Works - Construction
800140937,ANGEL SPRINGS LIMITED,5251907,64,24,PLANNED MEP,05/12/2019,,Technical and Service Support,Works - Construction
800140937,ANGEL SPRINGS LIMITED,5251907,65,8,PLANNED MEP,05/12/2019,,Technical and Service Support,Works - Construction
800140937,ANGEL SPRINGS LIMITED,5251907,66,8,PLANNED MEP,05/12/2019,,Technical and Service Support,Works - Construction
800140937,ANGEL SPRINGS LIMITED,5251907,67,16,PLANNED MEP,05/12/2019,,Technical and Service Support,Works - Construction
800140937,ANGEL SPRINGS LIMITED,5251907,68,8,PLANNED MEP,05/12/2019,,Technical and Service Support,Works - Construction
800140937,ANGEL SPRINGS LIMITED,5251907,69,8,PLANNED MEP,05/12/2019,,Technical and Service Support,Works - Construction
800140937,ANGEL SPRINGS LIMITED,5251907,70,8,PLANNED MEP,05/12/2019,,Technical and Service Support,Works - Construction
800140937,ANGEL SPRINGS LIMITED,5251907,71,16,PLANNED MEP,05/12/2019,,Technical and Service Support,Works - Construction
800140937,ANGEL SPRINGS LIMITED,5251907,72,8,PLANNED MEP,05/12/2019,,Technical and Service Support,Works - Construction
800140937,ANGEL SPRINGS LIMITED,5251907,73,8,PLANNED MEP,05/12/2019,,Technical and Service Support,Works - Construction
800140937,ANGEL SPRINGS LIMITED,5251907,74,8,PLANNED MEP,05/12/2019,,Technical and Service Support,Works - Construction
800140937,ANGEL SPRINGS LIMITED,5251907,75,8,PLANNED MEP,05/12/2019,,Technical and Service Support,Works - Construction
800140937,ANGEL SPRINGS LIMITED,5251907,76,24,PLANNED MEP,05/12/2019,,Technical and Service Support,Works - Construction
800140937,ANGEL SPRINGS LIMITED,5251907,77,8,PLANNED MEP,05/12/2019,,Technical and Service Support,Works - Construction
800140937,ANGEL SPRINGS LIMITED,5251907,78,8,PLANNED MEP,05/12/2019,,Technical and Service Support,Works - Construction
800140937,ANGEL SPRINGS LIMITED,5251907,79,8,PLANNED MEP,05/12/2019,,Technical and Service Support,Works - Construction
800140937,ANGEL SPRINGS LIMITED,5251907,80,16,PLANNED MEP,05/12/2019,,Technical and Service Support,Works - Construction
800140937,ANGEL SPRINGS LIMITED,5251907,81,24,PLANNED MEP,05/12/2019,,Technical and Service Support,Works - Construction
800140937,ANGEL SPRINGS LIMITED,5251907,82,8,PLANNED MEP,05/12/2019,,Technical and Service Support,Works - Construction
800140937,ANGEL SPRINGS LIMITED,5251907,83,8,PLANNED MEP,05/12/2019,,Technical and Service Support,Works - Construction
800140937,ANGEL SPRINGS LIMITED,5251907,84,8,PLANNED MEP,05/12/2019,,Technical and Service Support,Works - Construction
800140937,ANGEL SPRINGS LIMITED,5251907,85,32,PLANNED MEP,05/12/2019,,Technical and Service Support,Works - Construction
800140937,ANGEL SPRINGS LIMITED,5251907,86,8,PLANNED MEP,05/12/2019,,Technical and Service Support,Works - Construction
800140937,ANGEL SPRINGS LIMITED,5251907,87,8,PLANNED MEP,05/12/2019,,Technical and Service Support,Works - Construction
800140937,ANGEL SPRINGS LIMITED,5251907,88,8,PLANNED MEP,05/12/2019,,Technical and Service Support,Works - Construction
800140937,ANGEL SPRINGS LIMITED,5251907,89,16,PLANNED MEP,05/12/2019,,Technical and Service Support,Works - Construction
800140937,ANGEL SPRINGS LIMITED,5251907,90,8,PLANNED MEP,05/12/2019,,Technical and Service Support,Works - Construction
800140937,ANGEL SPRINGS LIMITED,5251907,91,8,PLANNED MEP,05/12/2019,,Technical and Service Support,Works - Construction
800140937,ANGEL SPRINGS LIMITED,5251907,92,24,PLANNED MEP,05/12/2019,,Technical and Service Support,Works - Construction
800140937,ANGEL SPRINGS LIMITED,5251907,93,8,PLANNED MEP,05/12/2019,,Technical and Service Support,Works - Construction
800140937,ANGEL SPRINGS LIMITED,5251907,94,8,PLANNED MEP,05/12/2019,,Technical and Service Support,Works - Construction
800140937,ANGEL SPRINGS LIMITED,5251907,95,8,PLANNED MEP,05/12/2019,,Technical and Service Support,Works - Construction
800140937,ANGEL SPRINGS LIMITED,5251907,96,8,PLANNED MEP,05/12/2019,,Technical and Service Support,Works - Construction
291119K,HOMEPACK LTD,53565,1,112.8,OPERATIONAL EQUIP-PURCHASE,05/12/2019,284,Fire Stations (North West),Fire & Rescue
291119K,HOMEPACK LTD,53565,2,171.2,OPERATIONAL EQUIP-PURCHASE,05/12/2019,,Fire Stations (North West),Fire & Rescue
291119K,HOMEPACK LTD,53569,1,112.8,OPERATIONAL EQUIP-PURCHASE,05/12/2019,789.6,Fire Stations (South East),Fire & Rescue
291119K,HOMEPACK LTD,53569,2,112.8,OPERATIONAL EQUIP-PURCHASE,05/12/2019,,Fire Stations (South East),Fire & Rescue
291119K,HOMEPACK LTD,53569,3,112.8,OPERATIONAL EQUIP-PURCHASE,05/12/2019,,Fire Stations (South East),Fire & Rescue
291119K,HOMEPACK LTD,53569,4,112.8,OPERATIONAL EQUIP-PURCHASE,05/12/2019,,Fire Stations (South East),Fire & Rescue
291119K,HOMEPACK LTD,53569,5,112.8,OPERATIONAL EQUIP-PURCHASE,05/12/2019,,Fire Stations (South East),Fire & Rescue
291119K,HOMEPACK LTD,53569,6,112.8,OPERATIONAL EQUIP-PURCHASE,05/12/2019,,Fire Stations (South East),Fire & Rescue
291119K,HOMEPACK LTD,53569,7,112.8,OPERATIONAL EQUIP-PURCHASE,05/12/2019,,Fire Stations (South East),Fire & Rescue
291119V,BRISTOL UNIFORMS LTD,562657,1,"197,366.20",CLOTHING,05/12/2019,"197,366.20",Procurement,Clothing
291119K,BRISTOL UNIFORMS LTD,562658,1,"4,598.00",CLOTHING,05/12/2019,"4,598.00",Procurement,Clothing
291119V,STORM TECHNOLOGIES,672062,1,"6,764.47",ACQUISITIONS,05/12/2019,"6,764.47",Infrastructure Team (ICT),ICT
291119K,DEALERSHIP SERVICES LTD,7561,1,26.95,UNIFORMS,05/12/2019,296.45,Community Safety,Clothing
291119K,DEALERSHIP SERVICES LTD,7561,2,80.85,UNIFORMS,05/12/2019,,Community Safety,Clothing
291119K,DEALERSHIP SERVICES LTD,7561,3,134.75,UNIFORMS,05/12/2019,,Community Safety,Clothing
291119K,DEALERSHIP SERVICES LTD,7561,4,53.9,UNIFORMS,05/12/2019,,Community Safety,Clothing
291119K,DEALERSHIP SERVICES LTD,7562,1,577,CLOTHING,05/12/2019,"3,533.00",Community Safety,Clothing
291119K,DEALERSHIP SERVICES LTD,7562,2,577,CLOTHING,05/12/2019,,Community Safety,Clothing
291119K,DEALERSHIP SERVICES LTD,7562,3,966,PROTECTIVE CLOTHING,05/12/2019,,Community Safety,Clothing
291119K,DEALERSHIP SERVICES LTD,7562,4,"1,380.00",PROTECTIVE CLOTHING,05/12/2019,,Community Safety,Clothing
291119K,DEALERSHIP SERVICES LTD,7562,5,33,CLOTHING,05/12/2019,,Community Safety,Clothing
800141141,G BURLEY & SONS LTD,77910,1,10.91,GROUNDS MAINTENANCE,05/12/2019,"1,003.87",Technical and Service Support,Works - Construction
800141141,G BURLEY & SONS LTD,77910,2,39.76,GROUNDS MAINTENANCE,05/12/2019,,Technical and Service Support,Works - Construction
800141141,G BURLEY & SONS LTD,77910,3,34.48,GROUNDS MAINTENANCE,05/12/2019,,Technical and Service Support,Works - Construction
800141141,G BURLEY & SONS LTD,77910,4,9.66,GROUNDS MAINTENANCE,05/12/2019,,Technical and Service Support,Works - Construction
800141141,G BURLEY & SONS LTD,77910,5,30.66,PLANNED GROUNDS MAINTENANCE,05/12/2019,,Technical and Service Support,Works - Construction
800141141,G BURLEY & SONS LTD,77910,6,55.46,GROUNDS MAINTENANCE,05/12/2019,,Technical and Service Support,Works - Construction
800141141,G BURLEY & SONS LTD,77910,7,82.92,GROUNDS MAINTENANCE,05/12/2019,,Technical and Service Support,Works - Construction
800141141,G BURLEY & SONS LTD,77910,8,15.2,GROUNDS MAINTENANCE,05/12/2019,,Technical and Service Support,Works - Construction
800141141,G BURLEY & SONS LTD,77910,9,95.63,GROUNDS MAINTENANCE,05/12/2019,,Technical and Service Support,Works - Construction
800141141,G BURLEY & SONS LTD,77910,10,29.19,GROUNDS MAINTENANCE,05/12/2019,,Technical and Service Support,Works - Construction
800141141,G BURLEY & SONS LTD,77910,11,600,REACTIVE GROUNDS MAINTENANCE,05/12/2019,,Technical and Service Support,Works - Construction
021219K,FIRE SERVICE COLLEGE LTD,817943,1,"3,420.00",HIRE OF FACILITIES,05/12/2019,"3,420.00",Operational Resilience,Facilities & Management Services
021219K,FIRMIN & SONS LTD,85906,1,108,UNIFORMS - POMS,05/12/2019,434.4,Technical and Service Support,Clothing
021219K,FIRMIN & SONS LTD,85906,2,326.4,UNIFORMS - POMS,05/12/2019,,Technical and Service Support,Clothing
800140945,SERVEST GROUP LIMITED,86383,1,870.14,REACTIVE MEP,05/12/2019,"108,199.47",Technical and Service Support,Works - Construction
800140945,SERVEST GROUP LIMITED,86383,2,56.15,REACTIVE MEP,05/12/2019,,Technical and Service Support,Works - Construction
800140945,SERVEST GROUP LIMITED,86383,3,66.08,REACTIVE MEP,05/12/2019,,Technical and Service Support,Works - Construction
800140945,SERVEST GROUP LIMITED,86383,4,"2,144.02",REACTIVE MEP,05/12/2019,,Technical and Service Support,Works - Construction
800140945,SERVEST GROUP LIMITED,86383,5,892.04,REACTIVE MEP,05/12/2019,,Technical and Service Support,Works - Construction
800140945,SERVEST GROUP LIMITED,86383,6,997.21,REACTIVE MEP,05/12/2019,,Technical and Service Support,Works - Construction
800140945,SERVEST GROUP LIMITED,86383,7,959.16,REACTIVE MEP,05/12/2019,,Technical and Service Support,Works - Construction
800140945,SERVEST GROUP LIMITED,86383,8,535.87,REACTIVE MEP,05/12/2019,,Technical and Service Support,Works - Construction
800140945,SERVEST GROUP LIMITED,86383,9,240,REACTIVE MEP,05/12/2019,,Technical and Service Support,Works - Construction
800140945,SERVEST GROUP LIMITED,86383,10,388.84,REACTIVE MEP,05/12/2019,,Technical and Service Support,Works - Construction
800140945,SERVEST GROUP LIMITED,86383,11,667.17,REACTIVE MEP,05/12/2019,,Technical and Service Support,Works - Construction
800140945,SERVEST GROUP LIMITED,86383,12,"8,773.31",REACTIVE MEP,05/12/2019,,Technical and Service Support,Works - Construction
800140945,SERVEST GROUP LIMITED,86383,13,381.43,REACTIVE MEP,05/12/2019,,Technical and Service Support,Works - Construction
800140945,SERVEST GROUP LIMITED,86383,14,"1,443.57",REACTIVE MEP,05/12/2019,,Technical and Service Support,Works - Construction
800140945,SERVEST GROUP LIMITED,86383,15,214.34,REACTIVE MEP,05/12/2019,,Technical and Service Support,Works - Construction
800140945,SERVEST GROUP LIMITED,86383,16,"4,412.63",REACTIVE MEP,05/12/2019,,Technical and Service Support,Works - Construction
800140945,SERVEST GROUP LIMITED,86383,17,"1,350.16",REACTIVE MEP,05/12/2019,,Technical and Service Support,Works - Construction
800140945,SERVEST GROUP LIMITED,86383,18,24.36,REACTIVE MEP,05/12/2019,,Technical and Service Support,Works - Construction
800140945,SERVEST GROUP LIMITED,86383,19,158,REACTIVE MEP,05/12/2019,,Technical and Service Support,Works - Construction
800140945,SERVEST GROUP LIMITED,86383,20,127.61,REACTIVE MEP,05/12/2019,,Technical and Service Support,Works - Construction
800140945,SERVEST GROUP LIMITED,86383,21,145.84,REACTIVE MEP,05/12/2019,,Technical and Service Support,Works - Construction
800140945,SERVEST GROUP LIMITED,86383,22,"3,847.75",REACTIVE MEP,05/12/2019,,Technical and Service Support,Works - Construction
800140945,SERVEST GROUP LIMITED,86383,23,"15,393.79",REACTIVE MEP,05/12/2019,,Technical and Service Support,Works - Construction
800140945,SERVEST GROUP LIMITED,86383,24,463.84,REACTIVE MEP,05/12/2019,,Technical and Service Support,Works - Construction
800140945,SERVEST GROUP LIMITED,86383,25,232.67,REACTIVE MEP,05/12/2019,,Technical and Service Support,Works - Construction
800140945,SERVEST GROUP LIMITED,86383,26,179,REACTIVE MEP,05/12/2019,,Technical and Service Support,Works - Construction
800140945,SERVEST GROUP LIMITED,86383,27,163.46,REACTIVE MEP,05/12/2019,,Technical and Service Support,Works - Construction
800140945,SERVEST GROUP LIMITED,86383,28,48.72,REACTIVE MEP,05/12/2019,,Technical and Service Support,Works - Construction
800140945,SERVEST GROUP LIMITED,86383,29,248.46,REACTIVE MEP,05/12/2019,,Technical and Service Support,Works - Construction
800140945,SERVEST GROUP LIMITED,86383,30,189.11,REACTIVE MEP,05/12/2019,,Technical and Service Support,Works - Construction
800140945,SERVEST GROUP LIMITED,86383,31,39.65,REACTIVE MEP,05/12/2019,,Technical and Service Support,Works - Construction
800140945,SERVEST GROUP LIMITED,86383,32,628.02,REACTIVE MEP,05/12/2019,,Technical and Service Support,Works - Construction
800140945,SERVEST GROUP LIMITED,86383,33,711.41,REACTIVE MEP,05/12/2019,,Technical and Service Support,Works - Construction
800140945,SERVEST GROUP LIMITED,86383,34,115.64,REACTIVE MEP,05/12/2019,,Technical and Service Support,Works - Construction
800140945,SERVEST GROUP LIMITED,86383,35,102.54,REACTIVE MEP,05/12/2019,,Technical and Service Support,Works - Construction
800140945,SERVEST GROUP LIMITED,86383,36,"1,255.30",REACTIVE MEP,05/12/2019,,Technical and Service Support,Works - Construction
800140945,SERVEST GROUP LIMITED,86383,37,110.62,REACTIVE MEP,05/12/2019,,Technical and Service Support,Works - Construction
800140945,SERVEST GROUP LIMITED,86383,38,"5,475.27",REACTIVE MEP,05/12/2019,,Technical and Service Support,Works - Construction
800140945,SERVEST GROUP LIMITED,86383,39,180.48,REACTIVE MEP,05/12/2019,,Technical and Service Support,Works - Construction
800140945,SERVEST GROUP LIMITED,86383,40,588.18,REACTIVE MEP,05/12/2019,,Technical and Service Support,Works - Construction
800140945,SERVEST GROUP LIMITED,86383,41,"2,707.85",REACTIVE MEP,05/12/2019,,Technical and Service Support,Works - Construction
800140945,SERVEST GROUP LIMITED,86383,42,"2,902.19",REACTIVE MEP,05/12/2019,,Technical and Service Support,Works - Construction
800140945,SERVEST GROUP LIMITED,86383,43,35.8,REACTIVE MEP,05/12/2019,,Technical and Service Support,Works - Construction
800140945,SERVEST GROUP LIMITED,86383,44,373.02,REACTIVE MEP,05/12/2019,,Technical and Service Support,Works - Construction
800140945,SERVEST GROUP LIMITED,86383,45,38.46,REACTIVE MEP,05/12/2019,,Technical and Service Support,Works - Construction
800140945,SERVEST GROUP LIMITED,86383,46,76.92,REACTIVE MEP,05/12/2019,,Technical and Service Support,Works - Construction
800140945,SERVEST GROUP LIMITED,86383,47,158,REACTIVE MEP,05/12/2019,,Technical and Service Support,Works - Construction
800140945,SERVEST GROUP LIMITED,86383,48,158,REACTIVE MEP,05/12/2019,,Technical and Service Support,Works - Construction
800140945,SERVEST GROUP LIMITED,86383,49,158,REACTIVE MEP,05/12/2019,,Technical and Service Support,Works - Construction
800140945,SERVEST GROUP LIMITED,86383,50,158,REACTIVE MEP,05/12/2019,,Technical and Service Support,Works - Construction
800140945,SERVEST GROUP LIMITED,86383,51,158,REACTIVE MEP,05/12/2019,,Technical and Service Support,Works - Construction
800140945,SERVEST GROUP LIMITED,86383,52,158,REACTIVE MEP,05/12/2019,,Technical and Service Support,Works - Construction
800140945,SERVEST GROUP LIMITED,86383,53,158,REACTIVE MEP,05/12/2019,,Technical and Service Support,Works - Construction
800140945,SERVEST GROUP LIMITED,86383,54,158,REACTIVE MEP,05/12/2019,,Technical and Service Support,Works - Construction
800140945,SERVEST GROUP LIMITED,86383,55,158,REACTIVE MEP,05/12/2019,,Technical and Service Support,Works - Construction
800140945,SERVEST GROUP LIMITED,86383,56,158,REACTIVE MEP,05/12/2019,,Technical and Service Support,Works - Construction
800140945,SERVEST GROUP LIMITED,86383,57,158,REACTIVE MEP,05/12/2019,,Technical and Service Support,Works - Construction
800140945,SERVEST GROUP LIMITED,86383,58,158,REACTIVE MEP,05/12/2019,,Technical and Service Support,Works - Construction
800140945,SERVEST GROUP LIMITED,86383,59,192.3,REACTIVE MEP,05/12/2019,,Technical and Service Support,Works - Construction
800140945,SERVEST GROUP LIMITED,86383,60,48.72,REACTIVE MEP,05/12/2019,,Technical and Service Support,Works - Construction
800140945,SERVEST GROUP LIMITED,86383,61,748.95,REACTIVE MEP,05/12/2019,,Technical and Service Support,Works - Construction
800140945,SERVEST GROUP LIMITED,86383,62,18.23,REACTIVE MEP,05/12/2019,,Technical and Service Support,Works - Construction
800140945,SERVEST GROUP LIMITED,86383,63,169.57,REACTIVE MEP,05/12/2019,,Technical and Service Support,Works - Construction
800140945,SERVEST GROUP LIMITED,86383,64,12.18,REACTIVE MEP,05/12/2019,,Technical and Service Support,Works - Construction
800140945,SERVEST GROUP LIMITED,86383,65,234.45,REACTIVE MEP,05/12/2019,,Technical and Service Support,Works - Construction
800140945,SERVEST GROUP LIMITED,86383,66,183.23,REACTIVE MEP,05/12/2019,,Technical and Service Support,Works - Construction
800140945,SERVEST GROUP LIMITED,86383,67,115.64,REACTIVE MEP,05/12/2019,,Technical and Service Support,Works - Construction
800140945,SERVEST GROUP LIMITED,86383,68,48.72,REACTIVE MEP,05/12/2019,,Technical and Service Support,Works - Construction
800140945,SERVEST GROUP LIMITED,86383,69,23.92,REACTIVE MEP,05/12/2019,,Technical and Service Support,Works - Construction
800140945,SERVEST GROUP LIMITED,86383,70,39.65,REACTIVE MEP,05/12/2019,,Technical and Service Support,Works - Construction
800140945,SERVEST GROUP LIMITED,86383,71,45.58,REACTIVE MEP,05/12/2019,,Technical and Service Support,Works - Construction
800140945,SERVEST GROUP LIMITED,86383,72,35.8,REACTIVE MEP,05/12/2019,,Technical and Service Support,Works - Construction
800140945,SERVEST GROUP LIMITED,86383,73,264.34,REACTIVE MEP,05/12/2019,,Technical and Service Support,Works - Construction
800140945,SERVEST GROUP LIMITED,86383,74,83.32,REACTIVE MEP,05/12/2019,,Technical and Service Support,Works - Construction
800140945,SERVEST GROUP LIMITED,86383,75,115.38,REACTIVE MEP,05/12/2019,,Technical and Service Support,Works - Construction
800140945,SERVEST GROUP LIMITED,86383,76,24.36,REACTIVE MEP,05/12/2019,,Technical and Service Support,Works - Construction
800140945,SERVEST GROUP LIMITED,86383,77,71.6,REACTIVE MEP,05/12/2019,,Technical and Service Support,Works - Construction
800140945,SERVEST GROUP LIMITED,86383,78,153.84,REACTIVE MEP,05/12/2019,,Technical and Service Support,Works - Construction
800140945,SERVEST GROUP LIMITED,86383,79,66.08,REACTIVE MEP,05/12/2019,,Technical and Service Support,Works - Construction
800140945,SERVEST GROUP LIMITED,86383,80,35.8,REACTIVE MEP,05/12/2019,,Technical and Service Support,Works - Construction
800140945,SERVEST GROUP LIMITED,86383,81,460.95,REACTIVE MEP,05/12/2019,,Technical and Service Support,Works - Construction
800140945,SERVEST GROUP LIMITED,86383,82,11.96,REACTIVE MEP,05/12/2019,,Technical and Service Support,Works - Construction
800140945,SERVEST GROUP LIMITED,86383,83,272.5,REACTIVE MEP,05/12/2019,,Technical and Service Support,Works - Construction
800140945,SERVEST GROUP LIMITED,86383,84,143.2,REACTIVE MEP,05/12/2019,,Technical and Service Support,Works - Construction
800140945,SERVEST GROUP LIMITED,86383,85,23.92,REACTIVE MEP,05/12/2019,,Technical and Service Support,Works - Construction
800140945,SERVEST GROUP LIMITED,86383,86,71.76,REACTIVE MEP,05/12/2019,,Technical and Service Support,Works - Construction
800140945,SERVEST GROUP LIMITED,86383,87,114.65,REACTIVE MEP,05/12/2019,,Technical and Service Support,Works - Construction
800140945,SERVEST GROUP LIMITED,86383,88,684.51,REACTIVE MEP,05/12/2019,,Technical and Service Support,Works - Construction
800140945,SERVEST GROUP LIMITED,86383,89,38.81,REACTIVE MEP,05/12/2019,,Technical and Service Support,Works - Construction
800140945,SERVEST GROUP LIMITED,86383,90,110.8,REACTIVE MEP,05/12/2019,,Technical and Service Support,Works - Construction
800140945,SERVEST GROUP LIMITED,86383,91,35.88,REACTIVE MEP,05/12/2019,,Technical and Service Support,Works - Construction
800140945,SERVEST GROUP LIMITED,86383,92,66.08,REACTIVE MEP,05/12/2019,,Technical and Service Support,Works - Construction
800140945,SERVEST GROUP LIMITED,86383,93,219.46,REACTIVE MEP,05/12/2019,,Technical and Service Support,Works - Construction
800140945,SERVEST GROUP LIMITED,86383,94,118.24,REACTIVE MEP,05/12/2019,,Technical and Service Support,Works - Construction
800140945,SERVEST GROUP LIMITED,86383,95,39.65,REACTIVE MEP,05/12/2019,,Technical and Service Support,Works - Construction
800140945,SERVEST GROUP LIMITED,86383,96,156.3,REACTIVE MEP,05/12/2019,,Technical and Service Support,Works - Construction
800140945,SERVEST GROUP LIMITED,86383,97,39.65,REACTIVE MEP,05/12/2019,,Technical and Service Support,Works - Construction
800140945,SERVEST GROUP LIMITED,86383,98,330.4,REACTIVE MEP,05/12/2019,,Technical and Service Support,Works - Construction
800140945,SERVEST GROUP LIMITED,86383,99,392.5,REACTIVE MEP,05/12/2019,,Technical and Service Support,Works - Construction
800140945,SERVEST GROUP LIMITED,86383,100,47.84,REACTIVE MEP,05/12/2019,,Technical and Service Support,Works - Construction
800140945,SERVEST GROUP LIMITED,86383,101,12.18,REACTIVE MEP,05/12/2019,,Technical and Service Support,Works - Construction
800140945,SERVEST GROUP LIMITED,86383,102,18.23,REACTIVE MEP,05/12/2019,,Technical and Service Support,Works - Construction
800140945,SERVEST GROUP LIMITED,86383,103,"6,933.60",REACTIVE MEP,05/12/2019,,Technical and Service Support,Works - Construction
800140945,SERVEST GROUP LIMITED,86383,104,280.84,REACTIVE MEP,05/12/2019,,Technical and Service Support,Works - Construction
800140945,SERVEST GROUP LIMITED,86383,105,183.23,REACTIVE MEP,05/12/2019,,Technical and Service Support,Works - Construction
800140945,SERVEST GROUP LIMITED,86383,106,35.8,REACTIVE MEP,05/12/2019,,Technical and Service Support,Works - Construction
800140945,SERVEST GROUP LIMITED,86383,107,66.08,REACTIVE MEP,05/12/2019,,Technical and Service Support,Works - Construction
800140945,SERVEST GROUP LIMITED,86383,108,143.2,REACTIVE MEP,05/12/2019,,Technical and Service Support,Works - Construction
800140945,SERVEST GROUP LIMITED,86383,109,280.65,REACTIVE MEP,05/12/2019,,Technical and Service Support,Works - Construction
800140945,SERVEST GROUP LIMITED,86383,110,282.08,REACTIVE MEP,05/12/2019,,Technical and Service Support,Works - Construction
800140945,SERVEST GROUP LIMITED,86383,111,144.38,REACTIVE MEP,05/12/2019,,Technical and Service Support,Works - Construction
800140945,SERVEST GROUP LIMITED,86383,112,67.22,REACTIVE MEP,05/12/2019,,Technical and Service Support,Works - Construction
800140945,SERVEST GROUP LIMITED,86383,113,33.04,REACTIVE MEP,05/12/2019,,Technical and Service Support,Works - Construction
800140945,SERVEST GROUP LIMITED,86383,114,192.25,REACTIVE MEP,05/12/2019,,Technical and Service Support,Works - Construction
800140945,SERVEST GROUP LIMITED,86383,115,179.69,REACTIVE MEP,05/12/2019,,Technical and Service Support,Works - Construction
800140945,SERVEST GROUP LIMITED,86383,116,149.44,REACTIVE MEP,05/12/2019,,Technical and Service Support,Works - Construction
800140945,SERVEST GROUP LIMITED,86383,117,127.61,REACTIVE MEP,05/12/2019,,Technical and Service Support,Works - Construction
800140945,SERVEST GROUP LIMITED,86383,118,115.64,REACTIVE MEP,05/12/2019,,Technical and Service Support,Works - Construction
800140945,SERVEST GROUP LIMITED,86383,119,82.6,REACTIVE MEP,05/12/2019,,Technical and Service Support,Works - Construction
800140945,SERVEST GROUP LIMITED,86383,120,165.2,REACTIVE MEP,05/12/2019,,Technical and Service Support,Works - Construction
800140945,SERVEST GROUP LIMITED,86383,121,39.65,REACTIVE MEP,05/12/2019,,Technical and Service Support,Works - Construction
800140945,SERVEST GROUP LIMITED,86383,122,39.65,REACTIVE MEP,05/12/2019,,Technical and Service Support,Works - Construction
800140945,SERVEST GROUP LIMITED,86383,123,23.92,REACTIVE MEP,05/12/2019,,Technical and Service Support,Works - Construction
800140945,SERVEST GROUP LIMITED,86383,124,23.92,REACTIVE MEP,05/12/2019,,Technical and Service Support,Works - Construction
800140945,SERVEST GROUP LIMITED,86383,125,63.81,REACTIVE MEP,05/12/2019,,Technical and Service Support,Works - Construction
800140945,SERVEST GROUP LIMITED,86383,126,95,REACTIVE MEP,05/12/2019,,Technical and Service Support,Works - Construction
800140945,SERVEST GROUP LIMITED,86383,127,16.24,REACTIVE MEP,05/12/2019,,Technical and Service Support,Works - Construction
800140945,SERVEST GROUP LIMITED,86383,128,12.18,REACTIVE MEP,05/12/2019,,Technical and Service Support,Works - Construction
800140945,SERVEST GROUP LIMITED,86383,129,98.92,REACTIVE MEP,05/12/2019,,Technical and Service Support,Works - Construction
800140945,SERVEST GROUP LIMITED,86383,130,405.02,REACTIVE MEP,05/12/2019,,Technical and Service Support,Works - Construction
800140945,SERVEST GROUP LIMITED,86383,131,956.07,REACTIVE MEP,05/12/2019,,Technical and Service Support,Works - Construction
800140945,SERVEST GROUP LIMITED,86383,132,132.16,REACTIVE MEP,05/12/2019,,Technical and Service Support,Works - Construction
800140945,SERVEST GROUP LIMITED,86383,133,366.76,REACTIVE MEP,05/12/2019,,Technical and Service Support,Works - Construction
800140945,SERVEST GROUP LIMITED,86383,134,208.2,REACTIVE MEP,05/12/2019,,Technical and Service Support,Works - Construction
800140945,SERVEST GROUP LIMITED,86383,135,36.46,REACTIVE MEP,05/12/2019,,Technical and Service Support,Works - Construction
800140945,SERVEST GROUP LIMITED,86383,136,247.8,REACTIVE MEP,05/12/2019,,Technical and Service Support,Works - Construction
800140945,SERVEST GROUP LIMITED,86383,137,39.65,REACTIVE MEP,05/12/2019,,Technical and Service Support,Works - Construction
800140945,SERVEST GROUP LIMITED,86383,138,39.65,REACTIVE MEP,05/12/2019,,Technical and Service Support,Works - Construction
800140945,SERVEST GROUP LIMITED,86383,139,49.56,REACTIVE MEP,05/12/2019,,Technical and Service Support,Works - Construction
800140945,SERVEST GROUP LIMITED,86383,140,338.65,REACTIVE MEP,05/12/2019,,Technical and Service Support,Works - Construction
800140945,SERVEST GROUP LIMITED,86383,141,36.46,REACTIVE MEP,05/12/2019,,Technical and Service Support,Works - Construction
800140945,SERVEST GROUP LIMITED,86383,142,165.2,REACTIVE MEP,05/12/2019,,Technical and Service Support,Works - Construction
800140945,SERVEST GROUP LIMITED,86383,143,171.92,REACTIVE MEP,05/12/2019,,Technical and Service Support,Works - Construction
800140945,SERVEST GROUP LIMITED,86383,144,54.69,REACTIVE MEP,05/12/2019,,Technical and Service Support,Works - Construction
800140945,SERVEST GROUP LIMITED,86383,145,36.54,REACTIVE MEP,05/12/2019,,Technical and Service Support,Works - Construction
800140945,SERVEST GROUP LIMITED,86383,146,182.3,REACTIVE MEP,05/12/2019,,Technical and Service Support,Works - Construction
800140945,SERVEST GROUP LIMITED,86383,147,132.82,REACTIVE MEP,05/12/2019,,Technical and Service Support,Works - Construction
800140945,SERVEST GROUP LIMITED,86383,148,75,REACTIVE MEP,05/12/2019,,Technical and Service Support,Works - Construction
800140945,SERVEST GROUP LIMITED,86383,149,145.84,REACTIVE MEP,05/12/2019,,Technical and Service Support,Works - Construction
800140945,SERVEST GROUP LIMITED,86383,150,24.36,REACTIVE MEP,05/12/2019,,Technical and Service Support,Works - Construction
800140945,SERVEST GROUP LIMITED,86383,151,447.12,REACTIVE MEP,05/12/2019,,Technical and Service Support,Works - Construction
800140945,SERVEST GROUP LIMITED,86383,152,48.72,REACTIVE MEP,05/12/2019,,Technical and Service Support,Works - Construction
800140945,SERVEST GROUP LIMITED,86383,153,145.46,REACTIVE MEP,05/12/2019,,Technical and Service Support,Works - Construction
800140945,SERVEST GROUP LIMITED,86383,154,12.18,REACTIVE MEP,05/12/2019,,Technical and Service Support,Works - Construction
800140945,SERVEST GROUP LIMITED,86383,155,17.9,REACTIVE MEP,05/12/2019,,Technical and Service Support,Works - Construction
800140945,SERVEST GROUP LIMITED,86383,156,75,REACTIVE MEP,05/12/2019,,Technical and Service Support,Works - Construction
800140945,SERVEST GROUP LIMITED,86383,157,394.97,REACTIVE MEP,05/12/2019,,Technical and Service Support,Works - Construction
800140945,SERVEST GROUP LIMITED,86383,158,129.69,REACTIVE MEP,05/12/2019,,Technical and Service Support,Works - Construction
800140945,SERVEST GROUP LIMITED,86383,159,75,REACTIVE MEP,05/12/2019,,Technical and Service Support,Works - Construction
800140945,SERVEST GROUP LIMITED,86383,160,141.03,REACTIVE MEP,05/12/2019,,Technical and Service Support,Works - Construction
800140945,SERVEST GROUP LIMITED,86383,161,72.92,REACTIVE MEP,05/12/2019,,Technical and Service Support,Works - Construction
800140945,SERVEST GROUP LIMITED,86383,162,33.04,REACTIVE MEP,05/12/2019,,Technical and Service Support,Works - Construction
800140945,SERVEST GROUP LIMITED,86383,163,82.03,REACTIVE MEP,05/12/2019,,Technical and Service Support,Works - Construction
800140945,SERVEST GROUP LIMITED,86383,164,184.38,REACTIVE MEP,05/12/2019,,Technical and Service Support,Works - Construction
800140945,SERVEST GROUP LIMITED,86383,165,57.82,REACTIVE MEP,05/12/2019,,Technical and Service Support,Works - Construction
800140945,SERVEST GROUP LIMITED,86383,166,66.08,REACTIVE MEP,05/12/2019,,Technical and Service Support,Works - Construction
800140945,SERVEST GROUP LIMITED,86383,167,125.65,REACTIVE MEP,05/12/2019,,Technical and Service Support,Works - Construction
800140945,SERVEST GROUP LIMITED,86383,168,173.36,REACTIVE MEP,05/12/2019,,Technical and Service Support,Works - Construction
800140945,SERVEST GROUP LIMITED,86383,169,55.89,REACTIVE MEP,05/12/2019,,Technical and Service Support,Works - Construction
800140945,SERVEST GROUP LIMITED,86383,170,39.65,REACTIVE MEP,05/12/2019,,Technical and Service Support,Works - Construction
800140945,SERVEST GROUP LIMITED,86383,171,39.65,REACTIVE MEP,05/12/2019,,Technical and Service Support,Works - Construction
800140945,SERVEST GROUP LIMITED,86383,172,812.61,REACTIVE MEP,05/12/2019,,Technical and Service Support,Works - Construction
800140945,SERVEST GROUP LIMITED,86383,173,205.32,REACTIVE MEP,05/12/2019,,Technical and Service Support,Works - Construction
800140945,SERVEST GROUP LIMITED,86383,174,140.59,REACTIVE MEP,05/12/2019,,Technical and Service Support,Works - Construction
800140945,SERVEST GROUP LIMITED,86383,175,211.62,REACTIVE MEP,05/12/2019,,Technical and Service Support,Works - Construction
800140945,SERVEST GROUP LIMITED,86383,176,254,REACTIVE MEP,05/12/2019,,Technical and Service Support,Works - Construction
800140945,SERVEST GROUP LIMITED,86383,177,"3,447.48",REACTIVE MEP,05/12/2019,,Technical and Service Support,Works - Construction
800140945,SERVEST GROUP LIMITED,86383,178,23.92,REACTIVE MEP,05/12/2019,,Technical and Service Support,Works - Construction
800140945,SERVEST GROUP LIMITED,86383,179,23.92,REACTIVE MEP,05/12/2019,,Technical and Service Support,Works - Construction
800140945,SERVEST GROUP LIMITED,86383,180,72.92,REACTIVE MEP,05/12/2019,,Technical and Service Support,Works - Construction
800140945,SERVEST GROUP LIMITED,86383,181,233.61,REACTIVE MEP,05/12/2019,,Technical and Service Support,Works - Construction
800140945,SERVEST GROUP LIMITED,86383,182,82.04,REACTIVE MEP,05/12/2019,,Technical and Service Support,Works - Construction
800140945,SERVEST GROUP LIMITED,86383,183,83.4,REACTIVE MEP,05/12/2019,,Technical and Service Support,Works - Construction
800140945,SERVEST GROUP LIMITED,86383,184,63.81,REACTIVE MEP,05/12/2019,,Technical and Service Support,Works - Construction
800140945,SERVEST GROUP LIMITED,86383,185,566.94,REACTIVE MEP,05/12/2019,,Technical and Service Support,Works - Construction
800140945,SERVEST GROUP LIMITED,86383,186,48.72,REACTIVE MEP,05/12/2019,,Technical and Service Support,Works - Construction
800140945,SERVEST GROUP LIMITED,86383,187,246.5,REACTIVE MEP,05/12/2019,,Technical and Service Support,Works - Construction
800140945,SERVEST GROUP LIMITED,86383,188,314.95,REACTIVE MEP,05/12/2019,,Technical and Service Support,Works - Construction
800140945,SERVEST GROUP LIMITED,86383,189,270.81,REACTIVE MEP,05/12/2019,,Technical and Service Support,Works - Construction
800140945,SERVEST GROUP LIMITED,86383,190,218.2,REACTIVE MEP,05/12/2019,,Technical and Service Support,Works - Construction
800140945,SERVEST GROUP LIMITED,86383,191,75,REACTIVE MEP,05/12/2019,,Technical and Service Support,Works - Construction
800140945,SERVEST GROUP LIMITED,86383,192,106.92,REACTIVE MEP,05/12/2019,,Technical and Service Support,Works - Construction
800140945,SERVEST GROUP LIMITED,86383,193,807.48,REACTIVE MEP,05/12/2019,,Technical and Service Support,Works - Construction
800140945,SERVEST GROUP LIMITED,86383,194,39.65,REACTIVE MEP,05/12/2019,,Technical and Service Support,Works - Construction
800140945,SERVEST GROUP LIMITED,86383,195,144.26,REACTIVE MEP,05/12/2019,,Technical and Service Support,Works - Construction
800140945,SERVEST GROUP LIMITED,86383,196,115.5,REACTIVE MEP,05/12/2019,,Technical and Service Support,Works - Construction
800140945,SERVEST GROUP LIMITED,86383,197,18.23,REACTIVE MEP,05/12/2019,,Technical and Service Support,Works - Construction
800140945,SERVEST GROUP LIMITED,86383,198,70.54,REACTIVE MEP,05/12/2019,,Technical and Service Support,Works - Construction
800140945,SERVEST GROUP LIMITED,86383,199,23.92,REACTIVE MEP,05/12/2019,,Technical and Service Support,Works - Construction
800140945,SERVEST GROUP LIMITED,86383,200,23.92,REACTIVE MEP,05/12/2019,,Technical and Service Support,Works - Construction
800140945,SERVEST GROUP LIMITED,86383,201,72.39,REACTIVE MEP,05/12/2019,,Technical and Service Support,Works - Construction
800140945,SERVEST GROUP LIMITED,86383,202,453.64,REACTIVE MEP,05/12/2019,,Technical and Service Support,Works - Construction
800140945,SERVEST GROUP LIMITED,86383,203,231.95,REACTIVE MEP,05/12/2019,,Technical and Service Support,Works - Construction
800140945,SERVEST GROUP LIMITED,86383,204,167.44,REACTIVE MEP,05/12/2019,,Technical and Service Support,Works - Construction
800140945,SERVEST GROUP LIMITED,86383,205,381.42,REACTIVE MEP,05/12/2019,,Technical and Service Support,Works - Construction
800140945,SERVEST GROUP LIMITED,86383,206,256.72,REACTIVE MEP,05/12/2019,,Technical and Service Support,Works - Construction
800140945,SERVEST GROUP LIMITED,86383,207,82.6,REACTIVE MEP,05/12/2019,,Technical and Service Support,Works - Construction
800140945,SERVEST GROUP LIMITED,86383,208,75,REACTIVE MEP,05/12/2019,,Technical and Service Support,Works - Construction
800140945,SERVEST GROUP LIMITED,86383,209,491.32,REACTIVE MEP,05/12/2019,,Technical and Service Support,Works - Construction
800140945,SERVEST GROUP LIMITED,86383,210,45.58,REACTIVE MEP,05/12/2019,,Technical and Service Support,Works - Construction
800140945,SERVEST GROUP LIMITED,86383,211,23.92,REACTIVE MEP,05/12/2019,,Technical and Service Support,Works - Construction
800140945,SERVEST GROUP LIMITED,86383,212,82.6,REACTIVE MEP,05/12/2019,,Technical and Service Support,Works - Construction
800140945,SERVEST GROUP LIMITED,86383,213,127.91,REACTIVE MEP,05/12/2019,,Technical and Service Support,Works - Construction
800140945,SERVEST GROUP LIMITED,86383,214,595.14,REACTIVE MEP,05/12/2019,,Technical and Service Support,Works - Construction
800140945,SERVEST GROUP LIMITED,86383,215,28.85,REACTIVE MEP,05/12/2019,,Technical and Service Support,Works - Construction
800140945,SERVEST GROUP LIMITED,86383,216,55.89,REACTIVE MEP,05/12/2019,,Technical and Service Support,Works - Construction
800140945,SERVEST GROUP LIMITED,86383,217,257.04,REACTIVE MEP,05/12/2019,,Technical and Service Support,Works - Construction
800140945,SERVEST GROUP LIMITED,86383,218,271.9,REACTIVE MEP,05/12/2019,,Technical and Service Support,Works - Construction
800140945,SERVEST GROUP LIMITED,86383,219,39.65,REACTIVE MEP,05/12/2019,,Technical and Service Support,Works - Construction
800140945,SERVEST GROUP LIMITED,86383,220,39.65,REACTIVE MEP,05/12/2019,,Technical and Service Support,Works - Construction
800140945,SERVEST GROUP LIMITED,86383,221,39.65,REACTIVE MEP,05/12/2019,,Technical and Service Support,Works - Construction
800140945,SERVEST GROUP LIMITED,86383,222,429.6,REACTIVE MEP,05/12/2019,,Technical and Service Support,Works - Construction
800140945,SERVEST GROUP LIMITED,86383,223,39.65,REACTIVE MEP,05/12/2019,,Technical and Service Support,Works - Construction
800140945,SERVEST GROUP LIMITED,86383,224,49.56,REACTIVE MEP,05/12/2019,,Technical and Service Support,Works - Construction
800140945,SERVEST GROUP LIMITED,86383,225,55.89,REACTIVE MEP,05/12/2019,,Technical and Service Support,Works - Construction
800140945,SERVEST GROUP LIMITED,86383,226,50.65,REACTIVE MEP,05/12/2019,,Technical and Service Support,Works - Construction
800140945,SERVEST GROUP LIMITED,86383,227,60.16,REACTIVE MEP,05/12/2019,,Technical and Service Support,Works - Construction
800140945,SERVEST GROUP LIMITED,86383,228,228.84,REACTIVE MEP,05/12/2019,,Technical and Service Support,Works - Construction
800140945,SERVEST GROUP LIMITED,86383,229,86.96,REACTIVE MEP,05/12/2019,,Technical and Service Support,Works - Construction
800140945,SERVEST GROUP LIMITED,86383,230,162.17,REACTIVE MEP,05/12/2019,,Technical and Service Support,Works - Construction
800140945,SERVEST GROUP LIMITED,86383,231,84.25,REACTIVE MEP,05/12/2019,,Technical and Service Support,Works - Construction
800140945,SERVEST GROUP LIMITED,86383,232,829.62,REACTIVE MEP,05/12/2019,,Technical and Service Support,Works - Construction
800140945,SERVEST GROUP LIMITED,86383,233,54.69,REACTIVE MEP,05/12/2019,,Technical and Service Support,Works - Construction
800140945,SERVEST GROUP LIMITED,86383,234,23.92,REACTIVE MEP,05/12/2019,,Technical and Service Support,Works - Construction
800140945,SERVEST GROUP LIMITED,86383,235,443.43,REACTIVE MEP,05/12/2019,,Technical and Service Support,Works - Construction
800140945,SERVEST GROUP LIMITED,86383,236,23.92,REACTIVE MEP,05/12/2019,,Technical and Service Support,Works - Construction
800140945,SERVEST GROUP LIMITED,86383,237,111.46,REACTIVE MEP,05/12/2019,,Technical and Service Support,Works - Construction
800140945,SERVEST GROUP LIMITED,86383,238,72.39,REACTIVE MEP,05/12/2019,,Technical and Service Support,Works - Construction
800140945,SERVEST GROUP LIMITED,86383,239,71.6,REACTIVE MEP,05/12/2019,,Technical and Service Support,Works - Construction
800140945,SERVEST GROUP LIMITED,86383,240,120.32,REACTIVE MEP,05/12/2019,,Technical and Service Support,Works - Construction
800140945,SERVEST GROUP LIMITED,86383,241,12.18,REACTIVE MEP,05/12/2019,,Technical and Service Support,Works - Construction
800140945,SERVEST GROUP LIMITED,86383,242,152.9,REACTIVE MEP,05/12/2019,,Technical and Service Support,Works - Construction
800140945,SERVEST GROUP LIMITED,86383,243,60.16,REACTIVE MEP,05/12/2019,,Technical and Service Support,Works - Construction
800140945,SERVEST GROUP LIMITED,86383,244,155.05,REACTIVE MEP,05/12/2019,,Technical and Service Support,Works - Construction
800140945,SERVEST GROUP LIMITED,86383,245,52.91,REACTIVE MEP,05/12/2019,,Technical and Service Support,Works - Construction
800140945,SERVEST GROUP LIMITED,86383,246,35.8,REACTIVE MEP,05/12/2019,,Technical and Service Support,Works - Construction
800140945,SERVEST GROUP LIMITED,86383,247,36.46,REACTIVE MEP,05/12/2019,,Technical and Service Support,Works - Construction
800140945,SERVEST GROUP LIMITED,86383,248,66.03,REACTIVE MEP,05/12/2019,,Technical and Service Support,Works - Construction
800140945,SERVEST GROUP LIMITED,86383,249,98.92,REACTIVE MEP,05/12/2019,,Technical and Service Support,Works - Construction
800140945,SERVEST GROUP LIMITED,86383,250,39.65,REACTIVE MEP,05/12/2019,,Technical and Service Support,Works - Construction
800140945,SERVEST GROUP LIMITED,86383,251,39.65,REACTIVE MEP,05/12/2019,,Technical and Service Support,Works - Construction
800140945,SERVEST GROUP LIMITED,86383,252,71.6,REACTIVE MEP,05/12/2019,,Technical and Service Support,Works - Construction
800140945,SERVEST GROUP LIMITED,86383,253,54.69,REACTIVE MEP,05/12/2019,,Technical and Service Support,Works - Construction
800140945,SERVEST GROUP LIMITED,86383,254,255.09,REACTIVE MEP,05/12/2019,,Technical and Service Support,Works - Construction
800140945,SERVEST GROUP LIMITED,86383,255,85.86,REACTIVE MEP,05/12/2019,,Technical and Service Support,Works - Construction
800140945,SERVEST GROUP LIMITED,86383,256,72.92,REACTIVE MEP,05/12/2019,,Technical and Service Support,Works - Construction
800140945,SERVEST GROUP LIMITED,86383,257,166.41,REACTIVE MEP,05/12/2019,,Technical and Service Support,Works - Construction
800140945,SERVEST GROUP LIMITED,86383,258,188.3,REACTIVE MEP,05/12/2019,,Technical and Service Support,Works - Construction
800140945,SERVEST GROUP LIMITED,86383,259,35.8,REACTIVE MEP,05/12/2019,,Technical and Service Support,Works - Construction
800140945,SERVEST GROUP LIMITED,86383,260,82.6,REACTIVE MEP,05/12/2019,,Technical and Service Support,Works - Construction
800140945,SERVEST GROUP LIMITED,86383,261,247.8,REACTIVE MEP,05/12/2019,,Technical and Service Support,Works - Construction
800140945,SERVEST GROUP LIMITED,86383,262,24.36,REACTIVE MEP,05/12/2019,,Technical and Service Support,Works - Construction
800140945,SERVEST GROUP LIMITED,86383,263,91.15,REACTIVE MEP,05/12/2019,,Technical and Service Support,Works - Construction
800140945,SERVEST GROUP LIMITED,86383,264,26.85,REACTIVE MEP,05/12/2019,,Technical and Service Support,Works - Construction
800140945,SERVEST GROUP LIMITED,86383,265,293.76,REACTIVE MEP,05/12/2019,,Technical and Service Support,Works - Construction
800140945,SERVEST GROUP LIMITED,86383,266,218.76,REACTIVE MEP,05/12/2019,,Technical and Service Support,Works - Construction
800140945,SERVEST GROUP LIMITED,86383,267,124.5,REACTIVE MEP,05/12/2019,,Technical and Service Support,Works - Construction
800140945,SERVEST GROUP LIMITED,86383,268,18.23,REACTIVE MEP,05/12/2019,,Technical and Service Support,Works - Construction
800140945,SERVEST GROUP LIMITED,86383,269,123.57,REACTIVE MEP,05/12/2019,,Technical and Service Support,Works - Construction
800140945,SERVEST GROUP LIMITED,86383,270,123.57,REACTIVE MEP,05/12/2019,,Technical and Service Support,Works - Construction
800140945,SERVEST GROUP LIMITED,86383,271,11.96,REACTIVE MEP,05/12/2019,,Technical and Service Support,Works - Construction
800140945,SERVEST GROUP LIMITED,86383,272,33.2,REACTIVE MEP,05/12/2019,,Technical and Service Support,Works - Construction
800140945,SERVEST GROUP LIMITED,86383,273,39.65,REACTIVE MEP,05/12/2019,,Technical and Service Support,Works - Construction
800140945,SERVEST GROUP LIMITED,86383,274,33.04,REACTIVE MEP,05/12/2019,,Technical and Service Support,Works - Construction
800140945,SERVEST GROUP LIMITED,86383,275,35.27,REACTIVE MEP,05/12/2019,,Technical and Service Support,Works - Construction
800140945,SERVEST GROUP LIMITED,86383,276,39.65,REACTIVE MEP,05/12/2019,,Technical and Service Support,Works - Construction
800140945,SERVEST GROUP LIMITED,86383,277,99.12,REACTIVE MEP,05/12/2019,,Technical and Service Support,Works - Construction
800140945,SERVEST GROUP LIMITED,86383,278,53.7,REACTIVE MEP,05/12/2019,,Technical and Service Support,Works - Construction
800140945,SERVEST GROUP LIMITED,86383,279,165.2,REACTIVE MEP,05/12/2019,,Technical and Service Support,Works - Construction
800140945,SERVEST GROUP LIMITED,86383,280,71.6,REACTIVE MEP,05/12/2019,,Technical and Service Support,Works - Construction
800140945,SERVEST GROUP LIMITED,86383,281,89.5,REACTIVE MEP,05/12/2019,,Technical and Service Support,Works - Construction
800140945,SERVEST GROUP LIMITED,86383,282,12.93,REACTIVE MEP,05/12/2019,,Technical and Service Support,Works - Construction
800140945,SERVEST GROUP LIMITED,86383,283,91.15,REACTIVE MEP,05/12/2019,,Technical and Service Support,Works - Construction
800140945,SERVEST GROUP LIMITED,86383,284,164.07,REACTIVE MEP,05/12/2019,,Technical and Service Support,Works - Construction
800140945,SERVEST GROUP LIMITED,86383,285,147.92,REACTIVE MEP,05/12/2019,,Technical and Service Support,Works - Construction
800140945,SERVEST GROUP LIMITED,86383,286,457.24,REACTIVE MEP,05/12/2019,,Technical and Service Support,Works - Construction
800140945,SERVEST GROUP LIMITED,86383,287,45.58,REACTIVE MEP,05/12/2019,,Technical and Service Support,Works - Construction
800140945,SERVEST GROUP LIMITED,86383,288,72.92,REACTIVE MEP,05/12/2019,,Technical and Service Support,Works - Construction
800140945,SERVEST GROUP LIMITED,86383,289,39.65,REACTIVE MEP,05/12/2019,,Technical and Service Support,Works - Construction
800140945,SERVEST GROUP LIMITED,86383,290,293.63,REACTIVE MEP,05/12/2019,,Technical and Service Support,Works - Construction
800140945,SERVEST GROUP LIMITED,86383,291,113.23,REACTIVE MEP,05/12/2019,,Technical and Service Support,Works - Construction
800140945,SERVEST GROUP LIMITED,86383,292,39.65,REACTIVE MEP,05/12/2019,,Technical and Service Support,Works - Construction
800140945,SERVEST GROUP LIMITED,86383,293,461.74,REACTIVE MEP,05/12/2019,,Technical and Service Support,Works - Construction
800140945,SERVEST GROUP LIMITED,86383,294,124.56,REACTIVE MEP,05/12/2019,,Technical and Service Support,Works - Construction
800140945,SERVEST GROUP LIMITED,86383,295,66.08,REACTIVE MEP,05/12/2019,,Technical and Service Support,Works - Construction
800140945,SERVEST GROUP LIMITED,86383,296,35.8,REACTIVE MEP,05/12/2019,,Technical and Service Support,Works - Construction
800140945,SERVEST GROUP LIMITED,86383,297,108.04,REACTIVE MEP,05/12/2019,,Technical and Service Support,Works - Construction
800140945,SERVEST GROUP LIMITED,86383,298,35.8,REACTIVE MEP,05/12/2019,,Technical and Service Support,Works - Construction
800140945,SERVEST GROUP LIMITED,86383,299,35.27,REACTIVE MEP,05/12/2019,,Technical and Service Support,Works - Construction
800140945,SERVEST GROUP LIMITED,86383,300,146.6,REACTIVE MEP,05/12/2019,,Technical and Service Support,Works - Construction
800140945,SERVEST GROUP LIMITED,86383,301,151.92,REACTIVE MEP,05/12/2019,,Technical and Service Support,Works - Construction
800140945,SERVEST GROUP LIMITED,86383,302,35.8,REACTIVE MEP,05/12/2019,,Technical and Service Support,Works - Construction
800140945,SERVEST GROUP LIMITED,86383,303,35.27,REACTIVE MEP,05/12/2019,,Technical and Service Support,Works - Construction
800140945,SERVEST GROUP LIMITED,86383,304,141.08,REACTIVE MEP,05/12/2019,,Technical and Service Support,Works - Construction
800140945,SERVEST GROUP LIMITED,86383,305,33.04,REACTIVE MEP,05/12/2019,,Technical and Service Support,Works - Construction
800140945,SERVEST GROUP LIMITED,86383,306,76.92,REACTIVE MEP,05/12/2019,,Technical and Service Support,Works - Construction
800140945,SERVEST GROUP LIMITED,86383,307,119.75,REACTIVE MEP,05/12/2019,,Technical and Service Support,Works - Construction
800140945,SERVEST GROUP LIMITED,86383,308,92.9,REACTIVE MEP,05/12/2019,,Technical and Service Support,Works - Construction
800140945,SERVEST GROUP LIMITED,86383,309,35.8,REACTIVE MEP,05/12/2019,,Technical and Service Support,Works - Construction
800140945,SERVEST GROUP LIMITED,86383,310,184.98,REACTIVE MEP,05/12/2019,,Technical and Service Support,Works - Construction
800140945,SERVEST GROUP LIMITED,86383,311,99.12,REACTIVE MEP,05/12/2019,,Technical and Service Support,Works - Construction
800140945,SERVEST GROUP LIMITED,86383,312,33.04,REACTIVE MEP,05/12/2019,,Technical and Service Support,Works - Construction
800140945,SERVEST GROUP LIMITED,86383,313,71.6,REACTIVE MEP,05/12/2019,,Technical and Service Support,Works - Construction
800140945,SERVEST GROUP LIMITED,86383,314,171.15,REACTIVE MEP,05/12/2019,,Technical and Service Support,Works - Construction
800140943,SERVEST GROUP LIMITED,86385,1,398.63,PLANNED MEP,05/12/2019,"20,001.37",Technical and Service Support,Works - Construction
800140943,SERVEST GROUP LIMITED,86385,2,255.19,PLANNED MEP,05/12/2019,,Technical and Service Support,Works - Construction
800140943,SERVEST GROUP LIMITED,86385,3,453.38,PLANNED MEP,05/12/2019,,Technical and Service Support,Works - Construction
800140943,SERVEST GROUP LIMITED,86385,4,412.32,PLANNED MEP,05/12/2019,,Technical and Service Support,Works - Construction
800140943,SERVEST GROUP LIMITED,86385,5,276.76,PLANNED MEP,05/12/2019,,Technical and Service Support,Works - Construction
800140943,SERVEST GROUP LIMITED,86385,6,491.3,PLANNED MEP,05/12/2019,,Technical and Service Support,Works - Construction
800140943,SERVEST GROUP LIMITED,86385,7,292.63,PLANNED MEP,05/12/2019,,Technical and Service Support,Works - Construction
800140943,SERVEST GROUP LIMITED,86385,8,329.48,PLANNED MEP,05/12/2019,,Technical and Service Support,Works - Construction
800140943,SERVEST GROUP LIMITED,86385,9,485.44,PLANNED MEP,05/12/2019,,Technical and Service Support,Works - Construction
800140943,SERVEST GROUP LIMITED,86385,10,549.28,PLANNED MEP,05/12/2019,,Technical and Service Support,Works - Construction
800140943,SERVEST GROUP LIMITED,86385,11,290.97,PLANNED MEP,05/12/2019,,Technical and Service Support,Works - Construction
800140943,SERVEST GROUP LIMITED,86385,12,584.53,PLANNED MEP,05/12/2019,,Technical and Service Support,Works - Construction
800140943,SERVEST GROUP LIMITED,86385,13,239.51,PLANNED MEP,05/12/2019,,Technical and Service Support,Works - Construction
800140943,SERVEST GROUP LIMITED,86385,14,298.61,PLANNED MEP,05/12/2019,,Technical and Service Support,Works - Construction
800140943,SERVEST GROUP LIMITED,86385,15,845.56,PLANNED MEP,05/12/2019,,Technical and Service Support,Works - Construction
800140943,SERVEST GROUP LIMITED,86385,16,432.3,PLANNED MEP,05/12/2019,,Technical and Service Support,Works - Construction
800140943,SERVEST GROUP LIMITED,86385,17,888.25,PLANNED MEP,05/12/2019,,Technical and Service Support,Works - Construction
800140943,SERVEST GROUP LIMITED,86385,18,323.08,PLANNED MEP,05/12/2019,,Technical and Service Support,Works - Construction
800140943,SERVEST GROUP LIMITED,86385,19,315.34,PLANNED MEP,05/12/2019,,Technical and Service Support,Works - Construction
800140943,SERVEST GROUP LIMITED,86385,20,296.31,PLANNED MEP,05/12/2019,,Technical and Service Support,Works - Construction
800140943,SERVEST GROUP LIMITED,86385,21,283.39,PLANNED MEP,05/12/2019,,Technical and Service Support,Works - Construction
800140943,SERVEST GROUP LIMITED,86385,22,283.7,PLANNED MEP,05/12/2019,,Technical and Service Support,Works - Construction
800140943,SERVEST GROUP LIMITED,86385,23,297.71,PLANNED MEP,05/12/2019,,Technical and Service Support,Works - Construction
800140943,SERVEST GROUP LIMITED,86385,24,283.97,PLANNED MEP,05/12/2019,,Technical and Service Support,Works - Construction
800140943,SERVEST GROUP LIMITED,86385,25,308.16,PLANNED MEP,05/12/2019,,Technical and Service Support,Works - Construction
800140943,SERVEST GROUP LIMITED,86385,26,67.62,PLANNED MEP,05/12/2019,,Technical and Service Support,Works - Construction
800140943,SERVEST GROUP LIMITED,86385,27,335.26,PLANNED MEP,05/12/2019,,Technical and Service Support,Works - Construction
800140943,SERVEST GROUP LIMITED,86385,28,80.57,PLANNED MEP,05/12/2019,,Technical and Service Support,Works - Construction
800140943,SERVEST GROUP LIMITED,86385,29,394.47,PLANNED MEP,05/12/2019,,Technical and Service Support,Works - Construction
800140943,SERVEST GROUP LIMITED,86385,30,283.64,PLANNED MEP,05/12/2019,,Technical and Service Support,Works - Construction
800140943,SERVEST GROUP LIMITED,86385,31,239.7,PLANNED MEP,05/12/2019,,Technical and Service Support,Works - Construction
800140943,SERVEST GROUP LIMITED,86385,32,406.51,PLANNED MEP,05/12/2019,,Technical and Service Support,Works - Construction
800140943,SERVEST GROUP LIMITED,86385,33,296.14,PLANNED MEP,05/12/2019,,Technical and Service Support,Works - Construction
800140943,SERVEST GROUP LIMITED,86385,34,788.95,PLANNED MEP,05/12/2019,,Technical and Service Support,Works - Construction
800140943,SERVEST GROUP LIMITED,86385,35,198.84,PLANNED MEP,05/12/2019,,Technical and Service Support,Works - Construction
800140943,SERVEST GROUP LIMITED,86385,36,250.1,PLANNED MEP,05/12/2019,,Technical and Service Support,Works - Construction
800140943,SERVEST GROUP LIMITED,86385,37,273.02,PLANNED MEP,05/12/2019,,Technical and Service Support,Works - Construction
800140943,SERVEST GROUP LIMITED,86385,38,265.62,PLANNED MEP,05/12/2019,,Technical and Service Support,Works - Construction
800140943,SERVEST GROUP LIMITED,86385,39,312.92,PLANNED MEP,05/12/2019,,Technical and Service Support,Works - Construction
800140943,SERVEST GROUP LIMITED,86385,40,590.66,PLANNED MEP,05/12/2019,,Technical and Service Support,Works - Construction
800140943,SERVEST GROUP LIMITED,86385,41,422.42,PLANNED MEP,05/12/2019,,Technical and Service Support,Works - Construction
800140943,SERVEST GROUP LIMITED,86385,42,271.58,PLANNED MEP,05/12/2019,,Technical and Service Support,Works - Construction
800140943,SERVEST GROUP LIMITED,86385,43,269.05,PLANNED MEP,05/12/2019,,Technical and Service Support,Works - Construction
800140943,SERVEST GROUP LIMITED,86385,44,409.49,PLANNED MEP,05/12/2019,,Technical and Service Support,Works - Construction
800140943,SERVEST GROUP LIMITED,86385,45,110.24,PLANNED MEP,05/12/2019,,Technical and Service Support,Works - Construction
800140943,SERVEST GROUP LIMITED,86385,46,427.17,PLANNED MEP,05/12/2019,,Technical and Service Support,Works - Construction
800140943,SERVEST GROUP LIMITED,86385,47,352.84,PLANNED MEP,05/12/2019,,Technical and Service Support,Works - Construction
800140943,SERVEST GROUP LIMITED,86385,48,395.79,PLANNED MEP,05/12/2019,,Technical and Service Support,Works - Construction
800140943,SERVEST GROUP LIMITED,86385,49,567.63,PLANNED MEP,05/12/2019,,Technical and Service Support,Works - Construction
800140943,SERVEST GROUP LIMITED,86385,50,650.63,PLANNED MEP,05/12/2019,,Technical and Service Support,Works - Construction
800140943,SERVEST GROUP LIMITED,86385,51,258.82,PLANNED MEP,05/12/2019,,Technical and Service Support,Works - Construction
800140943,SERVEST GROUP LIMITED,86385,52,413.64,PLANNED MEP,05/12/2019,,Technical and Service Support,Works - Construction
800140943,SERVEST GROUP LIMITED,86385,53,469.43,PLANNED MEP,05/12/2019,,Technical and Service Support,Works - Construction
800140943,SERVEST GROUP LIMITED,86385,54,282.82,PLANNED MEP,05/12/2019,,Technical and Service Support,Works - Construction
800140964,SERVEST GROUP LIMITED,86402,1,362.83,REACTIVE MEP,05/12/2019,"50,796.87",Technical and Service Support,Works - Construction
800140964,SERVEST GROUP LIMITED,86402,2,"1,650.88",REACTIVE MEP,05/12/2019,,Technical and Service Support,Works - Construction
800140964,SERVEST GROUP LIMITED,86402,3,378.48,REACTIVE MEP,05/12/2019,,Technical and Service Support,Works - Construction
800140964,SERVEST GROUP LIMITED,86402,4,"3,447.72",REACTIVE MEP,05/12/2019,,Technical and Service Support,Works - Construction
800140964,SERVEST GROUP LIMITED,86402,5,"1,328.55",REACTIVE MEP,05/12/2019,,Technical and Service Support,Works - Construction
800140964,SERVEST GROUP LIMITED,86402,6,180,REACTIVE MEP,05/12/2019,,Technical and Service Support,Works - Construction
800140964,SERVEST GROUP LIMITED,86402,7,89.5,REACTIVE MEP,05/12/2019,,Technical and Service Support,Works - Construction
800140964,SERVEST GROUP LIMITED,86402,8,"1,299.97",REACTIVE MEP,05/12/2019,,Technical and Service Support,Works - Construction
800140964,SERVEST GROUP LIMITED,86402,9,108.32,REACTIVE MEP,05/12/2019,,Technical and Service Support,Works - Construction
800140964,SERVEST GROUP LIMITED,86402,10,826.12,REACTIVE MEP,05/12/2019,,Technical and Service Support,Works - Construction
800140964,SERVEST GROUP LIMITED,86402,11,471.26,REACTIVE MEP,05/12/2019,,Technical and Service Support,Works - Construction
800140964,SERVEST GROUP LIMITED,86402,12,"1,802.07",REACTIVE MEP,05/12/2019,,Technical and Service Support,Works - Construction
800140964,SERVEST GROUP LIMITED,86402,13,666.46,REACTIVE MEP,05/12/2019,,Technical and Service Support,Works - Construction
800140964,SERVEST GROUP LIMITED,86402,14,"1,177.37",REACTIVE MEP,05/12/2019,,Technical and Service Support,Works - Construction
800140964,SERVEST GROUP LIMITED,86402,15,712.22,REACTIVE MEP,05/12/2019,,Technical and Service Support,Works - Construction
800140964,SERVEST GROUP LIMITED,86402,16,242.97,REACTIVE MEP,05/12/2019,,Technical and Service Support,Works - Construction
800140964,SERVEST GROUP LIMITED,86402,17,923.3,REACTIVE MEP,05/12/2019,,Technical and Service Support,Works - Construction
800140964,SERVEST GROUP LIMITED,86402,18,"1,203.30",REACTIVE MEP,05/12/2019,,Technical and Service Support,Works - Construction
800140964,SERVEST GROUP LIMITED,86402,19,211.98,REACTIVE MEP,05/12/2019,,Technical and Service Support,Works - Construction
800140964,SERVEST GROUP LIMITED,86402,20,697.46,REACTIVE MEP,05/12/2019,,Technical and Service Support,Works - Construction
800140964,SERVEST GROUP LIMITED,86402,21,158.93,REACTIVE MEP,05/12/2019,,Technical and Service Support,Works - Construction
800140964,SERVEST GROUP LIMITED,86402,22,751.05,REACTIVE MEP,05/12/2019,,Technical and Service Support,Works - Construction
800140964,SERVEST GROUP LIMITED,86402,23,251.32,REACTIVE MEP,05/12/2019,,Technical and Service Support,Works - Construction
800140964,SERVEST GROUP LIMITED,86402,24,115.11,REACTIVE MEP,05/12/2019,,Technical and Service Support,Works - Construction
800140964,SERVEST GROUP LIMITED,86402,25,148.17,REACTIVE MEP,05/12/2019,,Technical and Service Support,Works - Construction
800140964,SERVEST GROUP LIMITED,86402,26,298.11,REACTIVE MEP,05/12/2019,,Technical and Service Support,Works - Construction
800140964,SERVEST GROUP LIMITED,86402,27,"2,109.71",REACTIVE MEP,05/12/2019,,Technical and Service Support,Works - Construction
800140964,SERVEST GROUP LIMITED,86402,28,681.96,REACTIVE MEP,05/12/2019,,Technical and Service Support,Works - Construction
800140964,SERVEST GROUP LIMITED,86402,29,"1,275.54",REACTIVE MEP,05/12/2019,,Technical and Service Support,Works - Construction
800140964,SERVEST GROUP LIMITED,86402,30,449.28,REACTIVE MEP,05/12/2019,,Technical and Service Support,Works - Construction
800140964,SERVEST GROUP LIMITED,86402,31,"1,348.38",REACTIVE MEP,05/12/2019,,Technical and Service Support,Works - Construction
800140964,SERVEST GROUP LIMITED,86402,32,504.42,REACTIVE MEP,05/12/2019,,Technical and Service Support,Works - Construction
800140964,SERVEST GROUP LIMITED,86402,33,241.67,REACTIVE MEP,05/12/2019,,Technical and Service Support,Works - Construction
800140964,SERVEST GROUP LIMITED,86402,34,472.62,REACTIVE MEP,05/12/2019,,Technical and Service Support,Works - Construction
800140964,SERVEST GROUP LIMITED,86402,35,365.87,REACTIVE MEP,05/12/2019,,Technical and Service Support,Works - Construction
800140964,SERVEST GROUP LIMITED,86402,36,282.12,REACTIVE MEP,05/12/2019,,Technical and Service Support,Works - Construction
800140964,SERVEST GROUP LIMITED,86402,37,113.74,REACTIVE MEP,05/12/2019,,Technical and Service Support,Works - Construction
800140964,SERVEST GROUP LIMITED,86402,38,"1,280.12",REACTIVE MEP,05/12/2019,,Technical and Service Support,Works - Construction
800140964,SERVEST GROUP LIMITED,86402,39,"5,691.53",REACTIVE MEP,05/12/2019,,Technical and Service Support,Works - Construction
800140964,SERVEST GROUP LIMITED,86402,40,"3,298.14",REACTIVE MEP,05/12/2019,,Technical and Service Support,Works - Construction
800140964,SERVEST GROUP LIMITED,86402,41,669.62,REACTIVE MEP,05/12/2019,,Technical and Service Support,Works - Construction
800140964,SERVEST GROUP LIMITED,86402,42,267.4,REACTIVE MEP,05/12/2019,,Technical and Service Support,Works - Construction
800140964,SERVEST GROUP LIMITED,86402,43,619.5,REACTIVE MEP,05/12/2019,,Technical and Service Support,Works - Construction
800140964,SERVEST GROUP LIMITED,86402,44,665.81,REACTIVE MEP,05/12/2019,,Technical and Service Support,Works - Construction
800140964,SERVEST GROUP LIMITED,86402,45,732.92,REACTIVE MEP,05/12/2019,,Technical and Service Support,Works - Construction
800140964,SERVEST GROUP LIMITED,86402,46,80,REACTIVE MEP,05/12/2019,,Technical and Service Support,Works - Construction
800140964,SERVEST GROUP LIMITED,86402,47,"2,944.79",REACTIVE MEP,05/12/2019,,Technical and Service Support,Works - Construction
800140964,SERVEST GROUP LIMITED,86402,48,487.8,REACTIVE MEP,05/12/2019,,Technical and Service Support,Works - Construction
800140964,SERVEST GROUP LIMITED,86402,49,419.4,REACTIVE MEP,05/12/2019,,Technical and Service Support,Works - Construction
800140964,SERVEST GROUP LIMITED,86402,50,"2,764.69",REACTIVE MEP,05/12/2019,,Technical and Service Support,Works - Construction
800140964,SERVEST GROUP LIMITED,86402,51,78.15,REACTIVE MEP,05/12/2019,,Technical and Service Support,Works - Construction
800140964,SERVEST GROUP LIMITED,86402,52,78.15,REACTIVE MEP,05/12/2019,,Technical and Service Support,Works - Construction
800140964,SERVEST GROUP LIMITED,86402,53,428.34,REACTIVE MEP,05/12/2019,,Technical and Service Support,Works - Construction
800140964,SERVEST GROUP LIMITED,86402,54,69.36,REACTIVE MEP,05/12/2019,,Technical and Service Support,Works - Construction
800140964,SERVEST GROUP LIMITED,86402,55,162,REACTIVE MEP,05/12/2019,,Technical and Service Support,Works - Construction
800140964,SERVEST GROUP LIMITED,86402,56,756,REACTIVE MEP,05/12/2019,,Technical and Service Support,Works - Construction
800140964,SERVEST GROUP LIMITED,86402,57,35.8,REACTIVE MEP,05/12/2019,,Technical and Service Support,Works - Construction
800140964,SERVEST GROUP LIMITED,86402,58,101.3,REACTIVE MEP,05/12/2019,,Technical and Service Support,Works - Construction
800140964,SERVEST GROUP LIMITED,86402,59,50.65,REACTIVE MEP,05/12/2019,,Technical and Service Support,Works - Construction
800140964,SERVEST GROUP LIMITED,86402,60,202.6,REACTIVE MEP,05/12/2019,,Technical and Service Support,Works - Construction
800140964,SERVEST GROUP LIMITED,86402,61,50.65,REACTIVE MEP,05/12/2019,,Technical and Service Support,Works - Construction
800140964,SERVEST GROUP LIMITED,86402,62,101.3,REACTIVE MEP,05/12/2019,,Technical and Service Support,Works - Construction
800140964,SERVEST GROUP LIMITED,86402,63,101.3,REACTIVE MEP,05/12/2019,,Technical and Service Support,Works - Construction
800140964,SERVEST GROUP LIMITED,86402,64,50.65,REACTIVE MEP,05/12/2019,,Technical and Service Support,Works - Construction
800140964,SERVEST GROUP LIMITED,86402,65,101.3,REACTIVE MEP,05/12/2019,,Technical and Service Support,Works - Construction
800140964,SERVEST GROUP LIMITED,86402,66,101.3,REACTIVE MEP,05/12/2019,,Technical and Service Support,Works - Construction
800140964,SERVEST GROUP LIMITED,86402,67,50.65,REACTIVE MEP,05/12/2019,,Technical and Service Support,Works - Construction
800140964,SERVEST GROUP LIMITED,86402,68,101.3,REACTIVE MEP,05/12/2019,,Technical and Service Support,Works - Construction
800140964,SERVEST GROUP LIMITED,86402,69,50.65,REACTIVE MEP,05/12/2019,,Technical and Service Support,Works - Construction
800140964,SERVEST GROUP LIMITED,86402,70,50.65,REACTIVE MEP,05/12/2019,,Technical and Service Support,Works - Construction
800140964,SERVEST GROUP LIMITED,86402,71,101.3,REACTIVE MEP,05/12/2019,,Technical and Service Support,Works - Construction
800140964,SERVEST GROUP LIMITED,86402,72,50.65,REACTIVE MEP,05/12/2019,,Technical and Service Support,Works - Construction
800140964,SERVEST GROUP LIMITED,86402,73,50.65,REACTIVE MEP,05/12/2019,,Technical and Service Support,Works - Construction
800140964,SERVEST GROUP LIMITED,86402,74,50.65,REACTIVE MEP,05/12/2019,,Technical and Service Support,Works - Construction
800140964,SERVEST GROUP LIMITED,86402,75,145.84,REACTIVE MEP,05/12/2019,,Technical and Service Support,Works - Construction
800140964,SERVEST GROUP LIMITED,86402,76,101.3,REACTIVE MEP,05/12/2019,,Technical and Service Support,Works - Construction
800140964,SERVEST GROUP LIMITED,86402,77,50.65,REACTIVE MEP,05/12/2019,,Technical and Service Support,Works - Construction
800140964,SERVEST GROUP LIMITED,86402,78,101.3,REACTIVE MEP,05/12/2019,,Technical and Service Support,Works - Construction
800140964,SERVEST GROUP LIMITED,86402,79,101.3,REACTIVE MEP,05/12/2019,,Technical and Service Support,Works - Construction
800140964,SERVEST GROUP LIMITED,86402,80,50.65,REACTIVE MEP,05/12/2019,,Technical and Service Support,Works - Construction
021219V,Fulkers Bailey Russell,8896,1,"5,400.00",PROF FEES-MISCELLANEOUS,05/12/2019,"5,400.00",Technical and Service Support,Consultancy
291119K,NORTHUMBRIAN WATER LTD,914640259,1,"1,136.97",CURRENT HYDRANT COSTS,05/12/2019,"1,136.97",Procurement,Works - Construction
021219K,BSI MANAGEMENT SYSTEMS,95369877,1,"2,190.00",BOOKS & JOURNALS,05/12/2019,"2,190.00",Service Improvement,Facilities & Management Services
291119K,THAMES WATER UTILITIES LTD,CBA1806130,1,"1,273.00",CURRENT HYDRANT COSTS,05/12/2019,"1,273.00",Procurement,Works - Construction
291119K,THAMES WATER UTILITIES LTD,CBA1904274,1,"1,273.00",CURRENT HYDRANT COSTS,05/12/2019,"1,273.00",Procurement,Works - Construction
291119K,THE SALVATION ARMY,CONTRIBUTION 20/21,1,"18,130.00",DONATIONS,05/12/2019,"18,130.00",Operational Policy,Financial Services
